Council Name,Date,TransNo,Amount � (Excl VAT),Supplier name,Supplier Category,Expense Area,Expense Type,Expense Code
London Borough of Sutton,01/01/2023,50317049,"8,014.20",4D Care Ltd,SOCIAL SERVICES RESIDENTIAL,Peoples Services,Residential Care-Children,A56115
London Borough of Sutton,20/02/2023,50320924,"-30,038.04",A Step Beyond Ltd,SOCIAL SERVICES - OTHER,Peoples Services,Supported Living,A56088
London Borough of Sutton,20/02/2023,50320924,"84,831.84",A Step Beyond Ltd,SOCIAL SERVICES - OTHER,Peoples Services,Supported Living,A56088
London Borough of Sutton,20/02/2023,50320924,"8,331.70",A Step Beyond Ltd,SOCIAL SERVICES - OTHER,Peoples Services,Supported Living,A56088
London Borough of Sutton,20/02/2023,50320924,"5,582.13",A Step Beyond Ltd,SOCIAL SERVICES - OTHER,Peoples Services,Supported Living,A56088
London Borough of Sutton,20/02/2023,50320924,"-7,867.11",A Step Beyond Ltd,SOCIAL SERVICES - OTHER,Peoples Services,Supported Living,A56088
London Borough of Sutton,20/02/2023,50320924,"-5,270.86",A Step Beyond Ltd,SOCIAL SERVICES - OTHER,Peoples Services,Supported Living,A56088
London Borough of Sutton,20/02/2023,50320924,"31,811.94",A Step Beyond Ltd,SOCIAL SERVICES - OTHER,Peoples Services,Supported Living,A56088
London Borough of Sutton,20/02/2023,50320924,"-80,101.44",A Step Beyond Ltd,SOCIAL SERVICES - OTHER,Peoples Services,Supported Living,A56088
London Borough of Sutton,04/01/2023,50316978,"30,070.00",A Wilderness Way Ltd,CHILDREN'S SERVICES - FOSTERING & ADOPTION SERVICES,Peoples Services,Residential Care-Children,A56115
London Borough of Sutton,17/02/2023,50320177,"3,848.24",Abbey Care Centre,SOCIAL SERVICES RESIDENTIAL,Peoples Services,Nursing Care - Ext Provider,A56025
London Borough of Sutton,17/02/2023,50320177,-750.40,Abbey Care Centre,SOCIAL SERVICES RESIDENTIAL,Peoples Services,Nursing Care - 3rd party top up payment,A56023
London Borough of Sutton,17/02/2023,50320267,-750.40,Abbey Care Centre,SOCIAL SERVICES RESIDENTIAL,Peoples Services,Nursing Care - 3rd party top up payment,A56023
London Borough of Sutton,17/02/2023,50320267,"3,848.24",Abbey Care Centre,SOCIAL SERVICES RESIDENTIAL,Peoples Services,Nursing Care Short Term,A56026
London Borough of Sutton,17/02/2023,50320267,"-1,492.80",Abbey Care Centre,SOCIAL SERVICES RESIDENTIAL,Peoples Services,Nursing Care - 3rd party top up payment,A56023
London Borough of Sutton,17/02/2023,50320364,-750.40,Abbey Care Centre,SOCIAL SERVICES RESIDENTIAL,Peoples Services,Nursing Care - 3rd party top up payment,A56023
London Borough of Sutton,17/02/2023,50320364,"3,848.24",Abbey Care Centre,SOCIAL SERVICES RESIDENTIAL,Peoples Services,Nursing Care Short Term,A56026
London Borough of Sutton,17/02/2023,50320404,"4,036.76",Abbey Care Centre,SOCIAL SERVICES RESIDENTIAL,Peoples Services,Nursing Care - Ext Provider,A56025
London Borough of Sutton,17/02/2023,50320404,-836.76,Abbey Care Centre,SOCIAL SERVICES RESIDENTIAL,Peoples Services,Nursing Care - 3rd party top up payment,A56023
London Borough of Sutton,02/02/2023,50314519,"1,092.36",ABC Pre-School Beddington LLP,GRANTS & EX GRATIA PAYMENTS,Peoples Services,Payment - Nursery Funding,A51056
London Borough of Sutton,02/02/2023,50314574,"3,629.26",ABC Pre-School Beddington LLP,GRANTS & EX GRATIA PAYMENTS,Peoples Services,Payment - Nursery Funding,A51056
London Borough of Sutton,30/01/2023,20041676,"5,926.51",Absolute Care Services Ltd,SOCIAL SERVICES DAY CARE,Peoples Services,Homecare Core Services,A56020
London Borough of Sutton,30/01/2023,20041678,"5,715.81",Absolute Care Services Ltd,SOCIAL SERVICES DAY CARE,Peoples Services,Homecare Core Services,A56020
London Borough of Sutton,30/01/2023,20041679,"6,794.87",Absolute Care Services Ltd,SOCIAL SERVICES DAY CARE,Peoples Services,Homecare Core Services,A56020
London Borough of Sutton,06/02/2023,20042270,"6,794.87",Absolute Care Services Ltd,SOCIAL SERVICES DAY CARE,Peoples Services,Homecare Core Services,A56020
London Borough of Sutton,06/02/2023,20042271,"5,715.81",Absolute Care Services Ltd,SOCIAL SERVICES DAY CARE,Peoples Services,Homecare Core Services,A56020
London Borough of Sutton,06/02/2023,20042272,"5,926.51",Absolute Care Services Ltd,SOCIAL SERVICES DAY CARE,Peoples Services,Homecare Core Services,A56020
London Borough of Sutton,13/02/2023,20042917,"6,794.87",Absolute Care Services Ltd,SOCIAL SERVICES DAY CARE,Peoples Services,Homecare Core Services,A56020
London Borough of Sutton,13/02/2023,20042918,"5,926.51",Absolute Care Services Ltd,SOCIAL SERVICES DAY CARE,Peoples Services,Homecare Core Services,A56020
London Borough of Sutton,22/01/2023,50314200,431.07,Absolute Care Services Ltd,SOCIAL SERVICES DAY CARE,Peoples Services,Home Care Services,A56019
London Borough of Sutton,22/01/2023,50314200,99.57,Absolute Care Services Ltd,SOCIAL SERVICES DAY CARE,Peoples Services,Home Care Services,A56019
London Borough of Sutton,22/01/2023,50314205,620.62,Absolute Care Services Ltd,SOCIAL SERVICES DAY CARE,Peoples Services,Home Care Services,A56019
London Borough of Sutton,22/01/2023,50314257,772.61,Absolute Care Services Ltd,SOCIAL SERVICES DAY CARE,Peoples Services,Home Care Services,A56019
London Borough of Sutton,22/01/2023,50314257,45.01,Absolute Care Services Ltd,SOCIAL SERVICES DAY CARE,Peoples Services,Home Care Services,A56019
London Borough of Sutton,22/01/2023,50314272,689.50,Absolute Care Services Ltd,SOCIAL SERVICES DAY CARE,Peoples Services,Home Care Services,A56019
London Borough of Sutton,22/01/2023,50314273,16.08,Absolute Care Services Ltd,SOCIAL SERVICES DAY CARE,Peoples Services,Home Care Services,A56019
London Borough of Sutton,22/01/2023,50314273,506.52,Absolute Care Services Ltd,SOCIAL SERVICES DAY CARE,Peoples Services,Home Care Services,A56019
London Borough of Sutton,13/10/2022,50315512,542.70,Absolute Care Services Ltd,SOCIAL SERVICES DAY CARE,Peoples Services,Home Care Services,A56019
London Borough of Sutton,22/01/2023,50315524,620.62,Absolute Care Services Ltd,SOCIAL SERVICES DAY CARE,Peoples Services,Home Care Services,A56019
London Borough of Sutton,22/01/2023,50315524,39.40,Absolute Care Services Ltd,SOCIAL SERVICES DAY CARE,Peoples Services,Home Care Services,A56019
London Borough of Sutton,22/01/2023,50315530,522.60,Absolute Care Services Ltd,SOCIAL SERVICES DAY CARE,Peoples Services,Home Care Services,A56019
London Borough of Sutton,22/01/2023,50315557,409.11,Absolute Care Services Ltd,SOCIAL SERVICES DAY CARE,Peoples Services,Home Care Services,A56019
London Borough of Sutton,22/01/2023,50315557,100.50,Absolute Care Services Ltd,SOCIAL SERVICES DAY CARE,Peoples Services,Home Care Services,A56019
London Borough of Sutton,22/01/2023,50315557,12.99,Absolute Care Services Ltd,SOCIAL SERVICES DAY CARE,Peoples Services,Home Care Services,A56019
London Borough of Sutton,22/01/2023,50315887,576.30,Absolute Care Services Ltd,SOCIAL SERVICES DAY CARE,Peoples Services,Home Care Services,A56019
London Borough of Sutton,29/01/2023,50316361,409.11,Absolute Care Services Ltd,SOCIAL SERVICES DAY CARE,Peoples Services,Home Care Services,A56019
London Borough of Sutton,29/01/2023,50316361,100.50,Absolute Care Services Ltd,SOCIAL SERVICES DAY CARE,Peoples Services,Home Care Services,A56019
London Borough of Sutton,29/01/2023,50316361,12.99,Absolute Care Services Ltd,SOCIAL SERVICES DAY CARE,Peoples Services,Home Care Services,A56019
London Borough of Sutton,29/01/2023,50316365,620.63,Absolute Care Services Ltd,SOCIAL SERVICES DAY CARE,Peoples Services,Home Care Services,A56019
London Borough of Sutton,29/01/2023,50316392,431.07,Absolute Care Services Ltd,SOCIAL SERVICES DAY CARE,Peoples Services,Home Care Services,A56019
London Borough of Sutton,29/01/2023,50316392,99.57,Absolute Care Services Ltd,SOCIAL SERVICES DAY CARE,Peoples Services,Home Care Services,A56019
London Borough of Sutton,29/01/2023,50316424,896.56,Absolute Care Services Ltd,SOCIAL SERVICES DAY CARE,Peoples Services,Home Care Services,A56019
London Borough of Sutton,29/01/2023,50316424,118.20,Absolute Care Services Ltd,SOCIAL SERVICES DAY CARE,Peoples Services,Home Care Services,A56019
London Borough of Sutton,29/01/2023,50316439,769.50,Absolute Care Services Ltd,SOCIAL SERVICES DAY CARE,Peoples Services,Home Care Services,A56019
London Borough of Sutton,29/01/2023,50316439,44.83,Absolute Care Services Ltd,SOCIAL SERVICES DAY CARE,Peoples Services,Home Care Services,A56019
London Borough of Sutton,29/01/2023,50316449,620.62,Absolute Care Services Ltd,SOCIAL SERVICES DAY CARE,Peoples Services,Home Care Services,A56019
London Borough of Sutton,29/01/2023,50316449,39.40,Absolute Care Services Ltd,SOCIAL SERVICES DAY CARE,Peoples Services,Home Care Services,A56019
London Borough of Sutton,29/01/2023,50316459,689.50,Absolute Care Services Ltd,SOCIAL SERVICES DAY CARE,Peoples Services,Home Care Services,A56019
London Borough of Sutton,29/01/2023,50316460,16.08,Absolute Care Services Ltd,SOCIAL SERVICES DAY CARE,Peoples Services,Home Care Services,A56019
London Borough of Sutton,29/01/2023,50316460,506.52,Absolute Care Services Ltd,SOCIAL SERVICES DAY CARE,Peoples Services,Home Care Services,A56019
London Borough of Sutton,29/01/2023,50316475,522.60,Absolute Care Services Ltd,SOCIAL SERVICES DAY CARE,Peoples Services,Home Care Services,A56019
London Borough of Sutton,29/01/2023,50316503,615.66,Absolute Care Services Ltd,SOCIAL SERVICES DAY CARE,Peoples Services,Home Care Services,A56019
London Borough of Sutton,05/02/2023,50319303,409.11,Absolute Care Services Ltd,SOCIAL SERVICES DAY CARE,Peoples Services,Home Care Services,A56019
London Borough of Sutton,05/02/2023,50319303,100.50,Absolute Care Services Ltd,SOCIAL SERVICES DAY CARE,Peoples Services,Home Care Services,A56019
London Borough of Sutton,05/02/2023,50319303,12.99,Absolute Care Services Ltd,SOCIAL SERVICES DAY CARE,Peoples Services,Home Care Services,A56019
London Borough of Sutton,05/02/2023,50319316,522.60,Absolute Care Services Ltd,SOCIAL SERVICES DAY CARE,Peoples Services,Home Care Services,A56019
London Borough of Sutton,05/02/2023,50319359,431.07,Absolute Care Services Ltd,SOCIAL SERVICES DAY CARE,Peoples Services,Home Care Services,A56019
London Borough of Sutton,05/02/2023,50319359,99.57,Absolute Care Services Ltd,SOCIAL SERVICES DAY CARE,Peoples Services,Home Care Services,A56019
London Borough of Sutton,05/02/2023,50319365,620.62,Absolute Care Services Ltd,SOCIAL SERVICES DAY CARE,Peoples Services,Home Care Services,A56019
London Borough of Sutton,05/02/2023,50319396,896.56,Absolute Care Services Ltd,SOCIAL SERVICES DAY CARE,Peoples Services,Home Care Services,A56019
London Borough of Sutton,05/02/2023,50319396,118.20,Absolute Care Services Ltd,SOCIAL SERVICES DAY CARE,Peoples Services,Home Care Services,A56019
London Borough of Sutton,05/02/2023,50319404,772.61,Absolute Care Services Ltd,SOCIAL SERVICES DAY CARE,Peoples Services,Home Care Services,A56019
London Borough of Sutton,05/02/2023,50319404,45.01,Absolute Care Services Ltd,SOCIAL SERVICES DAY CARE,Peoples Services,Home Care Services,A56019
London Borough of Sutton,05/02/2023,50319421,689.50,Absolute Care Services Ltd,SOCIAL SERVICES DAY CARE,Peoples Services,Home Care Services,A56019
London Borough of Sutton,05/02/2023,50319422,16.08,Absolute Care Services Ltd,SOCIAL SERVICES DAY CARE,Peoples Services,Home Care Services,A56019
London Borough of Sutton,05/02/2023,50319422,506.52,Absolute Care Services Ltd,SOCIAL SERVICES DAY CARE,Peoples Services,Home Care Services,A56019
London Borough of Sutton,05/02/2023,50319428,620.62,Absolute Care Services Ltd,SOCIAL SERVICES DAY CARE,Peoples Services,Home Care Services,A56019
London Borough of Sutton,05/02/2023,50319428,39.40,Absolute Care Services Ltd,SOCIAL SERVICES DAY CARE,Peoples Services,Home Care Services,A56019
London Borough of Sutton,12/02/2023,50320481,522.60,Absolute Care Services Ltd,SOCIAL SERVICES DAY CARE,Peoples Services,Home Care Services,A56019
London Borough of Sutton,12/02/2023,50320482,409.11,Absolute Care Services Ltd,SOCIAL SERVICES DAY CARE,Peoples Services,Home Care Services,A56019
London Borough of Sutton,12/02/2023,50320482,100.50,Absolute Care Services Ltd,SOCIAL SERVICES DAY CARE,Peoples Services,Home Care Services,A56019
London Borough of Sutton,12/02/2023,50320482,12.99,Absolute Care Services Ltd,SOCIAL SERVICES DAY CARE,Peoples Services,Home Care Services,A56019
London Borough of Sutton,12/02/2023,50320531,620.62,Absolute Care Services Ltd,SOCIAL SERVICES DAY CARE,Peoples Services,Home Care Services,A56019
London Borough of Sutton,12/02/2023,50320541,767.96,Absolute Care Services Ltd,SOCIAL SERVICES DAY CARE,Peoples Services,Home Care Services,A56019
London Borough of Sutton,12/02/2023,50320541,44.74,Absolute Care Services Ltd,SOCIAL SERVICES DAY CARE,Peoples Services,Home Care Services,A56019
London Borough of Sutton,12/02/2023,50320566,896.56,Absolute Care Services Ltd,SOCIAL SERVICES DAY CARE,Peoples Services,Home Care Services,A56019
London Borough of Sutton,12/02/2023,50320566,118.20,Absolute Care Services Ltd,SOCIAL SERVICES DAY CARE,Peoples Services,Home Care Services,A56019
London Borough of Sutton,12/02/2023,50320589,689.50,Absolute Care Services Ltd,SOCIAL SERVICES DAY CARE,Peoples Services,Home Care Services,A56019
London Borough of Sutton,12/02/2023,50320633,620.62,Absolute Care Services Ltd,SOCIAL SERVICES DAY CARE,Peoples Services,Home Care Services,A56019
London Borough of Sutton,12/02/2023,50320633,39.40,Absolute Care Services Ltd,SOCIAL SERVICES DAY CARE,Peoples Services,Home Care Services,A56019
London Borough of Sutton,12/02/2023,50320740,431.07,Absolute Care Services Ltd,SOCIAL SERVICES DAY CARE,Peoples Services,Home Care Services,A56019
London Borough of Sutton,12/02/2023,50320740,99.57,Absolute Care Services Ltd,SOCIAL SERVICES DAY CARE,Peoples Services,Home Care Services,A56019
London Borough of Sutton,12/02/2023,50320768,16.08,Absolute Care Services Ltd,SOCIAL SERVICES DAY CARE,Peoples Services,Home Care Services,A56019
London Borough of Sutton,12/02/2023,50320768,506.52,Absolute Care Services Ltd,SOCIAL SERVICES DAY CARE,Peoples Services,Home Care Services,A56019
London Borough of Sutton,19/02/2023,50321948,409.11,Absolute Care Services Ltd,SOCIAL SERVICES DAY CARE,Peoples Services,Home Care Services,A56019
London Borough of Sutton,19/02/2023,50321948,100.50,Absolute Care Services Ltd,SOCIAL SERVICES DAY CARE,Peoples Services,Home Care Services,A56019
London Borough of Sutton,19/02/2023,50321948,12.99,Absolute Care Services Ltd,SOCIAL SERVICES DAY CARE,Peoples Services,Home Care Services,A56019
London Borough of Sutton,19/02/2023,50321970,431.07,Absolute Care Services Ltd,SOCIAL SERVICES DAY CARE,Peoples Services,Home Care Services,A56019
London Borough of Sutton,19/02/2023,50321970,99.57,Absolute Care Services Ltd,SOCIAL SERVICES DAY CARE,Peoples Services,Home Care Services,A56019
London Borough of Sutton,19/02/2023,50321974,620.62,Absolute Care Services Ltd,SOCIAL SERVICES DAY CARE,Peoples Services,Home Care Services,A56019
London Borough of Sutton,19/02/2023,50321984,620.61,Absolute Care Services Ltd,SOCIAL SERVICES DAY CARE,Peoples Services,Home Care Services,A56019
London Borough of Sutton,19/02/2023,50321984,39.40,Absolute Care Services Ltd,SOCIAL SERVICES DAY CARE,Peoples Services,Home Care Services,A56019
London Borough of Sutton,19/02/2023,50321990,896.55,Absolute Care Services Ltd,SOCIAL SERVICES DAY CARE,Peoples Services,Home Care Services,A56019
London Borough of Sutton,19/02/2023,50321990,118.20,Absolute Care Services Ltd,SOCIAL SERVICES DAY CARE,Peoples Services,Home Care Services,A56019
London Borough of Sutton,19/02/2023,50322001,772.62,Absolute Care Services Ltd,SOCIAL SERVICES DAY CARE,Peoples Services,Home Care Services,A56019
London Borough of Sutton,19/02/2023,50322001,45.01,Absolute Care Services Ltd,SOCIAL SERVICES DAY CARE,Peoples Services,Home Care Services,A56019
London Borough of Sutton,19/02/2023,50322010,689.50,Absolute Care Services Ltd,SOCIAL SERVICES DAY CARE,Peoples Services,Home Care Services,A56019
London Borough of Sutton,19/02/2023,50322011,16.08,Absolute Care Services Ltd,SOCIAL SERVICES DAY CARE,Peoples Services,Home Care Services,A56019
London Borough of Sutton,19/02/2023,50322011,506.52,Absolute Care Services Ltd,SOCIAL SERVICES DAY CARE,Peoples Services,Home Care Services,A56019
London Borough of Sutton,19/02/2023,50322019,522.60,Absolute Care Services Ltd,SOCIAL SERVICES DAY CARE,Peoples Services,Home Care Services,A56019
London Borough of Sutton,01/02/2023,20041891,"210,504.48",Access UK Limited,TAXI AND COACH HIRE,Peoples Services,Childrens Social Care Transport,A32009
London Borough of Sutton,08/02/2023,20042501,"203,768.09",Access UK Limited,TAXI AND COACH HIRE,Peoples Services,Childrens Social Care Transport,A32009
London Borough of Sutton,15/02/2023,20043049,"137,334.23",Access UK Limited,TAXI AND COACH HIRE,Peoples Services,Childrens Social Care Transport,A32009
London Borough of Sutton,22/02/2023,20043631,"88,776.22",Access UK Limited,TAXI AND COACH HIRE,Peoples Services,Childrens Social Care Transport,A32009
London Borough of Sutton,01/02/2023,50315754,"5,410.61",Accomplish Group Ltd,SOCIAL SERVICES RESIDENTIAL,Peoples Services,Supported Living,A56088
London Borough of Sutton,17/02/2023,50319930,"6,845.04",Achieve Together Limited,SOCIAL SERVICES RESIDENTIAL,Peoples Services,Residential Care - Ext Provider,A56114
London Borough of Sutton,17/02/2023,50319930,-438.80,Achieve Together Limited,SOCIAL SERVICES RESIDENTIAL,Peoples Services,Residential Care - Client Cont ( Net Paymt ),A56113
London Borough of Sutton,17/02/2023,50319939,"4,682.44",Achieve Together Limited,SOCIAL SERVICES RESIDENTIAL,Peoples Services,Residential Care - Ext Provider,A56114
London Borough of Sutton,17/02/2023,50319939,-511.80,Achieve Together Limited,SOCIAL SERVICES RESIDENTIAL,Peoples Services,Residential Care - Client Cont ( Net Paymt ),A56113
London Borough of Sutton,17/02/2023,50319986,"8,103.64",Achieve Together Limited,SOCIAL SERVICES RESIDENTIAL,Peoples Services,Residential Care - Ext Provider,A56114
London Borough of Sutton,17/02/2023,50319986,-402.80,Achieve Together Limited,SOCIAL SERVICES RESIDENTIAL,Peoples Services,Residential Care - Client Cont ( Net Paymt ),A56113
London Borough of Sutton,17/02/2023,50320045,"5,100.00",Achieve Together Limited,SOCIAL SERVICES RESIDENTIAL,Peoples Services,Residential Care - Ext Provider,A56114
London Borough of Sutton,17/02/2023,50320094,"4,375.48",Achieve Together Limited,SOCIAL SERVICES RESIDENTIAL,Peoples Services,Residential Care - Ext Provider,A56114
London Borough of Sutton,17/02/2023,50320094,-471.80,Achieve Together Limited,SOCIAL SERVICES RESIDENTIAL,Peoples Services,Residential Care - Client Cont ( Net Paymt ),A56113
London Borough of Sutton,17/02/2023,50320094,390.00,Achieve Together Limited,SOCIAL SERVICES RESIDENTIAL,Peoples Services,One to One Care,A56108
London Borough of Sutton,17/02/2023,50320141,"5,810.56",Achieve Together Limited,SOCIAL SERVICES RESIDENTIAL,Peoples Services,Residential Care - Ext Provider,A56114
London Borough of Sutton,17/02/2023,50320148,"7,303.88",Achieve Together Limited,SOCIAL SERVICES RESIDENTIAL,Peoples Services,Residential Care - Ext Provider,A56114
London Borough of Sutton,17/02/2023,50320148,-474.80,Achieve Together Limited,SOCIAL SERVICES RESIDENTIAL,Peoples Services,Residential Care - Client Cont ( Net Paymt ),A56113
London Borough of Sutton,17/02/2023,50319955,"5,620.60",Achieve Together Limited,SOCIAL SERVICES RESIDENTIAL,Peoples Services,Residential Care - Ext Provider,A56114
London Borough of Sutton,17/02/2023,50319955,-438.80,Achieve Together Limited,SOCIAL SERVICES RESIDENTIAL,Peoples Services,Residential Care - Client Cont ( Net Paymt ),A56113
London Borough of Sutton,17/02/2023,50319999,"11,047.88",Achieve Together Limited,SOCIAL SERVICES RESIDENTIAL,Peoples Services,Residential Care - Ext Provider,A56114
London Borough of Sutton,17/02/2023,50320002,"4,653.76",Achieve Together Limited,SOCIAL SERVICES RESIDENTIAL,Peoples Services,Residential Care - Ext Provider,A56114
London Borough of Sutton,20/02/2023,50320836,"2,157.12",Achieve Together Limited,SOCIAL SERVICES RESIDENTIAL,Peoples Services,Supported Living,A56088
London Borough of Sutton,20/02/2023,50320836,579.44,Achieve Together Limited,SOCIAL SERVICES RESIDENTIAL,Peoples Services,Supported Living,A56088
London Borough of Sutton,20/02/2023,50320836,559.48,Achieve Together Limited,SOCIAL SERVICES RESIDENTIAL,Peoples Services,Supported Living,A56088
London Borough of Sutton,20/02/2023,50320847,958.72,Achieve Together Limited,SOCIAL SERVICES RESIDENTIAL,Peoples Services,Supported Living,A56088
London Borough of Sutton,20/02/2023,50320847,802.16,Achieve Together Limited,SOCIAL SERVICES RESIDENTIAL,Peoples Services,Supported Living,A56088
London Borough of Sutton,20/02/2023,50320847,958.72,Achieve Together Limited,SOCIAL SERVICES RESIDENTIAL,Peoples Services,Supported Living,A56088
London Borough of Sutton,20/02/2023,50320907,"-1,266.88",Achieve Together Limited,SOCIAL SERVICES RESIDENTIAL,Peoples Services,Supported Living,A56088
London Borough of Sutton,20/02/2023,50320909,"2,396.80",Achieve Together Limited,SOCIAL SERVICES RESIDENTIAL,Peoples Services,Supported Living,A56088
London Borough of Sutton,20/02/2023,50320913,"2,655.64",Achieve Together Limited,SOCIAL SERVICES RESIDENTIAL,Peoples Services,Supported Living,A56088
London Borough of Sutton,20/02/2023,50320913,"2,876.16",Achieve Together Limited,SOCIAL SERVICES RESIDENTIAL,Peoples Services,Supported Living,A56088
London Borough of Sutton,30/01/2023,50313493,"11,197.45",Achieving For Children Limited,SOCIAL SERVICES - OTHER,Peoples Services,Top-up Funding,A51016
London Borough of Sutton,04/01/2023,50317001,"16,784.33",Acorn Homes UK Ltd,CHILDREN'S SERVICES - FOSTERING & ADOPTION SERVICES,Peoples Services,Residential Care-Children,A56115
London Borough of Sutton,17/02/2023,50319911,"3,012.36",Acorn Lodge,SOCIAL SERVICES RESIDENTIAL,Peoples Services,Residential Care - Ext Provider,A56114
London Borough of Sutton,17/02/2023,50320088,"3,232.48",Acorn Residential Home,SOCIAL SERVICES RESIDENTIAL,Peoples Services,Residential Care - Ext Provider,A56114
London Borough of Sutton,17/02/2023,50320231,"1,414.28",Acorn Residential Home,SOCIAL SERVICES RESIDENTIAL,Peoples Services,Residential Care Respite,A56018
London Borough of Sutton,14/02/2023,50318002,"7,380.00",Activate Learning,ACADEMIC INSTNS - OTHER,Peoples Services,Top-up Funding,A51016
London Borough of Sutton,17/02/2023,50319941,"6,441.84",Active Prospects,SOCIAL SERVICES DAY CARE,Peoples Services,Residential Care - Ext Provider,A56114
London Borough of Sutton,17/02/2023,50320019,-438.80,Active Prospects,SOCIAL SERVICES DAY CARE,Peoples Services,Residential Care - Client Cont ( Net Paymt ),A56113
London Borough of Sutton,17/02/2023,50320019,"8,918.80",Active Prospects,SOCIAL SERVICES DAY CARE,Peoples Services,Residential Care - Ext Provider,A56114
London Borough of Sutton,02/02/2023,50315756,525.00,Adelfi Homecare Ltd,SOCIAL SERVICES RESIDENTIAL,Peoples Services,Home Care Services,A56019
London Borough of Sutton,17/02/2023,50319972,"1,458.00",Admiral Healthcare Ltd,SOCIAL SERVICES RESIDENTIAL,Peoples Services,Residential Care - Ext Provider,A56114
London Borough of Sutton,12/08/2022,50317996,"4,890.00",AERODROME PRIMARY ACADEMY,CHILDREN'S SERVICES - SEN SERVICES,Peoples Services,Top-up Funding,A51016
London Borough of Sutton,09/02/2023,50317997,"4,890.00",AERODROME PRIMARY ACADEMY,CHILDREN'S SERVICES - SEN SERVICES,Peoples Services,Top-up Funding,A51016
London Borough of Sutton,30/01/2023,50316959,"3,527.49",Affinity Fostering Services Ltd,CHILDREN'S SERVICES - FOSTERING & ADOPTION SERVICES,Peoples Services,Foster Parents Support,A44110
London Borough of Sutton,30/01/2023,50316960,"3,715.35",Affinity Fostering Services Ltd,CHILDREN'S SERVICES - FOSTERING & ADOPTION SERVICES,Peoples Services,Foster Parents Support,A44110
London Borough of Sutton,30/01/2023,50316961,"3,494.01",Affinity Fostering Services Ltd,CHILDREN'S SERVICES - FOSTERING & ADOPTION SERVICES,Peoples Services,Foster Parents Support,A44110
London Borough of Sutton,30/01/2023,50317048,"3,317.31",Affinity Fostering Services Ltd,CHILDREN'S SERVICES - FOSTERING & ADOPTION SERVICES,Peoples Services,Foster Parents Support,A44110
London Borough of Sutton,20/02/2023,50320851,"1,828.32",Agincare Enable Limited,SOCIAL SERVICES RESIDENTIAL,Peoples Services,Supported Living,A56088
London Borough of Sutton,20/02/2023,50320851,411.60,Agincare Enable Limited,SOCIAL SERVICES RESIDENTIAL,Peoples Services,Supported Living,A56088
London Borough of Sutton,20/02/2023,50320851,"1,828.32",Agincare Enable Limited,SOCIAL SERVICES RESIDENTIAL,Peoples Services,One to One Care,A56108
London Borough of Sutton,17/02/2023,50319928,"7,793.40",Leighton House Ltd,SOCIAL SERVICES RESIDENTIAL,Peoples Services,Residential Care - Ext Provider,A56114
London Borough of Sutton,20/12/2022,20043183,"8,095.00",Air Quality Consultants Limited,OPERATIONAL EQUIPMENT/MATERIAL,Environment Housing and Neighbourhoods,Other Private Contractors - Third Party,A56080
London Borough of Sutton,17/02/2023,50320005,"8,716.00",Aitch Care Homes,SOCIAL SERVICES RESIDENTIAL,Peoples Services,Residential Care - Ext Provider,A56114
London Borough of Sutton,01/01/2023,20041777,"1,902.00",Alarm,CONFERENCES,Resources,Staff Development And Training,A15022
London Borough of Sutton,02/02/2023,50314599,608.25,REDACTED - PERSONAL DATA,GRANTS & EX GRATIA PAYMENTS,Peoples Services,Payment - Nursery Funding,A51056
London Borough of Sutton,29/01/2023,20041884,"1,750.00",ALKINT SERVICES LTD,"SOCIAL SERVICES - DOLS, GUM & BIA ASSESSMENTS",Peoples Services,Client Related Assessments,A56017
London Borough of Sutton,29/01/2023,20041885,"1,750.00",ALKINT SERVICES LTD,"SOCIAL SERVICES - DOLS, GUM & BIA ASSESSMENTS",Peoples Services,Client Related Assessments,A56017
London Borough of Sutton,29/01/2023,20041886,"1,750.00",ALKINT SERVICES LTD,"SOCIAL SERVICES - DOLS, GUM & BIA ASSESSMENTS",Peoples Services,Client Related Assessments,A56017
London Borough of Sutton,29/01/2023,20041887,"1,750.00",ALKINT SERVICES LTD,"SOCIAL SERVICES - DOLS, GUM & BIA ASSESSMENTS",Peoples Services,Client Related Assessments,A56017
London Borough of Sutton,29/01/2023,20041888,875.00,ALKINT SERVICES LTD,"SOCIAL SERVICES - DOLS, GUM & BIA ASSESSMENTS",Peoples Services,Client Related Assessments,A56017
London Borough of Sutton,07/02/2023,50314412,"159,396.66",All Saints Benhilton C Of E,GRANTS & EX GRATIA PAYMENTS,Peoples Services,Payments to Schools,A51013
London Borough of Sutton,07/02/2023,50314442,"15,510.53",All Saints Benhilton C Of E,GRANTS & EX GRATIA PAYMENTS,Peoples Services,Place Funding,A56110
London Borough of Sutton,07/02/2023,50314513,"-3,450.00",All Saints Benhilton C Of E,GRANTS & EX GRATIA PAYMENTS,Peoples Services,Payment - school led tutoring grant,A51060
London Borough of Sutton,07/02/2023,50314443,"15,814.65",All Saints Carshalton Primary School,GRANTS & EX GRATIA PAYMENTS,Peoples Services,Place Funding,A56110
London Borough of Sutton,07/02/2023,50316055,"3,692.90",All Saints Carshalton Primary School,GRANTS & EX GRATIA PAYMENTS,Peoples Services,Top-up Funding,A51016
London Borough of Sutton,17/02/2023,50319937,"4,621.64",Allied Care (Mhs) Ltd,SOCIAL SERVICES - OTHER,Peoples Services,Residential Care - Ext Provider,A56114
London Borough of Sutton,02/02/2023,20042103,665.00,Alljos Services Ltd,PREMISES - CLEANING & LAUNDRY,Environment Housing and Neighbourhoods,Grants Given For Capital Purposes,C20004
London Borough of Sutton,31/12/2022,20041900,229.94,Allpay Ltd,OFFICE SERVICES,Peoples Services,Client Activities,A56028
London Borough of Sutton,31/12/2022,20041900,397.88,Allpay Ltd,OFFICE SERVICES,Peoples Services,Client Activities,A56028
London Borough of Sutton,31/12/2022,20041900,141.47,Allpay Ltd,OFFICE SERVICES,Peoples Services,Client Activities,A56028
London Borough of Sutton,31/01/2023,20042462,215.39,Allpay Ltd,OFFICE SERVICES,Peoples Services,Client Activities,A56028
London Borough of Sutton,31/01/2023,20042462,372.69,Allpay Ltd,OFFICE SERVICES,Peoples Services,Client Activities,A56028
London Borough of Sutton,31/01/2023,20042462,132.52,Allpay Ltd,OFFICE SERVICES,Peoples Services,Client Activities,A56028
London Borough of Sutton,01/02/2023,20042119,"2,044.11",Allstar Business Solutions,FUEL AND VEHICLE SUPPLIES,Environment Housing and Neighbourhoods,Vehicles -  Fuel,A30015
London Borough of Sutton,17/02/2023,50320071,"6,609.52",Allswell Care Services Ltd,SOCIAL SERVICES RESIDENTIAL,Peoples Services,Residential Care - Ext Provider,A56114
London Borough of Sutton,17/02/2023,50320137,"5,397.60",Allswell Care Services Ltd,SOCIAL SERVICES RESIDENTIAL,Peoples Services,Residential Care - Ext Provider,A56114
London Borough of Sutton,17/02/2023,50320195,"5,397.60",Allswell Care Services Ltd,SOCIAL SERVICES RESIDENTIAL,Peoples Services,Residential Care - Ext Provider,A56114
London Borough of Sutton,27/01/2023,50312990,"3,267.22",Alpenbest Limited,SOCIAL SERVICES DAY CARE,Peoples Services,Home Care Services,A56019
London Borough of Sutton,27/01/2023,50312992,"1,143.78",Alpenbest Limited,SOCIAL SERVICES DAY CARE,Peoples Services,Home Care Services,A56019
London Borough of Sutton,27/01/2023,50312994,"1,714.49",Alpenbest Limited,SOCIAL SERVICES DAY CARE,Peoples Services,Home Care Services,A56019
London Borough of Sutton,27/01/2023,50312995,"2,694.46",Alpenbest Limited,SOCIAL SERVICES DAY CARE,Peoples Services,Home Care Services,A56019
London Borough of Sutton,27/01/2023,50312996,837.70,Alpenbest Limited,SOCIAL SERVICES DAY CARE,Peoples Services,Home Care Services,A56019
London Borough of Sutton,27/01/2023,50312997,"1,830.80",Alpenbest Limited,SOCIAL SERVICES DAY CARE,Peoples Services,Home Care Services,A56019
London Borough of Sutton,27/01/2023,50312998,"1,645.85",Alpenbest Limited,SOCIAL SERVICES DAY CARE,Peoples Services,Home Care Services,A56019
London Borough of Sutton,27/01/2023,50312999,508.72,Alpenbest Limited,SOCIAL SERVICES DAY CARE,Peoples Services,Home Care Services,A56019
London Borough of Sutton,27/01/2023,50313001,"1,692.23",Alpenbest Limited,SOCIAL SERVICES DAY CARE,Peoples Services,Home Care Services,A56019
London Borough of Sutton,27/01/2023,50313004,"1,351.84",Alpenbest Limited,SOCIAL SERVICES DAY CARE,Peoples Services,Home Care Services,A56019
London Borough of Sutton,27/01/2023,50313007,"1,254.33",Alpenbest Limited,SOCIAL SERVICES DAY CARE,Peoples Services,Home Care Services,A56019
London Borough of Sutton,27/01/2023,50313014,"4,781.55",Alpenbest Limited,SOCIAL SERVICES DAY CARE,Peoples Services,Home Care Services,A56019
London Borough of Sutton,27/01/2023,50313015,875.05,Alpenbest Limited,SOCIAL SERVICES DAY CARE,Peoples Services,Home Care Services,A56019
London Borough of Sutton,27/01/2023,50313017,875.05,Alpenbest Limited,SOCIAL SERVICES DAY CARE,Peoples Services,Home Care Services,A56019
London Borough of Sutton,27/01/2023,50313019,"1,633.61",Alpenbest Limited,SOCIAL SERVICES DAY CARE,Peoples Services,Home Care Services,A56019
London Borough of Sutton,27/01/2023,50313020,"1,254.33",Alpenbest Limited,SOCIAL SERVICES DAY CARE,Peoples Services,Home Care Services,A56019
London Borough of Sutton,27/01/2023,50313021,"1,633.61",Alpenbest Limited,SOCIAL SERVICES DAY CARE,Peoples Services,Home Care Services,A56019
London Borough of Sutton,27/01/2023,50313025,"1,633.61",Alpenbest Limited,SOCIAL SERVICES DAY CARE,Peoples Services,Home Care Services,A56019
London Borough of Sutton,27/01/2023,50313026,806.56,Alpenbest Limited,SOCIAL SERVICES DAY CARE,Peoples Services,Home Care Services,A56019
London Borough of Sutton,27/01/2023,50313029,"1,267.28",Alpenbest Limited,SOCIAL SERVICES DAY CARE,Peoples Services,Home Care Services,A56019
London Borough of Sutton,27/01/2023,50313030,"2,844.76",Alpenbest Limited,SOCIAL SERVICES DAY CARE,Peoples Services,Home Care Services,A56019
London Borough of Sutton,27/01/2023,50313030,"1,065.03",Alpenbest Limited,SOCIAL SERVICES DAY CARE,Peoples Services,Home Care Services,A56019
London Borough of Sutton,27/01/2023,50313116,"1,633.61",Alpenbest Limited,SOCIAL SERVICES DAY CARE,Peoples Services,Home Care Services,A56019
London Borough of Sutton,27/01/2023,50313117,"3,267.22",Alpenbest Limited,SOCIAL SERVICES DAY CARE,Peoples Services,Home Care Services,A56019
London Borough of Sutton,27/01/2023,50313119,875.05,Alpenbest Limited,SOCIAL SERVICES DAY CARE,Peoples Services,Home Care Services,A56019
London Borough of Sutton,27/01/2023,50313120,588.77,Alpenbest Limited,SOCIAL SERVICES DAY CARE,Peoples Services,Home Care Services,A56019
London Borough of Sutton,27/01/2023,50313121,911.20,Alpenbest Limited,SOCIAL SERVICES DAY CARE,Peoples Services,Home Care Services,A56019
London Borough of Sutton,27/01/2023,50315809,"3,267.22",Alpenbest Limited,SOCIAL SERVICES DAY CARE,Peoples Services,Home Care Services,A56019
London Borough of Sutton,27/01/2023,50320461,"1,408.49",Alpenbest Limited,SOCIAL SERVICES DAY CARE,Peoples Services,Home Care Services,A56019
London Borough of Sutton,27/01/2023,50320475,918.69,Alpenbest Limited,SOCIAL SERVICES DAY CARE,Peoples Services,Home Care Services,A56019
London Borough of Sutton,02/02/2023,50314575,"1,013.76",REDACTED - PERSONAL DATA,GRANTS & EX GRATIA PAYMENTS,Peoples Services,Payment - Nursery Funding,A51056
London Borough of Sutton,02/02/2023,50314639,850.61,REDACTED - PERSONAL DATA,GRANTS & EX GRATIA PAYMENTS,Peoples Services,Payment - Nursery Funding,A51056
London Borough of Sutton,08/02/2023,50317845,627.00,Ambient Support Limited,SOCIAL SERVICES RESIDENTIAL,Peoples Services,Supported Living,A56088
London Borough of Sutton,13/02/2023,50317730,"1,430.00",REDACTED - PERSONAL DATA,SUNDRY SUPPLIER - EDUCATION,Peoples Services,Miscellaneous Expenses,A49000
London Borough of Sutton,17/02/2023,50319963,"3,080.00",ANA Treatment Centres Ltd,SOCIAL SERVICES RESIDENTIAL,Peoples Services,Interim Placements - Ext Provider,A56102
London Borough of Sutton,17/02/2023,50319963,-414.64,ANA Treatment Centres Ltd,SOCIAL SERVICES RESIDENTIAL,Peoples Services,Residential Care - Client Cont ( Net Paymt ),A56113
London Borough of Sutton,01/01/2023,50317021,"4,495.00",Anchor Foster Care Services Ltd,CHILDREN'S SERVICES - FOSTERING & ADOPTION SERVICES,Peoples Services,Foster Parents Support,A44110
London Borough of Sutton,01/01/2023,50317033,"3,656.76",Anchor Foster Care Services Ltd,CHILDREN'S SERVICES - FOSTERING & ADOPTION SERVICES,Peoples Services,Foster Parents Support,A44110
London Borough of Sutton,17/02/2023,50319975,"2,890.46",Anchor Trust ,SOCIAL SERVICES RESIDENTIAL,Peoples Services,Residential Care - Ext Provider,A56114
London Borough of Sutton,02/02/2023,50314620,637.95,REDACTED - PERSONAL DATA,GRANTS & EX GRATIA PAYMENTS,Peoples Services,Payment - Nursery Funding,A51056
London Borough of Sutton,30/01/2023,50313491,"1,575.00",REDACTED - PERSONAL DATA,CHILDREN'S SERVICES - SEN SERVICES,Peoples Services,Independent School Fees,A56002
London Borough of Sutton,01/02/2023,50316991,"3,476.43",Ansacare Fostering Agency Ltd,CHILDREN'S SERVICES - FOSTERING & ADOPTION SERVICES,Peoples Services,Foster Parents Support,A44110
London Borough of Sutton,01/02/2023,50317056,"3,476.43",Ansacare Fostering Agency Ltd,CHILDREN'S SERVICES - FOSTERING & ADOPTION SERVICES,Peoples Services,Foster Parents Support,A44110
London Borough of Sutton,17/01/2023,20041856,"3,500.00",Aon UK Limited,FINANCIAL / INSURANCE INSTNS,Resources,General Insurance (Excl Premises & Transport),A44260
London Borough of Sutton,31/01/2023,20041958,"10,988.80",Apex Housing Solutions Ltd,SOCIAL SERVICES DAY CARE,Environment Housing and Neighbourhoods,Bed & Breakfast,A56000
London Borough of Sutton,11/11/2022,20043574,757.50,Appello Smart Living Solutions,BUSINESS & COMPUTER SYSTEMS,Resources,Other Supplies & Services,A44291
London Borough of Sutton,20/01/2023,50313469,"5,154.66",Ark Bolingbroke Academy,CHILDREN'S SERVICES - SEN SERVICES,Peoples Services,Top-up Funding,A51016
London Borough of Sutton,18/01/2023,20041818,600.00,Arnold & Self,PREMISES - REMOVALS,HRA,External Fees and Consultants,C20000
London Borough of Sutton,04/01/2023,50317010,"6,576.34",Ascent Fostering Agency Ltd,CHILDREN'S SERVICE - OTHER,Peoples Services,Foster Parents Support,A44110
London Borough of Sutton,15/02/2023,50319570,"1,780.54",Ashlong House Ltd,SOCIAL SERVICES RESIDENTIAL,Peoples Services,Supported Living,A56088
London Borough of Sutton,15/02/2023,50319570,134.46,Ashlong House Ltd,SOCIAL SERVICES RESIDENTIAL,Peoples Services,Supported Living,A56088
London Borough of Sutton,15/02/2023,50319571,"1,312.36",Ashlong House Ltd,SOCIAL SERVICES RESIDENTIAL,Peoples Services,Supported Living,A56088
London Borough of Sutton,05/02/2023,50322516,"1,065.84",Ashlong House Ltd,SOCIAL SERVICES RESIDENTIAL,Peoples Services,Supported Living,A56088
London Borough of Sutton,17/02/2023,50320020,"-1,990.00",Ashurst Lodge Healthcare Ltd,CHILDREN'S SERVICES - RESIDENTIAL,Peoples Services,Nursing Care - 3rd party top up payment,A56023
London Borough of Sutton,17/02/2023,50320020,"3,980.00",Ashurst Lodge Healthcare Ltd,CHILDREN'S SERVICES - RESIDENTIAL,Peoples Services,Residential Care - Ext Provider,A56114
London Borough of Sutton,17/02/2023,50319959,"4,144.68",Aspen Place,SOCIAL SERVICES DAY CARE,Peoples Services,Nursing Care - Ext Provider,A56025
London Borough of Sutton,17/02/2023,50319969,"5,699.00",Aspens Charities,SOCIAL SERVICES RESIDENTIAL,Peoples Services,Residential Care - Ext Provider,A56114
London Borough of Sutton,31/01/2023,50314070,"7,356.30",Aspirations Care Ltd,SOCIAL SERVICES DAY CARE,Peoples Services,Home Care Services,A56019
London Borough of Sutton,31/01/2023,50314070,"2,480.00",Aspirations Care Ltd,SOCIAL SERVICES DAY CARE,Peoples Services,Home Care Services,A56019
London Borough of Sutton,31/01/2023,20042155,"2,400.00",Atalian Servest Limited,PREMISES - CLEANING & LAUNDRY,Resources,FM - Building Cleaning Contract - Servest,A56095
London Borough of Sutton,08/02/2023,50319896,"16,470.00",Athena Housing and Support Ltd,CHILDREN'S SERVICES - RESIDENTIAL,Peoples Services,Residential Care-Children,A56115
London Borough of Sutton,02/02/2023,50314577,"1,216.51",Aunty Connies Childcare,GRANTS & EX GRATIA PAYMENTS,Peoples Services,Payment - Nursery Funding,A51056
London Borough of Sutton,17/02/2023,50319926,"6,024.56",Autism & Aspergers Care Services,SOCIAL SERVICES RESIDENTIAL,Peoples Services,Residential Care - Ext Provider,A56114
London Borough of Sutton,02/02/2023,50317016,"49,334.28",Avance Ltd ,CHILDREN'S SERVICES - FOSTERING & ADOPTION SERVICES,Peoples Services,Residential Care-Children,A56115
London Borough of Sutton,07/02/2023,50314444,"16,586.85",Avenue Primary Acadamy,GRANTS & EX GRATIA PAYMENTS,Peoples Services,Place Funding,A56110
London Borough of Sutton,07/02/2023,50314499,"9,633.28",Avenue Primary Acadamy,GRANTS & EX GRATIA PAYMENTS,Peoples Services,Pupil Growth,A51014
London Borough of Sutton,07/02/2023,50316056,"2,760.28",Avenue Primary Acadamy,GRANTS & EX GRATIA PAYMENTS,Peoples Services,Top-up Funding,A51016
London Borough of Sutton,05/12/2022,20042602,"8,086.08",Axiell ALM Ltd,BUSINESS & COMPUTER SYSTEMS,Health and Wellbeing,Books,A43050
London Borough of Sutton,13/02/2023,50317878,"1,290.00",Ayai Care Limited,SOCIAL SERVICES DAY CARE,Peoples Services,One to One Care,A56108
London Borough of Sutton,13/02/2023,50317879,"1,720.00",Ayai Care Limited,SOCIAL SERVICES DAY CARE,Peoples Services,One to One Care,A56108
London Borough of Sutton,31/01/2023,50319892,"50,862.14",Ayai Care Limited,SOCIAL SERVICES DAY CARE,Peoples Services,Residential Care-Children,A56115
London Borough of Sutton,31/12/2022,50319895,"31,173.57",Ayai Care Limited,SOCIAL SERVICES DAY CARE,Peoples Services,Residential Care-Children,A56115
London Borough of Sutton,31/12/2022,50319899,"31,143.93",Ayai Care Limited,SOCIAL SERVICES DAY CARE,Peoples Services,Residential Care-Children,A56115
London Borough of Sutton,31/01/2023,50319900,"31,143.93",Ayai Care Limited,SOCIAL SERVICES DAY CARE,Peoples Services,Residential Care-Children,A56115
London Borough of Sutton,31/12/2022,50319901,"21,905.00",Ayai Care Limited,SOCIAL SERVICES DAY CARE,Peoples Services,Residential Care-Children,A56115
London Borough of Sutton,31/12/2022,50319901,"2,346.96",Ayai Care Limited,SOCIAL SERVICES DAY CARE,Peoples Services,Residential Care-Children,A56115
London Borough of Sutton,31/01/2023,50319902,"24,251.96",Ayai Care Limited,SOCIAL SERVICES DAY CARE,Peoples Services,Residential Care-Children,A56115
London Borough of Sutton,31/12/2022,50319903,"14,588.16",Ayai Care Limited,SOCIAL SERVICES DAY CARE,Peoples Services,Approved Lodgings,A61000
London Borough of Sutton,31/01/2023,50319904,"14,588.16",Ayai Care Limited,SOCIAL SERVICES DAY CARE,Peoples Services,Approved Lodgings,A61000
London Borough of Sutton,20/02/2023,50320855,"12,288.00",Ayai Care Limited,SOCIAL SERVICES DAY CARE,Peoples Services,Supported Living,A56088
London Borough of Sutton,20/02/2023,50320928,"12,768.00",Ayai Care Limited,SOCIAL SERVICES DAY CARE,Peoples Services,Supported Living,A56088
London Borough of Sutton,03/01/2023,20040159,"6,480.00",Ayup Digital Ltd,BUSINESS & COMPUTER SYSTEMS,Resources,Intangible Assets - Purchase,C13000
London Borough of Sutton,03/02/2023,50317014,"6,199.99",Back on Track Housing Ltd,SOCIAL SERVICES - OTHER,Peoples Services,Approved Lodgings,A61000
London Borough of Sutton,03/02/2023,50317014,276.79,Back on Track Housing Ltd,SOCIAL SERVICES - OTHER,Peoples Services,Approved Lodgings,A61000
London Borough of Sutton,03/02/2023,50317015,"1,200.00",Back on Track Housing Ltd,SOCIAL SERVICES - OTHER,Peoples Services,Approved Lodgings,A61000
London Borough of Sutton,03/02/2023,50317015,53.57,Back on Track Housing Ltd,SOCIAL SERVICES - OTHER,Peoples Services,Approved Lodgings,A61000
London Borough of Sutton,07/02/2023,50317047,"5,059.63",Back on Track Housing Ltd,SOCIAL SERVICES - OTHER,Peoples Services,Accommodation - Supported Living,A62001
London Borough of Sutton,03/02/2023,50317050,"5,225.71",Back on Track Housing Ltd,SOCIAL SERVICES - OTHER,Peoples Services,Approved Lodgings,A61000
London Borough of Sutton,27/09/2022,20040208,875.00,Baily Garner LLP,LEGAL & PROFESSIONAL SERVICES,HRA,Payments to Contractors,C14000
London Borough of Sutton,07/02/2023,50314445,"18,819.70",Bandon Hill Primary School (Academy),GRANTS & EX GRATIA PAYMENTS,Peoples Services,Place Funding,A56110
London Borough of Sutton,16/11/2022,20042124,876.01,Banner Group Limited,BOOKS PUBLICATIONS STATIONERY,Health and Wellbeing,Equipment And Materials Purchase,A40000
London Borough of Sutton,31/01/2023,50316965,"3,890.50",Banya,SOCIAL SERVICES RESIDENTIAL,Peoples Services,Foster Parents Support,A44110
London Borough of Sutton,17/02/2023,50320040,"3,880.00",Barchester Healthcare Homes Ltd,SOCIAL SERVICES RESIDENTIAL,Peoples Services,Nursing Care - Ext Provider,A56025
London Borough of Sutton,10/02/2023,20042792,"39,232.75",Barnardo's,CHILDREN'S SERVICES - RESIDENTIAL,Peoples Services,Play Groups,A56111
London Borough of Sutton,10/02/2023,20042794,"39,232.75",Barnardo's,CHILDREN'S SERVICES - RESIDENTIAL,Peoples Services,Play Groups,A56111
London Borough of Sutton,13/02/2023,50317713,526.50,REDACTED - PERSONAL DATA,CHILDREN'S SERVICES - SEN SERVICES,Peoples Services,Miscellaneous Expenses,A49000
London Borough of Sutton,27/01/2023,20041648,500.00,BCS Learning & Development Ltd,ACADEMIC INSTNS - OTHER,Health and Wellbeing,Registration & Licence Fees Payable,A44267
London Borough of Sutton,07/02/2023,50314406,"105,063.94",Beddington Infants School,GRANTS & EX GRATIA PAYMENTS,Peoples Services,Payments to Schools,A51013
London Borough of Sutton,07/02/2023,50314447,"13,397.07",Beddington Infants School,GRANTS & EX GRATIA PAYMENTS,Peoples Services,Place Funding,A56110
London Borough of Sutton,07/02/2023,50314448,"13,716.05",Beddington Park Primary (Academy),GRANTS & EX GRATIA PAYMENTS,Peoples Services,Place Funding,A56110
London Borough of Sutton,30/01/2023,20041706,"1,295.21",Beeches Tree Care,AGRICULTURAL & ESTATE SERVICES,Environment Housing and Neighbourhoods,Maintenance of trees,A28003
London Borough of Sutton,01/02/2023,20041948,"2,548.10",Beeches Tree Care,AGRICULTURAL & ESTATE SERVICES,Environment Housing and Neighbourhoods,Highway Trees - Maintenance,A28005
London Borough of Sutton,01/02/2023,20041949,"8,724.85",Beeches Tree Care,AGRICULTURAL & ESTATE SERVICES,Environment Housing and Neighbourhoods,Highway Trees - Maintenance,A28005
London Borough of Sutton,01/02/2023,20041950,"1,083.74",Beeches Tree Care,AGRICULTURAL & ESTATE SERVICES,Environment Housing and Neighbourhoods,Maintenance of trees,A28003
London Borough of Sutton,01/02/2023,20041951,"2,820.82",Beeches Tree Care,AGRICULTURAL & ESTATE SERVICES,Environment Housing and Neighbourhoods,Tree Works,A56042
London Borough of Sutton,01/02/2023,20041952,"2,151.62",Beeches Tree Care,AGRICULTURAL & ESTATE SERVICES,Environment Housing and Neighbourhoods,Maintenance of trees,A28003
London Borough of Sutton,01/02/2023,20041953,"2,811.41",Beeches Tree Care,AGRICULTURAL & ESTATE SERVICES,Environment Housing and Neighbourhoods,Highway Trees - Maintenance,A28005
London Borough of Sutton,01/02/2023,20041954,"1,879.90",Beeches Tree Care,AGRICULTURAL & ESTATE SERVICES,Environment Housing and Neighbourhoods,Maintenance of trees,A28003
London Borough of Sutton,02/02/2023,20042163,"2,151.64",Beeches Tree Care,AGRICULTURAL & ESTATE SERVICES,Environment Housing and Neighbourhoods,Maintenance of trees,A28003
London Borough of Sutton,07/02/2023,20042414,"1,640.93",Beeches Tree Care,AGRICULTURAL & ESTATE SERVICES,Environment Housing and Neighbourhoods,Maintenance of trees,A28003
London Borough of Sutton,07/02/2023,20042415,"1,730.85",Beeches Tree Care,AGRICULTURAL & ESTATE SERVICES,Environment Housing and Neighbourhoods,Highway Trees - Maintenance,A28005
London Borough of Sutton,07/02/2023,20042416,655.54,Beeches Tree Care,AGRICULTURAL & ESTATE SERVICES,Environment Housing and Neighbourhoods,Highway Trees - Maintenance,A28005
London Borough of Sutton,13/02/2023,20042962,"25,000.00",Beeches Tree Care,AGRICULTURAL & ESTATE SERVICES,Environment Housing and Neighbourhoods,External Fees and Consultants,C20000
London Borough of Sutton,14/02/2023,20042992,"8,051.27",Beeches Tree Care,AGRICULTURAL & ESTATE SERVICES,Environment Housing and Neighbourhoods,Tree Works,A56042
London Borough of Sutton,14/02/2023,20042995,"5,456.23",Beeches Tree Care,AGRICULTURAL & ESTATE SERVICES,Environment Housing and Neighbourhoods,Highway Trees - Maintenance,A28005
London Borough of Sutton,16/02/2023,20043151,"1,511.12",Beeches Tree Care,AGRICULTURAL & ESTATE SERVICES,Environment Housing and Neighbourhoods,Maintenance of trees,A28003
London Borough of Sutton,16/02/2023,20043154,555.11,Beeches Tree Care,AGRICULTURAL & ESTATE SERVICES,Environment Housing and Neighbourhoods,Purchases and Repairs Fixtures & Fittings,A25005
London Borough of Sutton,17/02/2023,20043259,"1,457.38",Beeches Tree Care,AGRICULTURAL & ESTATE SERVICES,Environment Housing and Neighbourhoods,Maintenance of trees,A28003
London Borough of Sutton,17/02/2023,20043260,"7,388.30",Beeches Tree Care,AGRICULTURAL & ESTATE SERVICES,Environment Housing and Neighbourhoods,Highway Trees - Maintenance,A28005
London Borough of Sutton,22/02/2023,20043611,578.51,Beeches Tree Care,AGRICULTURAL & ESTATE SERVICES,Environment Housing and Neighbourhoods,Tree Works,A56042
London Borough of Sutton,23/02/2023,20043709,492.69,Beeches Tree Care,AGRICULTURAL & ESTATE SERVICES,Environment Housing and Neighbourhoods,Tree Works,A56042
London Borough of Sutton,02/02/2023,50314522,"1,383.66",Belmont Village Playgroup,GRANTS & EX GRATIA PAYMENTS,Peoples Services,Payment - Nursery Funding,A51056
London Borough of Sutton,02/02/2023,50314578,"4,763.40",Belmont Village Playgroup,GRANTS & EX GRATIA PAYMENTS,Peoples Services,Payment - Nursery Funding,A51056
London Borough of Sutton,09/02/2023,50316334,"1,134.00",Belmont Village Playgroup,GRANTS & EX GRATIA PAYMENTS,Peoples Services,Predictable Needs funding,A56125
London Borough of Sutton,09/02/2023,50316336,"1,750.00",Belmont Village Playgroup,GRANTS & EX GRATIA PAYMENTS,Peoples Services,SEND Inclusion funding,A60038
London Borough of Sutton,17/02/2023,50320142,"-6,747.70",Bespoke Care Support Ltd,SOCIAL SERVICES - OTHER,Peoples Services,Nursing Care - 3rd party top up payment,A56023
London Borough of Sutton,17/02/2023,50320175,"-3,857.14",Bespoke Care Support Ltd,SOCIAL SERVICES - OTHER,Peoples Services,Nursing Care - 3rd party top up payment,A56023
London Borough of Sutton,17/02/2023,50320402,"-3,890.68",Bespoke Care Support Ltd,SOCIAL SERVICES - OTHER,Peoples Services,Nursing Care - 3rd party top up payment,A56023
London Borough of Sutton,20/02/2023,50320881,"7,781.36",Bespoke Care Support Ltd,SOCIAL SERVICES - OTHER,Peoples Services,Supported Living,A56088
London Borough of Sutton,20/02/2023,50320883,"9,000.00",Bespoke Care Support Ltd,SOCIAL SERVICES - OTHER,Peoples Services,Supported Living,A56088
London Borough of Sutton,20/02/2023,50320914,"3,600.00",Bespoke Care Support Ltd,SOCIAL SERVICES - OTHER,Peoples Services,Supported Living,A56088
London Borough of Sutton,20/02/2023,50320925,"15,230.52",Bespoke Care Support Ltd,SOCIAL SERVICES - OTHER,Peoples Services,Supported Living,A56088
London Borough of Sutton,22/01/2023,50313047,981.94,Best at Home Domiciliary Care Services Ltd,SOCIAL SERVICES DAY CARE,Peoples Services,Home Care Services,A56019
London Borough of Sutton,22/01/2023,50313053,542.50,Best at Home Domiciliary Care Services Ltd,SOCIAL SERVICES DAY CARE,Peoples Services,Home Care Services,A56019
London Borough of Sutton,22/01/2023,50313097,827.97,Best at Home Domiciliary Care Services Ltd,SOCIAL SERVICES DAY CARE,Peoples Services,Home Care Services,A56019
London Borough of Sutton,22/01/2023,50313097,150.00,Best at Home Domiciliary Care Services Ltd,SOCIAL SERVICES DAY CARE,Peoples Services,Home Care Services,A56019
London Borough of Sutton,22/01/2023,50313107,827.97,Best at Home Domiciliary Care Services Ltd,SOCIAL SERVICES DAY CARE,Peoples Services,Home Care Services,A56019
London Borough of Sutton,22/01/2023,50314153,901.97,Best at Home Domiciliary Care Services Ltd,SOCIAL SERVICES DAY CARE,Peoples Services,Home Care Services,A56019
London Borough of Sutton,29/01/2023,50316582,981.94,Best at Home Domiciliary Care Services Ltd,SOCIAL SERVICES DAY CARE,Peoples Services,Home Care Services,A56019
London Borough of Sutton,29/01/2023,50316585,509.98,Best at Home Domiciliary Care Services Ltd,SOCIAL SERVICES DAY CARE,Peoples Services,Home Care Services,A56019
London Borough of Sutton,29/01/2023,50316600,542.50,Best at Home Domiciliary Care Services Ltd,SOCIAL SERVICES DAY CARE,Peoples Services,Home Care Services,A56019
London Borough of Sutton,29/01/2023,50316625,"3,156.00",Best at Home Domiciliary Care Services Ltd,SOCIAL SERVICES DAY CARE,Peoples Services,Home Care Services,A56019
London Borough of Sutton,29/01/2023,50316630,827.97,Best at Home Domiciliary Care Services Ltd,SOCIAL SERVICES DAY CARE,Peoples Services,Home Care Services,A56019
London Borough of Sutton,29/01/2023,50316630,150.00,Best at Home Domiciliary Care Services Ltd,SOCIAL SERVICES DAY CARE,Peoples Services,Home Care Services,A56019
London Borough of Sutton,29/01/2023,50316634,827.97,Best at Home Domiciliary Care Services Ltd,SOCIAL SERVICES DAY CARE,Peoples Services,Home Care Services,A56019
London Borough of Sutton,29/01/2023,50316637,"3,156.00",Best at Home Domiciliary Care Services Ltd,SOCIAL SERVICES DAY CARE,Peoples Services,Home Care Services,A56019
London Borough of Sutton,29/01/2023,50316639,"3,156.00",Best at Home Domiciliary Care Services Ltd,SOCIAL SERVICES DAY CARE,Peoples Services,Home Care Services,A56019
London Borough of Sutton,29/01/2023,50316645,901.97,Best at Home Domiciliary Care Services Ltd,SOCIAL SERVICES DAY CARE,Peoples Services,Home Care Services,A56019
London Borough of Sutton,08/01/2023,50319236,516.48,Best at Home Domiciliary Care Services Ltd,SOCIAL SERVICES DAY CARE,Peoples Services,Home Care Services,A56019
London Borough of Sutton,26/06/2022,50319240,"2,786.00",Best at Home Domiciliary Care Services Ltd,SOCIAL SERVICES DAY CARE,Peoples Services,Home Care Services,A56019
London Borough of Sutton,03/07/2022,50319241,"3,156.00",Best at Home Domiciliary Care Services Ltd,SOCIAL SERVICES DAY CARE,Peoples Services,Home Care Services,A56019
London Borough of Sutton,19/02/2023,50321856,981.94,Best at Home Domiciliary Care Services Ltd,SOCIAL SERVICES DAY CARE,Peoples Services,Home Care Services,A56019
London Borough of Sutton,19/02/2023,50321858,542.50,Best at Home Domiciliary Care Services Ltd,SOCIAL SERVICES DAY CARE,Peoples Services,Home Care Services,A56019
London Borough of Sutton,19/02/2023,50321879,827.97,Best at Home Domiciliary Care Services Ltd,SOCIAL SERVICES DAY CARE,Peoples Services,Home Care Services,A56019
London Borough of Sutton,19/02/2023,50321879,150.00,Best at Home Domiciliary Care Services Ltd,SOCIAL SERVICES DAY CARE,Peoples Services,Home Care Services,A56019
London Borough of Sutton,19/02/2023,50321884,"3,156.00",Best at Home Domiciliary Care Services Ltd,SOCIAL SERVICES DAY CARE,Peoples Services,Home Care Services,A56019
London Borough of Sutton,19/02/2023,50321890,827.97,Best at Home Domiciliary Care Services Ltd,SOCIAL SERVICES DAY CARE,Peoples Services,Home Care Services,A56019
London Borough of Sutton,19/02/2023,50321893,"3,156.00",Best at Home Domiciliary Care Services Ltd,SOCIAL SERVICES DAY CARE,Peoples Services,Home Care Services,A56019
London Borough of Sutton,19/02/2023,50321900,901.97,Best at Home Domiciliary Care Services Ltd,SOCIAL SERVICES DAY CARE,Peoples Services,Home Care Services,A56019
London Borough of Sutton,19/02/2023,50321902,"3,156.00",Best at Home Domiciliary Care Services Ltd,SOCIAL SERVICES DAY CARE,Peoples Services,Home Care Services,A56019
London Borough of Sutton,31/01/2023,20042816,"7,538.50",Bestcourt UK Ltd,ACCOMMODATION BED & BREAKFAST,Environment Housing and Neighbourhoods,Bed & Breakfast,A56000
London Borough of Sutton,20/02/2023,50320852,"4,200.00",BETTER LIFE SUPPORTED LIVING LIMITED,SOCIAL SERVICES RESIDENTIAL,Peoples Services,One to One Care,A56108
London Borough of Sutton,30/11/2022,20040666,"1,150.00",Bevan Brittan LLP,LEGAL & PROFESSIONAL SERVICES,HRA,External Legal Fees,C20008
London Borough of Sutton,31/10/2022,20040731,"2,275.20",Bevan Brittan LLP,LEGAL & PROFESSIONAL SERVICES,HRA,External Legal Fees,C20008
London Borough of Sutton,02/02/2023,50314675,"5,103.65",Bizzy Bees Day Nursery,GRANTS & EX GRATIA PAYMENTS,Peoples Services,Payment - Nursery Funding,A51056
London Borough of Sutton,10/02/2023,20042722,"40,000.00",Bloom Procurement Services Ltd,TEMP STAFF & CONSULTANCY,Resources,Professional Fees,A44066
London Borough of Sutton,10/02/2023,20042723,"11,500.00",Bloom Procurement Services Ltd,TEMP STAFF & CONSULTANCY,Resources,Professional Fees,A44066
London Borough of Sutton,17/02/2023,50320038,"3,942.88",BNP Care Ltd,SOCIAL SERVICES RESIDENTIAL,Peoples Services,Residential Care - Ext Provider,A56114
London Borough of Sutton,17/02/2023,50319919,"2,400.00",Brama Care Ltd,SOCIAL SERVICES-HOME CARE,Peoples Services,Nursing Care - Ext Provider,A56025
London Borough of Sutton,17/02/2023,50319944,"6,728.26",Bramley Health Ltd,SOCIAL SERVICES RESIDENTIAL,Peoples Services,Interim Placements - Ext Provider,A56102
London Borough of Sutton,17/02/2023,50320106,-298.84,Bridge House Care Centre,SOCIAL SERVICES RESIDENTIAL,Peoples Services,Nursing Care - 3rd party top up payment,A56023
London Borough of Sutton,17/02/2023,50320106,"1,864.73",Bridge House Care Centre,SOCIAL SERVICES RESIDENTIAL,Peoples Services,Nursing Care Short Term,A56026
London Borough of Sutton,17/02/2023,50320126,"3,821.24",Bridge House Care Centre,SOCIAL SERVICES RESIDENTIAL,Peoples Services,Nursing Care - Ext Provider,A56025
London Borough of Sutton,17/02/2023,50320126,-836.76,Bridge House Care Centre,SOCIAL SERVICES RESIDENTIAL,Peoples Services,Nursing Care - 3rd party top up payment,A56023
London Borough of Sutton,17/02/2023,50320127,-836.76,Bridge House Care Centre,SOCIAL SERVICES RESIDENTIAL,Peoples Services,Nursing Care - 3rd party top up payment,A56023
London Borough of Sutton,17/02/2023,50320127,"3,821.24",Bridge House Care Centre,SOCIAL SERVICES RESIDENTIAL,Peoples Services,Nursing Care Short Term,A56026
London Borough of Sutton,17/02/2023,50320188,"3,736.00",Bridge House Care Centre,SOCIAL SERVICES RESIDENTIAL,Peoples Services,Nursing Care - Ext Provider,A56025
London Borough of Sutton,17/02/2023,50320188,-750.40,Bridge House Care Centre,SOCIAL SERVICES RESIDENTIAL,Peoples Services,Nursing Care - 3rd party top up payment,A56023
London Borough of Sutton,17/02/2023,50320189,"3,822.36",Bridge House Care Centre,SOCIAL SERVICES RESIDENTIAL,Peoples Services,Nursing Care - Ext Provider,A56025
London Borough of Sutton,17/02/2023,50320189,-836.76,Bridge House Care Centre,SOCIAL SERVICES RESIDENTIAL,Peoples Services,Nursing Care - 3rd party top up payment,A56023
London Borough of Sutton,17/02/2023,50320191,-750.40,Bridge House Care Centre,SOCIAL SERVICES RESIDENTIAL,Peoples Services,Nursing Care - 3rd party top up payment,A56023
London Borough of Sutton,17/02/2023,50320191,"3,848.24",Bridge House Care Centre,SOCIAL SERVICES RESIDENTIAL,Peoples Services,Nursing Care - Ext Provider,A56025
London Borough of Sutton,17/02/2023,50320192,"3,734.88",Bridge House Care Centre,SOCIAL SERVICES RESIDENTIAL,Peoples Services,Nursing Care - Ext Provider,A56025
London Borough of Sutton,17/02/2023,50320218,-750.40,Bridge House Care Centre,SOCIAL SERVICES RESIDENTIAL,Peoples Services,Nursing Care - 3rd party top up payment,A56023
London Borough of Sutton,17/02/2023,50320219,"3,848.24",Bridge House Care Centre,SOCIAL SERVICES RESIDENTIAL,Peoples Services,Nursing Care - Ext Provider,A56025
London Borough of Sutton,17/02/2023,50320219,-750.40,Bridge House Care Centre,SOCIAL SERVICES RESIDENTIAL,Peoples Services,Nursing Care - 3rd party top up payment,A56023
London Borough of Sutton,17/02/2023,50320283,"3,720.16",Bridge House Care Centre,SOCIAL SERVICES RESIDENTIAL,Peoples Services,Nursing Care - Ext Provider,A56025
London Borough of Sutton,17/02/2023,50320283,-735.68,Bridge House Care Centre,SOCIAL SERVICES RESIDENTIAL,Peoples Services,Nursing Care - 3rd party top up payment,A56023
London Borough of Sutton,17/02/2023,50320284,"3,848.24",Bridge House Care Centre,SOCIAL SERVICES RESIDENTIAL,Peoples Services,Nursing Care - Ext Provider,A56025
London Borough of Sutton,17/02/2023,50320284,-750.40,Bridge House Care Centre,SOCIAL SERVICES RESIDENTIAL,Peoples Services,Nursing Care - 3rd party top up payment,A56023
London Borough of Sutton,17/02/2023,50320314,"3,734.88",Bridge House Care Centre,SOCIAL SERVICES RESIDENTIAL,Peoples Services,Nursing Care - Ext Provider,A56025
London Borough of Sutton,17/02/2023,50320314,-750.40,Bridge House Care Centre,SOCIAL SERVICES RESIDENTIAL,Peoples Services,Nursing Care - 3rd party top up payment,A56023
London Borough of Sutton,17/02/2023,50320331,"3,665.20",Bridge House Care Centre,SOCIAL SERVICES RESIDENTIAL,Peoples Services,Nursing Care - Ext Provider,A56025
London Borough of Sutton,17/02/2023,50320331,-632.64,Bridge House Care Centre,SOCIAL SERVICES RESIDENTIAL,Peoples Services,Nursing Care - 3rd party top up payment,A56023
London Borough of Sutton,17/02/2023,50320332,-836.76,Bridge House Care Centre,SOCIAL SERVICES RESIDENTIAL,Peoples Services,Nursing Care - 3rd party top up payment,A56023
London Borough of Sutton,17/02/2023,50320332,"3,900.00",Bridge House Care Centre,SOCIAL SERVICES RESIDENTIAL,Peoples Services,Respite Care,A56116
London Borough of Sutton,17/02/2023,50320362,-750.40,Bridge House Care Centre,SOCIAL SERVICES RESIDENTIAL,Peoples Services,Nursing Care - 3rd party top up payment,A56023
London Borough of Sutton,17/02/2023,50320362,"3,734.88",Bridge House Care Centre,SOCIAL SERVICES RESIDENTIAL,Peoples Services,Nursing Care Short Term,A56026
London Borough of Sutton,17/02/2023,50320379,553.20,Bridge House Care Centre,SOCIAL SERVICES RESIDENTIAL,Peoples Services,Nursing Care Short Term,A56026
London Borough of Sutton,17/02/2023,50320380,"3,579.44",Bridge House Care Centre,SOCIAL SERVICES RESIDENTIAL,Peoples Services,Nursing Care - Ext Provider,A56025
London Borough of Sutton,17/02/2023,50320380,-632.64,Bridge House Care Centre,SOCIAL SERVICES RESIDENTIAL,Peoples Services,Nursing Care - 3rd party top up payment,A56023
London Borough of Sutton,17/02/2023,50320419,"3,821.24",Bridge House Care Centre,SOCIAL SERVICES RESIDENTIAL,Peoples Services,Nursing Care - Ext Provider,A56025
London Borough of Sutton,17/02/2023,50320419,-836.76,Bridge House Care Centre,SOCIAL SERVICES RESIDENTIAL,Peoples Services,Nursing Care - 3rd party top up payment,A56023
London Borough of Sutton,17/02/2023,50320433,"3,301.94",Bridge House Care Centre,SOCIAL SERVICES RESIDENTIAL,Peoples Services,Nursing Care - Ext Provider,A56025
London Borough of Sutton,17/02/2023,50320433,-536.00,Bridge House Care Centre,SOCIAL SERVICES RESIDENTIAL,Peoples Services,Nursing Care - 3rd party top up payment,A56023
London Borough of Sutton,24/02/2023,50322197,"10,033.55",Bridge House Care Centre,SOCIAL SERVICES RESIDENTIAL,Peoples Services,Nursing Care Short Term,A56026
London Borough of Sutton,02/02/2023,50314654,956.93,REDACTED - PERSONAL DATA,TEMP STAFF & CONSULTANCY,Peoples Services,Payment - Nursery Funding,A51056
London Borough of Sutton,01/01/2023,50317024,"3,498.57",Bridging Gaps Limited,CHILDREN'S SERVICES - FOSTERING & ADOPTION SERVICES,Peoples Services,Foster Parents Support,A44110
London Borough of Sutton,17/01/2023,50317038,"1,692.86",Bridging Gaps Limited,CHILDREN'S SERVICES - FOSTERING & ADOPTION SERVICES,Peoples Services,Foster Parents Support,A44110
London Borough of Sutton,17/01/2023,50317032,"4,041.07",Bridging the Gap,CHILDREN'S SERVICE - OTHER,Peoples Services,Approved Lodgings,A61000
London Borough of Sutton,01/01/2023,50317026,"3,506.41",Brighter Futures Foster Care Ltd,CHILDREN'S SERVICES - FOSTERING & ADOPTION SERVICES,Peoples Services,Foster Parents Support,A44110
London Borough of Sutton,01/01/2023,50317029,"3,164.17",Brighter Futures Foster Care Ltd,CHILDREN'S SERVICES - FOSTERING & ADOPTION SERVICES,Peoples Services,Foster Parents Support,A44110
London Borough of Sutton,01/01/2023,50317030,"3,506.41",Brighter Futures Foster Care Ltd,CHILDREN'S SERVICES - FOSTERING & ADOPTION SERVICES,Peoples Services,Foster Parents Support,A44110
London Borough of Sutton,23/01/2023,20041739,"1,446.88",British Gas,UTILITIES,Resources,Gas,A21003
London Borough of Sutton,03/02/2023,20042921,"2,350.16",British Gas,UTILITIES,Resources,Electricity,A21000
London Borough of Sutton,17/02/2023,50319982,-772.64,British Home & Hospital For Incurables,SOCIAL SERVICES RESIDENTIAL,Peoples Services,Nursing Care - Client Cont ( Net paymt ),A56024
London Borough of Sutton,17/02/2023,50319982,"2,591.80",British Home & Hospital For Incurables,SOCIAL SERVICES RESIDENTIAL,Peoples Services,Nursing Care - Ext Provider,A56025
London Borough of Sutton,31/12/2022,20041857,"9,710.34",Brockwell Care,ACCOMMODATION - OTHER,Peoples Services,One to One Care,A56108
London Borough of Sutton,02/02/2023,50316041,"1,833.29",Brunel SEN Multi Academy Trust,CHILDREN'S SERVICES - SEN SERVICES,Peoples Services,Top-up Funding,A51016
London Borough of Sutton,27/01/2023,20041667,"1,110.42",BT Business Direct Ltd,BUSINESS & COMPUTER SYSTEMS,Health and Wellbeing,Equipment And Materials Purchase,A40000
London Borough of Sutton,31/01/2023,20042969,"2,800.00",Buchanan Computing Ltd,FINANCIAL / INSURANCE INSTNS,Environment Housing and Neighbourhoods,IT Software Maintenance,A45045
London Borough of Sutton,02/02/2023,50314527,"5,097.71",Bumpsa Daisies Nurserys,GRANTS & EX GRATIA PAYMENTS,Peoples Services,Payment - Nursery Funding,A51056
London Borough of Sutton,02/02/2023,50314587,"10,644.48",Bumpsa Daisies Nurserys,GRANTS & EX GRATIA PAYMENTS,Peoples Services,Payment - Nursery Funding,A51056
London Borough of Sutton,17/02/2023,50320173,"-1,225.26",Bupa Care Services,SOCIAL SERVICES RESIDENTIAL,Peoples Services,Nursing Care - 3rd party top up payment,A56023
London Borough of Sutton,17/02/2023,50320173,"5,595.39",Bupa Care Services,SOCIAL SERVICES RESIDENTIAL,Peoples Services,Nursing Care Short Term,A56026
London Borough of Sutton,17/02/2023,50320174,-836.76,Bupa Care Services,SOCIAL SERVICES RESIDENTIAL,Peoples Services,Nursing Care - 3rd party top up payment,A56023
London Borough of Sutton,17/02/2023,50320174,"3,821.24",Bupa Care Services,SOCIAL SERVICES RESIDENTIAL,Peoples Services,Nursing Care - Ext Provider,A56025
London Borough of Sutton,17/02/2023,50320242,-836.76,Bupa Care Services,SOCIAL SERVICES RESIDENTIAL,Peoples Services,Nursing Care - 3rd party top up payment,A56023
London Borough of Sutton,17/02/2023,50320242,"7,084.60",Bupa Care Services,SOCIAL SERVICES RESIDENTIAL,Peoples Services,Nursing Care Short Term,A56026
London Borough of Sutton,17/02/2023,50320388,"-4,163.96",Bupa Care Services,SOCIAL SERVICES RESIDENTIAL,Peoples Services,Nursing Care - 3rd party top up payment,A56023
London Borough of Sutton,17/02/2023,50320388,"7,491.16",Bupa Care Services,SOCIAL SERVICES RESIDENTIAL,Peoples Services,Nursing Care Short Term,A56026
London Borough of Sutton,02/02/2023,50314529,"1,092.36",Busy Bees Day Nurseries Ltd,GRANTS & EX GRATIA PAYMENTS,Peoples Services,Payment - Nursery Funding,A51056
London Borough of Sutton,02/02/2023,50314589,"16,504.01",Busy Bees Day Nurseries Ltd,GRANTS & EX GRATIA PAYMENTS,Peoples Services,Payment - Nursery Funding,A51056
London Borough of Sutton,02/02/2023,50314528,606.87,Busy Bees Day Nurseries Ltd,GRANTS & EX GRATIA PAYMENTS,Peoples Services,Payment - Nursery Funding,A51056
London Borough of Sutton,02/02/2023,50314588,"16,118.78",Busy Bees Day Nurseries Ltd,GRANTS & EX GRATIA PAYMENTS,Peoples Services,Payment - Nursery Funding,A51056
London Borough of Sutton,17/02/2023,50319981,"8,118.48",Butterfly's Care Homes Ltd,SOCIAL SERVICES RESIDENTIAL,Peoples Services,Residential Care - Ext Provider,A56114
London Borough of Sutton,01/02/2023,50316949,"4,667.05",By The Bridge Ltd,CHILDREN'S SERVICES - FOSTERING & ADOPTION SERVICES,Peoples Services,Foster Parents Support,A44110
London Borough of Sutton,01/02/2023,50316966,"2,975.69",By The Bridge Ltd,CHILDREN'S SERVICES - FOSTERING & ADOPTION SERVICES,Peoples Services,Foster Parents Support,A44110
London Borough of Sutton,01/02/2023,50316968,"2,975.69",By The Bridge Ltd,CHILDREN'S SERVICES - FOSTERING & ADOPTION SERVICES,Peoples Services,Foster Parents Support,A44110
London Borough of Sutton,26/01/2023,20041651,"26,894.02",Cablesheer (Asbestos) Ltd,CONSTRUCTION INDUSTRY,HRA,Payments to Contractors,C14000
London Borough of Sutton,13/01/2023,20041652,"98,017.62",Cablesheer (Asbestos) Ltd,CONSTRUCTION INDUSTRY,HRA,Payments to Contractors,C14000
London Borough of Sutton,20/12/2022,50317022,"24,374.68",Calcot Services for Children Ltd,CHILDREN'S SERVICES - FOSTERING & ADOPTION SERVICES,Peoples Services,Residential Care-Children,A56115
London Borough of Sutton,26/01/2023,50313483,"3,800.00",Cambian Childcare Ltd,CHILDREN'S SERVICES - FOSTERING & ADOPTION SERVICES,Peoples Services,Independent School Fees,A56002
London Borough of Sutton,21/12/2022,50316976,"20,105.67",Cambian Childcare Ltd,CHILDREN'S SERVICES - FOSTERING & ADOPTION SERVICES,Peoples Services,Residential Care-Children,A56115
London Borough of Sutton,21/12/2022,50317023,"32,284.29",Cambian Childcare Ltd,CHILDREN'S SERVICES - FOSTERING & ADOPTION SERVICES,Peoples Services,Residential Care-Children,A56115
London Borough of Sutton,17/02/2023,50319993,-965.84,Canterbury Oast Trust,SOCIAL SERVICES RESIDENTIAL,Peoples Services,Residential Care - Client Cont ( Net Paymt ),A56113
London Borough of Sutton,17/02/2023,50319993,204.72,Canterbury Oast Trust,SOCIAL SERVICES RESIDENTIAL,Peoples Services,One to One Care,A56108
London Borough of Sutton,17/02/2023,50319993,"4,060.72",Canterbury Oast Trust,SOCIAL SERVICES RESIDENTIAL,Peoples Services,Residential Care - Ext Provider,A56114
London Borough of Sutton,02/02/2023,50316995,"49,377.71",Canterbury Support Ltd,CHILDREN'S SERVICE - OTHER,Peoples Services,Residential Care-Children,A56115
London Borough of Sutton,21/11/2022,20037133,"3,767.00",Capital Hair and Beauty,ACADEMIC - STUDENT FEES,Health and Wellbeing,Equipment And Materials Purchase,A40000
London Borough of Sutton,26/10/2022,20041362,556.05,Capital Hair and Beauty,ACADEMIC - STUDENT FEES,Health and Wellbeing,Equipment And Materials Purchase,A40000
London Borough of Sutton,31/01/2023,50316985,"5,695.01",Capstone Foster Care (South East) Ltd,CHILDREN'S SERVICES - FOSTERING & ADOPTION SERVICES,Peoples Services,Foster Parents Support,A44110
London Borough of Sutton,31/01/2023,50317057,"5,690.67",Capstone Foster Care (South East) Ltd,CHILDREN'S SERVICES - FOSTERING & ADOPTION SERVICES,Peoples Services,Foster Parents Support,A44110
London Borough of Sutton,31/01/2023,50314370,"-3,635.06",Care Advocates Ltd,MANAGEMENT & TRAINING SERVICES,Peoples Services,Supported Living,A56088
London Borough of Sutton,31/01/2023,50314370,"6,547.20",Care Advocates Ltd,MANAGEMENT & TRAINING SERVICES,Peoples Services,Supported Living,A56088
London Borough of Sutton,31/01/2023,50314370,"2,573.31",Care Advocates Ltd,MANAGEMENT & TRAINING SERVICES,Peoples Services,Supported Living,A56088
London Borough of Sutton,31/01/2023,50314371,"3,909.72",Care Advocates Ltd,MANAGEMENT & TRAINING SERVICES,Peoples Services,Supported Living,A56088
London Borough of Sutton,31/01/2023,50314371,"2,976.00",Care Advocates Ltd,MANAGEMENT & TRAINING SERVICES,Peoples Services,Supported Living,A56088
London Borough of Sutton,31/01/2023,50314371,"2,573.31",Care Advocates Ltd,MANAGEMENT & TRAINING SERVICES,Peoples Services,Supported Living,A56088
London Borough of Sutton,31/01/2023,50320797,"1,800.70",Care Advocates Ltd,MANAGEMENT & TRAINING SERVICES,Peoples Services,Supported Living,A56088
London Borough of Sutton,31/01/2023,50320797,"2,465.83",Care Advocates Ltd,MANAGEMENT & TRAINING SERVICES,Peoples Services,Supported Living,A56088
London Borough of Sutton,31/01/2023,50320797,"2,573.31",Care Advocates Ltd,MANAGEMENT & TRAINING SERVICES,Peoples Services,Supported Living,A56088
London Borough of Sutton,17/02/2023,50320035,"3,320.32",Care Concern Group t/a Haling Park Care Home,SOCIAL SERVICES RESIDENTIAL,Peoples Services,Residential Care - Ext Provider,A56114
London Borough of Sutton,20/02/2023,50320858,"1,870.00",Care Connexions UK Limited,SOCIAL SERVICES RESIDENTIAL,Peoples Services,One to One Care,A56108
London Borough of Sutton,17/02/2023,50319923,"3,768.36",Care Direct Uk Ltd  (David House),SOCIAL SERVICES RESIDENTIAL,Peoples Services,Residential Care - Ext Provider,A56114
London Borough of Sutton,13/01/2023,20040857,627.52,Care for the Family,OPERATIONAL EQUIPMENT/MATERIAL,Health and Wellbeing,Learning Resources (Class Materials),A43016
London Borough of Sutton,29/01/2023,50317122,591.54,Care More Ltd,SOCIAL SERVICES RESIDENTIAL,Peoples Services,Home Care Services,A56019
London Borough of Sutton,29/01/2023,50317125,773.54,Care More Ltd,SOCIAL SERVICES RESIDENTIAL,Peoples Services,Home Care Services,A56019
London Borough of Sutton,29/01/2023,50317146,45.50,Care More Ltd,SOCIAL SERVICES RESIDENTIAL,Peoples Services,Home Care Services,A56019
London Borough of Sutton,29/01/2023,50317146,773.54,Care More Ltd,SOCIAL SERVICES RESIDENTIAL,Peoples Services,Home Care Services,A56019
London Borough of Sutton,29/01/2023,50317193,773.54,Care More Ltd,SOCIAL SERVICES RESIDENTIAL,Peoples Services,Home Care Services,A56019
London Borough of Sutton,29/01/2023,50317194,787.54,Care More Ltd,SOCIAL SERVICES RESIDENTIAL,Peoples Services,Home Care Services,A56019
London Borough of Sutton,29/01/2023,50317202,728.00,Care More Ltd,SOCIAL SERVICES RESIDENTIAL,Peoples Services,Home Care Services,A56019
London Borough of Sutton,29/01/2023,50317207,20.00,Care More Ltd,SOCIAL SERVICES RESIDENTIAL,Peoples Services,Home Care Services,A56019
London Borough of Sutton,29/01/2023,50317207,917.07,Care More Ltd,SOCIAL SERVICES RESIDENTIAL,Peoples Services,Home Care Services,A56019
London Borough of Sutton,29/01/2023,50317219,826.00,Care More Ltd,SOCIAL SERVICES RESIDENTIAL,Peoples Services,Home Care Services,A56019
London Borough of Sutton,29/01/2023,50317232,773.54,Care More Ltd,SOCIAL SERVICES RESIDENTIAL,Peoples Services,Home Care Services,A56019
London Borough of Sutton,19/11/2022,50320459,"1,547.00",Care More Ltd,SOCIAL SERVICES RESIDENTIAL,Peoples Services,Home Care Services,A56019
London Borough of Sutton,29/01/2023,50320469,568.77,Care More Ltd,SOCIAL SERVICES RESIDENTIAL,Peoples Services,Home Care Services,A56019
London Borough of Sutton,29/01/2023,50321804,917.07,Care More Ltd,SOCIAL SERVICES RESIDENTIAL,Peoples Services,Home Care Services,A56019
London Borough of Sutton,15/01/2023,50321805,917.07,Care More Ltd,SOCIAL SERVICES RESIDENTIAL,Peoples Services,Home Care Services,A56019
London Borough of Sutton,22/01/2023,50321806,917.07,Care More Ltd,SOCIAL SERVICES RESIDENTIAL,Peoples Services,Home Care Services,A56019
London Borough of Sutton,22/01/2023,50321808,516.77,Care More Ltd,SOCIAL SERVICES RESIDENTIAL,Peoples Services,Home Care Services,A56019
London Borough of Sutton,16/01/2023,20043321,"18,304.00",Care Quality Commission,SUBSCRIPTIONS & PUBLICATIONS,Peoples Services,Fees,A44040
London Borough of Sutton,17/02/2023,50319918,-438.80,Care UK Homecare Ltd,SOCIAL SERVICES RESIDENTIAL,Peoples Services,Residential Care - Client Cont ( Net Paymt ),A56113
London Borough of Sutton,17/02/2023,50319918,"4,772.96",Care UK Homecare Ltd,SOCIAL SERVICES RESIDENTIAL,Peoples Services,Residential Care - Ext Provider,A56114
London Borough of Sutton,17/02/2023,50320197,"4,200.00",Care UK Homecare Ltd,SOCIAL SERVICES RESIDENTIAL,Peoples Services,Nursing Care Short Term,A56026
London Borough of Sutton,17/02/2023,50320248,"3,960.00",Care UK Homecare Ltd,SOCIAL SERVICES RESIDENTIAL,Peoples Services,Nursing Care - Ext Provider,A56025
London Borough of Sutton,17/02/2023,50320248,-836.76,Care UK Homecare Ltd,SOCIAL SERVICES RESIDENTIAL,Peoples Services,Nursing Care - 3rd party top up payment,A56023
London Borough of Sutton,17/02/2023,50320382,-836.76,Care UK Homecare Ltd,SOCIAL SERVICES RESIDENTIAL,Peoples Services,Nursing Care - 3rd party top up payment,A56023
London Borough of Sutton,17/02/2023,50320382,"4,200.00",Care UK Homecare Ltd,SOCIAL SERVICES RESIDENTIAL,Peoples Services,Nursing Care Short Term,A56026
London Borough of Sutton,17/02/2023,50320393,-662.24,Care UK Homecare Ltd,SOCIAL SERVICES RESIDENTIAL,Peoples Services,Nursing Care - 3rd party top up payment,A56023
London Borough of Sutton,17/02/2023,50320393,"3,696.24",Care UK Homecare Ltd,SOCIAL SERVICES RESIDENTIAL,Peoples Services,Nursing Care - Ext Provider,A56025
London Borough of Sutton,08/02/2023,50317227,410.56,Care Unlimited Domcare Ltd,SOCIAL SERVICES DAY CARE,Peoples Services,Supported Living,A56088
London Borough of Sutton,08/02/2023,50317227,"1,056.88",Care Unlimited Domcare Ltd,SOCIAL SERVICES DAY CARE,Peoples Services,Supported Living,A56088
London Borough of Sutton,08/02/2023,50317227,"3,595.20",Care Unlimited Domcare Ltd,SOCIAL SERVICES DAY CARE,Peoples Services,Supported Living,A56088
London Borough of Sutton,08/02/2023,50317228,410.56,Care Unlimited Domcare Ltd,SOCIAL SERVICES DAY CARE,Peoples Services,Supported Living,A56088
London Borough of Sutton,08/02/2023,50317228,"1,056.88",Care Unlimited Domcare Ltd,SOCIAL SERVICES DAY CARE,Peoples Services,Supported Living,A56088
London Borough of Sutton,08/02/2023,50317228,"3,595.20",Care Unlimited Domcare Ltd,SOCIAL SERVICES DAY CARE,Peoples Services,Supported Living,A56088
London Borough of Sutton,08/02/2023,50317229,410.56,Care Unlimited Domcare Ltd,SOCIAL SERVICES DAY CARE,Peoples Services,Supported Living,A56088
London Borough of Sutton,08/02/2023,50317229,"1,056.88",Care Unlimited Domcare Ltd,SOCIAL SERVICES DAY CARE,Peoples Services,Supported Living,A56088
London Borough of Sutton,08/02/2023,50317229,"3,595.20",Care Unlimited Domcare Ltd,SOCIAL SERVICES DAY CARE,Peoples Services,Supported Living,A56088
London Borough of Sutton,08/02/2023,50317230,410.56,Care Unlimited Domcare Ltd,SOCIAL SERVICES DAY CARE,Peoples Services,Supported Living,A56088
London Borough of Sutton,08/02/2023,50317230,"1,056.88",Care Unlimited Domcare Ltd,SOCIAL SERVICES DAY CARE,Peoples Services,Supported Living,A56088
London Borough of Sutton,08/02/2023,50317230,"3,595.20",Care Unlimited Domcare Ltd,SOCIAL SERVICES DAY CARE,Peoples Services,Supported Living,A56088
London Borough of Sutton,08/02/2023,50320470,"5,931.52",Care Unlimited Domcare Ltd,SOCIAL SERVICES DAY CARE,Peoples Services,Supported Living,A56088
London Borough of Sutton,20/02/2023,50322473,410.56,Care Unlimited Domcare Ltd,SOCIAL SERVICES DAY CARE,Peoples Services,Supported Living,A56088
London Borough of Sutton,20/02/2023,50322473,"1,056.88",Care Unlimited Domcare Ltd,SOCIAL SERVICES DAY CARE,Peoples Services,Supported Living,A56088
London Borough of Sutton,20/02/2023,50322473,"3,595.20",Care Unlimited Domcare Ltd,SOCIAL SERVICES DAY CARE,Peoples Services,Supported Living,A56088
London Borough of Sutton,20/02/2023,50322476,410.56,Care Unlimited Domcare Ltd,SOCIAL SERVICES DAY CARE,Peoples Services,Supported Living,A56088
London Borough of Sutton,20/02/2023,50322476,"1,056.88",Care Unlimited Domcare Ltd,SOCIAL SERVICES DAY CARE,Peoples Services,Supported Living,A56088
London Borough of Sutton,20/02/2023,50322476,"3,595.20",Care Unlimited Domcare Ltd,SOCIAL SERVICES DAY CARE,Peoples Services,Supported Living,A56088
London Borough of Sutton,20/02/2023,50322477,410.56,Care Unlimited Domcare Ltd,SOCIAL SERVICES DAY CARE,Peoples Services,Supported Living,A56088
London Borough of Sutton,20/02/2023,50322477,"1,056.88",Care Unlimited Domcare Ltd,SOCIAL SERVICES DAY CARE,Peoples Services,Supported Living,A56088
London Borough of Sutton,20/02/2023,50322477,"3,595.20",Care Unlimited Domcare Ltd,SOCIAL SERVICES DAY CARE,Peoples Services,Supported Living,A56088
London Borough of Sutton,20/02/2023,50322478,410.56,Care Unlimited Domcare Ltd,SOCIAL SERVICES DAY CARE,Peoples Services,Supported Living,A56088
London Borough of Sutton,20/02/2023,50322478,"1,056.88",Care Unlimited Domcare Ltd,SOCIAL SERVICES DAY CARE,Peoples Services,Supported Living,A56088
London Borough of Sutton,20/02/2023,50322478,"3,595.20",Care Unlimited Domcare Ltd,SOCIAL SERVICES DAY CARE,Peoples Services,Supported Living,A56088
London Borough of Sutton,02/02/2023,50315762,"2,252.00",Care4Care Services Ltd,SOCIAL SERVICES DAY CARE,Peoples Services,Home Care Services,A56019
London Borough of Sutton,02/02/2023,50315812,"1,070.60",Care4Care Services Ltd,SOCIAL SERVICES DAY CARE,Peoples Services,Home Care Services,A56019
London Borough of Sutton,02/02/2023,50315841,909.50,Care4Care Services Ltd,SOCIAL SERVICES DAY CARE,Peoples Services,Home Care Services,A56019
London Borough of Sutton,02/02/2023,50315867,"1,405.00",Care4Care Services Ltd,SOCIAL SERVICES DAY CARE,Peoples Services,Home Care Services,A56019
London Borough of Sutton,02/02/2023,50315869,909.50,Care4Care Services Ltd,SOCIAL SERVICES DAY CARE,Peoples Services,Home Care Services,A56019
London Borough of Sutton,02/02/2023,50315878,"4,075.00",Care4Care Services Ltd,SOCIAL SERVICES DAY CARE,Peoples Services,Home Care Services,A56019
London Borough of Sutton,02/02/2023,50315880,"4,040.00",Care4Care Services Ltd,SOCIAL SERVICES DAY CARE,Peoples Services,Home Care Services,A56019
London Borough of Sutton,02/02/2023,50315881,"1,935.50",Care4Care Services Ltd,SOCIAL SERVICES DAY CARE,Peoples Services,Home Care Services,A56019
London Borough of Sutton,02/02/2023,50315882,"1,124.00",Care4Care Services Ltd,SOCIAL SERVICES DAY CARE,Peoples Services,Home Care Services,A56019
London Borough of Sutton,02/02/2023,50319239,"1,583.90",Care4Care Services Ltd,SOCIAL SERVICES DAY CARE,Peoples Services,Home Care Services,A56019
London Borough of Sutton,02/02/2023,50319243,"3,638.00",Care4Care Services Ltd,SOCIAL SERVICES DAY CARE,Peoples Services,Home Care Services,A56019
London Borough of Sutton,02/02/2023,50319243,471.40,Care4Care Services Ltd,SOCIAL SERVICES DAY CARE,Peoples Services,Home Care Services,A56019
London Borough of Sutton,02/02/2023,50319248,"1,822.50",Care4Care Services Ltd,SOCIAL SERVICES DAY CARE,Peoples Services,Home Care Services,A56019
London Borough of Sutton,31/12/2022,20040661,"14,792.57",Careium UK Limited,ACCOMMODATION - OTHER,HRA,Supporting People - Alarm Services,A61023
London Borough of Sutton,23/01/2023,20041731,"18,474.25",Caremark (Sutton),SOCIAL SERVICES DAY CARE,Peoples Services,Provider Contract Payments,A44290
London Borough of Sutton,06/02/2023,50316077,750.00,Caremark (Sutton),SOCIAL SERVICES DAY CARE,Peoples Services,Miscellaneous Expenses,A49000
London Borough of Sutton,22/01/2023,50317381,540.75,Caremark (Sutton),SOCIAL SERVICES DAY CARE,Peoples Services,Home Care Services,A56019
London Borough of Sutton,29/01/2023,50317382,540.75,Caremark (Sutton),SOCIAL SERVICES DAY CARE,Peoples Services,Home Care Services,A56019
London Borough of Sutton,22/01/2023,50317389,803.37,Caremark (Sutton),SOCIAL SERVICES DAY CARE,Peoples Services,Home Care Services,A56019
London Borough of Sutton,22/01/2023,50317389,32.25,Caremark (Sutton),SOCIAL SERVICES DAY CARE,Peoples Services,Home Care Services,A56019
London Borough of Sutton,29/01/2023,50317390,803.37,Caremark (Sutton),SOCIAL SERVICES DAY CARE,Peoples Services,Home Care Services,A56019
London Borough of Sutton,29/01/2023,50317390,32.25,Caremark (Sutton),SOCIAL SERVICES DAY CARE,Peoples Services,Home Care Services,A56019
London Borough of Sutton,29/01/2023,50317393,"1,875.50",Caremark (Sutton),SOCIAL SERVICES DAY CARE,Peoples Services,Home Care Services,A56019
London Borough of Sutton,22/01/2023,50317407,500.41,Caremark (Sutton),SOCIAL SERVICES DAY CARE,Peoples Services,Home Care Services,A56019
London Borough of Sutton,29/01/2023,50317408,500.41,Caremark (Sutton),SOCIAL SERVICES DAY CARE,Peoples Services,Home Care Services,A56019
London Borough of Sutton,22/01/2023,50317411,597.55,Caremark (Sutton),SOCIAL SERVICES DAY CARE,Peoples Services,Home Care Services,A56019
London Borough of Sutton,29/01/2023,50317412,623.36,Caremark (Sutton),SOCIAL SERVICES DAY CARE,Peoples Services,Home Care Services,A56019
London Borough of Sutton,22/01/2023,50317430,580.36,Caremark (Sutton),SOCIAL SERVICES DAY CARE,Peoples Services,Home Care Services,A56019
London Borough of Sutton,29/01/2023,50317431,580.36,Caremark (Sutton),SOCIAL SERVICES DAY CARE,Peoples Services,Home Care Services,A56019
London Borough of Sutton,29/01/2023,50317460,"1,053.30",Caremark (Sutton),SOCIAL SERVICES DAY CARE,Peoples Services,Home Care Services,A56019
London Borough of Sutton,29/01/2023,50317482,924.28,Caremark (Sutton),SOCIAL SERVICES DAY CARE,Peoples Services,Home Care Services,A56019
London Borough of Sutton,29/01/2023,50317482,176.19,Caremark (Sutton),SOCIAL SERVICES DAY CARE,Peoples Services,Home Care Services,A56019
London Borough of Sutton,31/05/2022,50318024,750.00,Caremark (Sutton),SOCIAL SERVICES DAY CARE,Peoples Services,Miscellaneous Expenses,A49000
London Borough of Sutton,05/02/2023,50319267,967.61,Caremark (Sutton),SOCIAL SERVICES DAY CARE,Peoples Services,Home Care Services,A56019
London Borough of Sutton,05/02/2023,50319267,184.45,Caremark (Sutton),SOCIAL SERVICES DAY CARE,Peoples Services,Home Care Services,A56019
London Borough of Sutton,05/02/2023,50319313,623.36,Caremark (Sutton),SOCIAL SERVICES DAY CARE,Peoples Services,Home Care Services,A56019
London Borough of Sutton,05/02/2023,50319338,540.75,Caremark (Sutton),SOCIAL SERVICES DAY CARE,Peoples Services,Home Care Services,A56019
London Borough of Sutton,05/02/2023,50319357,803.37,Caremark (Sutton),SOCIAL SERVICES DAY CARE,Peoples Services,Home Care Services,A56019
London Borough of Sutton,05/02/2023,50319357,32.25,Caremark (Sutton),SOCIAL SERVICES DAY CARE,Peoples Services,Home Care Services,A56019
London Borough of Sutton,05/02/2023,50319360,"1,897.00",Caremark (Sutton),SOCIAL SERVICES DAY CARE,Peoples Services,Home Care Services,A56019
London Borough of Sutton,05/02/2023,50319369,500.41,Caremark (Sutton),SOCIAL SERVICES DAY CARE,Peoples Services,Home Care Services,A56019
London Borough of Sutton,05/02/2023,50319399,580.36,Caremark (Sutton),SOCIAL SERVICES DAY CARE,Peoples Services,Home Care Services,A56019
London Borough of Sutton,22/01/2023,50319405,685.00,Caremark (Sutton),SOCIAL SERVICES DAY CARE,Peoples Services,Home Care Services,A56019
London Borough of Sutton,29/01/2023,50319406,"1,009.00",Caremark (Sutton),SOCIAL SERVICES DAY CARE,Peoples Services,Home Care Services,A56019
London Borough of Sutton,05/02/2023,50319407,685.00,Caremark (Sutton),SOCIAL SERVICES DAY CARE,Peoples Services,Home Care Services,A56019
London Borough of Sutton,05/02/2023,50319408,"1,053.30",Caremark (Sutton),SOCIAL SERVICES DAY CARE,Peoples Services,Home Care Services,A56019
London Borough of Sutton,12/02/2023,50321471,540.75,Caremark (Sutton),SOCIAL SERVICES DAY CARE,Peoples Services,Home Care Services,A56019
London Borough of Sutton,12/02/2023,50321475,803.37,Caremark (Sutton),SOCIAL SERVICES DAY CARE,Peoples Services,Home Care Services,A56019
London Borough of Sutton,12/02/2023,50321475,32.25,Caremark (Sutton),SOCIAL SERVICES DAY CARE,Peoples Services,Home Care Services,A56019
London Borough of Sutton,12/02/2023,50321478,"1,920.50",Caremark (Sutton),SOCIAL SERVICES DAY CARE,Peoples Services,Home Care Services,A56019
London Borough of Sutton,12/02/2023,50321482,500.41,Caremark (Sutton),SOCIAL SERVICES DAY CARE,Peoples Services,Home Care Services,A56019
London Borough of Sutton,12/02/2023,50321484,580.36,Caremark (Sutton),SOCIAL SERVICES DAY CARE,Peoples Services,Home Care Services,A56019
London Borough of Sutton,12/02/2023,50321486,"1,053.30",Caremark (Sutton),SOCIAL SERVICES DAY CARE,Peoples Services,Home Care Services,A56019
London Borough of Sutton,17/02/2023,50320095,"5,879.88",Caretech Community Services Ltd,SOCIAL SERVICES RESIDENTIAL,Peoples Services,Residential Care - Ext Provider,A56114
London Borough of Sutton,17/02/2023,50320095,-710.00,Caretech Community Services Ltd,SOCIAL SERVICES RESIDENTIAL,Peoples Services,Residential Care - Client Cont ( Net Paymt ),A56113
London Borough of Sutton,17/02/2023,50320158,"5,621.56",Caretech Community Services Ltd,SOCIAL SERVICES RESIDENTIAL,Peoples Services,Residential Care - Ext Provider,A56114
London Borough of Sutton,17/02/2023,50320394,"6,030.96",Caretech Community Services Ltd,SOCIAL SERVICES RESIDENTIAL,Peoples Services,Residential Care - Ext Provider,A56114
London Borough of Sutton,17/02/2023,50320394,-627.80,Caretech Community Services Ltd,SOCIAL SERVICES RESIDENTIAL,Peoples Services,Residential Care - Client Cont ( Net Paymt ),A56113
London Borough of Sutton,31/01/2023,50313496,"744,439.03",Carew Academy,CHILDREN'S SERVICES - RESIDENTIAL,Peoples Services,Top-up Funding,A51016
London Borough of Sutton,07/02/2023,50314476,"4,076.70",Carew Academy,CHILDREN'S SERVICES - RESIDENTIAL,Peoples Services,Payment - Teachers Pay Grant,A51026
London Borough of Sutton,07/02/2023,50314483,"11,296.86",Carew Academy,CHILDREN'S SERVICES - RESIDENTIAL,Peoples Services,Payment - Teachers Pension Grant,A51027
London Borough of Sutton,31/01/2023,20041912,"4,539.29",Caridon Young Living Ltd,CHILDREN'S SERVICES - RESIDENTIAL,Peoples Services,Approved Lodgings,A61000
London Borough of Sutton,31/01/2023,20041913,"3,095.57",Caridon Young Living Ltd,CHILDREN'S SERVICES - RESIDENTIAL,Peoples Services,Approved Lodgings,A61000
London Borough of Sutton,31/01/2023,20041914,"3,985.71",Caridon Young Living Ltd,CHILDREN'S SERVICES - RESIDENTIAL,Peoples Services,Approved Lodgings,A61000
London Borough of Sutton,31/01/2023,50316988,"14,060.71",Caridon Young Living Ltd,CHILDREN'S SERVICES - RESIDENTIAL,Peoples Services,Approved Lodgings,A61000
London Borough of Sutton,31/01/2023,50316988,276.79,Caridon Young Living Ltd,CHILDREN'S SERVICES - RESIDENTIAL,Peoples Services,Approved Lodgings,A61000
London Borough of Sutton,20/02/2023,50320874,"1,940.00",Care Support Partners Ltd,SOCIAL SERVICES RESIDENTIAL,Peoples Services,Supported Living,A56088
London Borough of Sutton,20/02/2023,50320874,716.00,Care Support Partners Ltd,SOCIAL SERVICES RESIDENTIAL,Peoples Services,Supported Living,A56088
London Borough of Sutton,20/02/2023,50320874,572.80,Care Support Partners Ltd,SOCIAL SERVICES RESIDENTIAL,Peoples Services,Supported Living,A56088
London Borough of Sutton,09/02/2023,50317586,890.10,Carlene House,SOCIAL SERVICES RESIDENTIAL,Peoples Services,Supported Living,A56088
London Borough of Sutton,09/02/2023,50317586,"1,230.60",Carlene House,SOCIAL SERVICES RESIDENTIAL,Peoples Services,Supported Living,A56088
London Borough of Sutton,09/02/2023,50317586,"1,641.10",Carlene House,SOCIAL SERVICES RESIDENTIAL,Peoples Services,Supported Living,A56088
London Borough of Sutton,09/02/2023,50317587,890.10,Carlene House,SOCIAL SERVICES RESIDENTIAL,Peoples Services,Supported Living,A56088
London Borough of Sutton,09/02/2023,50317587,"2,373.30",Carlene House,SOCIAL SERVICES RESIDENTIAL,Peoples Services,Supported Living,A56088
London Borough of Sutton,09/02/2023,50317587,"1,641.10",Carlene House,SOCIAL SERVICES RESIDENTIAL,Peoples Services,Supported Living,A56088
London Borough of Sutton,17/02/2023,50320089,"5,684.08",Carlene House,SOCIAL SERVICES RESIDENTIAL,Peoples Services,Residential Care - Ext Provider,A56114
London Borough of Sutton,17/02/2023,50320122,"5,684.08",Carlene House,SOCIAL SERVICES RESIDENTIAL,Peoples Services,Residential Care - Ext Provider,A56114
London Borough of Sutton,17/02/2023,50320232,"5,684.08",Carlene House,SOCIAL SERVICES RESIDENTIAL,Peoples Services,Residential Care - Ext Provider,A56114
London Borough of Sutton,17/02/2023,50320233,"5,684.08",Carlene House,SOCIAL SERVICES RESIDENTIAL,Peoples Services,Residential Care - Ext Provider,A56114
London Borough of Sutton,17/02/2023,50320234,"5,684.08",Carlene House,SOCIAL SERVICES RESIDENTIAL,Peoples Services,Residential Care - Ext Provider,A56114
London Borough of Sutton,17/02/2023,50320235,"5,684.08",Carlene House,SOCIAL SERVICES RESIDENTIAL,Peoples Services,Residential Care - Ext Provider,A56114
London Borough of Sutton,17/02/2023,50320313,"5,684.08",Carlene House,SOCIAL SERVICES RESIDENTIAL,Peoples Services,Residential Care - Ext Provider,A56114
London Borough of Sutton,02/02/2023,50314632,637.95,REDACTED - PERSONAL DATA,GRANTS & EX GRATIA PAYMENTS,Peoples Services,Payment - Nursery Funding,A51056
London Borough of Sutton,02/02/2023,50314630,"1,594.89",REDACTED - PERSONAL DATA,GRANTS & EX GRATIA PAYMENTS,Peoples Services,Payment - Nursery Funding,A51056
London Borough of Sutton,02/02/2023,50314687,"3,383.10",REDACTED - PERSONAL DATA,GRANTS & EX GRATIA PAYMENTS,Peoples Services,Payment - Nursery Funding,A51056
London Borough of Sutton,07/02/2023,50314494,"4,816.70",Carshalton Boys Sports College (Academy),GRANTS & EX GRATIA PAYMENTS,Peoples Services,Pupil Growth,A51014
London Borough of Sutton,07/02/2023,50316058,"3,309.72",Carshalton Boys Sports College (Academy),GRANTS & EX GRATIA PAYMENTS,Peoples Services,Top-up Funding,A51016
London Borough of Sutton,30/01/2023,20041939,516.54,Castle Water Ltd,UTILITIES,Resources,Water Services,A24005
London Borough of Sutton,03/02/2023,20043573,647.89,Castle Water Ltd,UTILITIES,Resources,Water Services,A24005
London Borough of Sutton,09/02/2023,50317037,"26,527.14",Catch 22 Charity Limited,CHILDREN'S SERVICES - RESIDENTIAL,Peoples Services,Residential Care-Children,A56115
London Borough of Sutton,14/02/2023,50319906,"28,105.71",Catch 22 Charity Limited,CHILDREN'S SERVICES - RESIDENTIAL,Peoples Services,Residential Care-Children,A56115
London Borough of Sutton,14/02/2023,50319907,"16,863.43",Catch 22 Charity Limited,CHILDREN'S SERVICES - RESIDENTIAL,Peoples Services,Residential Care-Children,A56115
London Borough of Sutton,14/02/2023,50319908,"16,863.43",Catch 22 Charity Limited,CHILDREN'S SERVICES - RESIDENTIAL,Peoples Services,Residential Care-Children,A56115
London Borough of Sutton,09/02/2023,50322468,"29,042.57",Catch 22 Charity Limited,CHILDREN'S SERVICES - RESIDENTIAL,Peoples Services,Residential Care-Children,A56115
London Borough of Sutton,09/02/2023,50322469,"29,042.57",Catch 22 Charity Limited,CHILDREN'S SERVICES - RESIDENTIAL,Peoples Services,Residential Care-Children,A56115
London Borough of Sutton,02/02/2023,50314631,658.94,REDACTED - PERSONAL DATA,GRANTS & EX GRATIA PAYMENTS,Peoples Services,Payment - Nursery Funding,A51056
London Borough of Sutton,31/10/2022,20042642,"1,522.72",Caysh Housing Project,SOCIAL SERVICES RESIDENTIAL,Peoples Services,Approved Lodgings,A61000
London Borough of Sutton,01/12/2020,20042437,"44,377.25",CBRE Ltd,TEMP STAFF & CONSULTANCY,Resources,Building Rents,A22005
London Borough of Sutton,01/09/2020,20042438,"44,377.25",CBRE Ltd,TEMP STAFF & CONSULTANCY,Resources,Building Rents,A22005
London Borough of Sutton,01/06/2021,20042439,"44,377.25",CBRE Ltd,TEMP STAFF & CONSULTANCY,Resources,Building Rents,A22005
London Borough of Sutton,13/05/2020,20042440,"32,066.28",CBRE Ltd,TEMP STAFF & CONSULTANCY,Resources,Building Rents,A22005
London Borough of Sutton,01/09/2021,20042464,"44,377.25",CBRE Ltd,TEMP STAFF & CONSULTANCY,Resources,Building Rents,A22005
London Borough of Sutton,28/02/2023,20042881,"44,377.25",CBRE Ltd,TEMP STAFF & CONSULTANCY,Resources,Building Rents,A22005
London Borough of Sutton,27/01/2023,50313488,"23,343.34",CENTRAL BEDFORDSHIRE COUNCIL,CHILDREN'S SERVICES - SEN SERVICES,Peoples Services,Top-up Funding,A51016
London Borough of Sutton,30/01/2023,20041702,"2,571.58",Central London Community Healthcare NHS Trust,SOCIAL SERVICES - OTHER,Health and Wellbeing,Provider Contract Payments,A44290
London Borough of Sutton,13/02/2023,50317740,596.95,REDACTED - PERSONAL DATA,CHILDREN'S SERVICES - SEN SERVICES,Peoples Services,Miscellaneous Expenses,A49000
London Borough of Sutton,20/02/2023,20043585,"1,516.15",Cheam Baptist Church,SUNDRY SUPPLIER - HOUSING,Environment Housing and Neighbourhoods,Rent Deposit Scheme,B32179
London Borough of Sutton,20/02/2023,20043585,"1,263.46",Cheam Baptist Church,SUNDRY SUPPLIER - HOUSING,Environment Housing and Neighbourhoods,Rent Deposit Scheme,B32179
London Borough of Sutton,20/02/2023,20043585,"4,048.00",Cheam Baptist Church,SUNDRY SUPPLIER - HOUSING,Environment Housing and Neighbourhoods,PSL Payments To Landlords,A22031
London Borough of Sutton,02/02/2023,50314532,"1,043.81",Cheam Baptist Church Pre-School,GRANTS & EX GRATIA PAYMENTS,Peoples Services,Payment - Nursery Funding,A51056
London Borough of Sutton,02/02/2023,50314593,"7,963.81",Cheam Baptist Church Pre-School,GRANTS & EX GRATIA PAYMENTS,Peoples Services,Payment - Nursery Funding,A51056
London Borough of Sutton,09/02/2023,20042836,"2,000.00",Cheam Chamber of Trade,SUNDRY SUPPLIER - ENV SERVICES,Resources,"Grants, Contributions & Donations",A47005
London Borough of Sutton,09/02/2023,20043202,"1,000.00",Cheam Chamber of Trade,SUNDRY SUPPLIER - ENV SERVICES,Resources,"Grants, Contributions & Donations",A47005
London Borough of Sutton,07/02/2023,50314450,"29,983.93",Cheam Common Infants School -ACADEMY,GRANTS & EX GRATIA PAYMENTS,Peoples Services,Place Funding,A56110
London Borough of Sutton,07/02/2023,50314490,"1,506.56",Cheam Common Junior Academy,GRANTS & EX GRATIA PAYMENTS,Peoples Services,Payment - Cluster Lead SENCO,A51035
London Borough of Sutton,07/02/2023,50314489,"2,643.43",Cheam High School (Academy),GRANTS & EX GRATIA PAYMENTS,Peoples Services,Payment - Cluster Lead SENCO,A51035
London Borough of Sutton,07/02/2023,50314496,"3,211.14",Cheam High School (Academy),GRANTS & EX GRATIA PAYMENTS,Peoples Services,Pupil Growth,A51014
London Borough of Sutton,07/02/2023,50314452,"15,814.65",Cheam Park Farm Primary School,GRANTS & EX GRATIA PAYMENTS,Peoples Services,Place Funding,A56110
London Borough of Sutton,07/02/2023,50316061,"1,434.75",Cheam Park Farm Primary School,GRANTS & EX GRATIA PAYMENTS,Peoples Services,Top-up Funding,A51016
London Borough of Sutton,17/02/2023,50320063,"3,753.20",Chegworth Nursing Home Bayswift Ltd,SOCIAL SERVICES RESIDENTIAL,Peoples Services,Nursing Care - Ext Provider,A56025
London Borough of Sutton,17/02/2023,50320063,-735.68,Chegworth Nursing Home Bayswift Ltd,SOCIAL SERVICES RESIDENTIAL,Peoples Services,Nursing Care - 3rd party top up payment,A56023
London Borough of Sutton,17/02/2023,50320080,"4,249.11",Chegworth Nursing Home Bayswift Ltd,SOCIAL SERVICES RESIDENTIAL,Peoples Services,Nursing Care - Ext Provider,A56025
London Borough of Sutton,17/02/2023,50320080,"-1,371.21",Chegworth Nursing Home Bayswift Ltd,SOCIAL SERVICES RESIDENTIAL,Peoples Services,Nursing Care - 3rd party top up payment,A56023
London Borough of Sutton,17/02/2023,50320081,"3,734.88",Chegworth Nursing Home Bayswift Ltd,SOCIAL SERVICES RESIDENTIAL,Peoples Services,Nursing Care Short Term,A56026
London Borough of Sutton,17/02/2023,50320081,-750.40,Chegworth Nursing Home Bayswift Ltd,SOCIAL SERVICES RESIDENTIAL,Peoples Services,Nursing Care - 3rd party top up payment,A56023
London Borough of Sutton,17/02/2023,50320082,-735.68,Chegworth Nursing Home Bayswift Ltd,SOCIAL SERVICES RESIDENTIAL,Peoples Services,Nursing Care - 3rd party top up payment,A56023
London Borough of Sutton,17/02/2023,50320082,"3,720.16",Chegworth Nursing Home Bayswift Ltd,SOCIAL SERVICES RESIDENTIAL,Peoples Services,Nursing Care - Ext Provider,A56025
London Borough of Sutton,17/02/2023,50320083,"4,150.40",Chegworth Nursing Home Bayswift Ltd,SOCIAL SERVICES RESIDENTIAL,Peoples Services,Nursing Care - Ext Provider,A56025
London Borough of Sutton,17/02/2023,50320136,"3,821.24",Chegworth Nursing Home Bayswift Ltd,SOCIAL SERVICES RESIDENTIAL,Peoples Services,Nursing Care Short Term,A56026
London Borough of Sutton,17/02/2023,50320136,-836.76,Chegworth Nursing Home Bayswift Ltd,SOCIAL SERVICES RESIDENTIAL,Peoples Services,Nursing Care - 3rd party top up payment,A56023
London Borough of Sutton,17/02/2023,50320150,"3,734.88",Chegworth Nursing Home Bayswift Ltd,SOCIAL SERVICES RESIDENTIAL,Peoples Services,Nursing Care Short Term,A56026
London Borough of Sutton,17/02/2023,50320150,-750.40,Chegworth Nursing Home Bayswift Ltd,SOCIAL SERVICES RESIDENTIAL,Peoples Services,Nursing Care - 3rd party top up payment,A56023
London Borough of Sutton,17/02/2023,50320258,"3,900.00",Chegworth Nursing Home Bayswift Ltd,SOCIAL SERVICES RESIDENTIAL,Peoples Services,Nursing Care Short Term,A56026
London Borough of Sutton,17/02/2023,50320258,-836.76,Chegworth Nursing Home Bayswift Ltd,SOCIAL SERVICES RESIDENTIAL,Peoples Services,Nursing Care - 3rd party top up payment,A56023
London Borough of Sutton,17/02/2023,50320270,-632.64,Chegworth Nursing Home Bayswift Ltd,SOCIAL SERVICES RESIDENTIAL,Peoples Services,Nursing Care - 3rd party top up payment,A56023
London Borough of Sutton,17/02/2023,50320270,"3,919.08",Chegworth Nursing Home Bayswift Ltd,SOCIAL SERVICES RESIDENTIAL,Peoples Services,Nursing Care - Ext Provider,A56025
London Borough of Sutton,17/02/2023,50320271,"4,149.92",Chegworth Nursing Home Bayswift Ltd,SOCIAL SERVICES RESIDENTIAL,Peoples Services,Nursing Care - Ext Provider,A56025
London Borough of Sutton,17/02/2023,50320271,-750.40,Chegworth Nursing Home Bayswift Ltd,SOCIAL SERVICES RESIDENTIAL,Peoples Services,Nursing Care - 3rd party top up payment,A56023
London Borough of Sutton,17/02/2023,50320305,"2,905.28",Chegworth Nursing Home Bayswift Ltd,SOCIAL SERVICES RESIDENTIAL,Peoples Services,Nursing Care Short Term,A56026
London Borough of Sutton,17/02/2023,50320321,"3,665.20",Chegworth Nursing Home Bayswift Ltd,SOCIAL SERVICES RESIDENTIAL,Peoples Services,Nursing Care - Ext Provider,A56025
London Borough of Sutton,17/02/2023,50320321,-632.64,Chegworth Nursing Home Bayswift Ltd,SOCIAL SERVICES RESIDENTIAL,Peoples Services,Nursing Care - 3rd party top up payment,A56023
London Borough of Sutton,17/02/2023,50320365,"3,665.20",Chegworth Nursing Home Bayswift Ltd,SOCIAL SERVICES RESIDENTIAL,Peoples Services,Nursing Care - Ext Provider,A56025
London Borough of Sutton,17/02/2023,50320365,-632.64,Chegworth Nursing Home Bayswift Ltd,SOCIAL SERVICES RESIDENTIAL,Peoples Services,Nursing Care - 3rd party top up payment,A56023
London Borough of Sutton,17/02/2023,50320366,"3,821.24",Chegworth Nursing Home Bayswift Ltd,SOCIAL SERVICES RESIDENTIAL,Peoples Services,Nursing Care Short Term,A56026
London Borough of Sutton,17/02/2023,50320366,-836.76,Chegworth Nursing Home Bayswift Ltd,SOCIAL SERVICES RESIDENTIAL,Peoples Services,Nursing Care - 3rd party top up payment,A56023
London Borough of Sutton,17/02/2023,50320367,"3,848.24",Chegworth Nursing Home Bayswift Ltd,SOCIAL SERVICES RESIDENTIAL,Peoples Services,Nursing Care - Ext Provider,A56025
London Borough of Sutton,17/02/2023,50320367,-750.40,Chegworth Nursing Home Bayswift Ltd,SOCIAL SERVICES RESIDENTIAL,Peoples Services,Nursing Care - 3rd party top up payment,A56023
London Borough of Sutton,17/02/2023,50320368,"-3,211.59",Chegworth Nursing Home Bayswift Ltd,SOCIAL SERVICES RESIDENTIAL,Peoples Services,Nursing Care Short Term,A56026
London Borough of Sutton,17/02/2023,50320368,866.64,Chegworth Nursing Home Bayswift Ltd,SOCIAL SERVICES RESIDENTIAL,Peoples Services,Nursing Care - 3rd party top up payment,A56023
London Borough of Sutton,17/02/2023,50320422,"3,821.24",Chegworth Nursing Home Bayswift Ltd,SOCIAL SERVICES RESIDENTIAL,Peoples Services,Nursing Care Short Term,A56026
London Borough of Sutton,17/02/2023,50320422,-836.76,Chegworth Nursing Home Bayswift Ltd,SOCIAL SERVICES RESIDENTIAL,Peoples Services,Nursing Care - 3rd party top up payment,A56023
London Borough of Sutton,17/02/2023,50320447,-662.24,Chegworth Nursing Home Bayswift Ltd,SOCIAL SERVICES RESIDENTIAL,Peoples Services,Nursing Care - 3rd party top up payment,A56023
London Borough of Sutton,17/02/2023,50320447,"4,955.56",Chegworth Nursing Home Bayswift Ltd,SOCIAL SERVICES RESIDENTIAL,Peoples Services,Nursing Care Short Term,A56026
London Borough of Sutton,24/02/2023,50322198,"11,036.90",Chegworth Nursing Home Bayswift Ltd,SOCIAL SERVICES RESIDENTIAL,Peoples Services,Nursing Care - 3rd party top up payment,A56023
London Borough of Sutton,17/02/2023,50320068,"3,486.32",Cherry Lodge,SOCIAL SERVICES RESIDENTIAL,Peoples Services,Residential Care - Ext Provider,A56114
London Borough of Sutton,17/02/2023,50320157,"2,895.32",Cherry Lodge,SOCIAL SERVICES RESIDENTIAL,Peoples Services,Residential Care - Ext Provider,A56114
London Borough of Sutton,17/02/2023,50320157,-460.04,Cherry Lodge,SOCIAL SERVICES RESIDENTIAL,Peoples Services,Residential Care - Client Cont ( Net Paymt ),A56113
London Borough of Sutton,17/02/2023,50320299,"1,102.04",CHHG Ltd,SOCIAL SERVICES RESIDENTIAL,Peoples Services,Nursing Care - Ext Provider,A56025
London Borough of Sutton,17/02/2023,50320351,-735.68,CHHG Ltd,SOCIAL SERVICES RESIDENTIAL,Peoples Services,Nursing Care - 3rd party top up payment,A56023
London Borough of Sutton,17/02/2023,50320351,"3,927.68",CHHG Ltd,SOCIAL SERVICES RESIDENTIAL,Peoples Services,Nursing Care - Ext Provider,A56025
London Borough of Sutton,24/02/2023,50322196,"2,006.71",CHHG Ltd,SOCIAL SERVICES RESIDENTIAL,Peoples Services,Nursing Care - Ext Provider,A56025
London Borough of Sutton,10/01/2023,50316957,"11,599.27",Children's Trust,CHILDREN'S SERVICES - DAY CARE,Peoples Services,Residential Care-Children,A56115
London Borough of Sutton,09/02/2023,50318025,"4,903.36",Children's Trust,CHILDREN'S SERVICES - DAY CARE,Peoples Services,Independent School Fees,A56002
London Borough of Sutton,09/02/2023,50318026,"4,116.56",Children's Trust,CHILDREN'S SERVICES - DAY CARE,Peoples Services,Independent School Fees,A56002
London Borough of Sutton,09/02/2023,50318027,"4,988.48",Children's Trust,CHILDREN'S SERVICES - DAY CARE,Peoples Services,Independent School Fees,A56002
London Borough of Sutton,17/02/2023,50320064,"7,512.24",Choice Care Group (Surrey) Ltd,SOCIAL SERVICES RESIDENTIAL,Peoples Services,Residential Care - Ext Provider,A56114
London Borough of Sutton,17/02/2023,50320069,"8,682.92",Choice Care Group (Surrey) Ltd,SOCIAL SERVICES RESIDENTIAL,Peoples Services,Residential Care - Ext Provider,A56114
London Borough of Sutton,17/02/2023,50320346,"7,809.32",Choice Care Group (Surrey) Ltd,SOCIAL SERVICES RESIDENTIAL,Peoples Services,Residential Care - Ext Provider,A56114
London Borough of Sutton,30/01/2023,20041798,"1,818.00",Choice Support,GRANTS & EX GRATIA PAYMENTS,Peoples Services,Provider Contract Payments,A44290
London Borough of Sutton,30/01/2023,20041799,"1,947.04",Choice Support,GRANTS & EX GRATIA PAYMENTS,Peoples Services,Provider Contract Payments,A44290
London Borough of Sutton,30/01/2023,20041800,"2,055.00",Choice Support,GRANTS & EX GRATIA PAYMENTS,Peoples Services,Provider Contract Payments,A44290
London Borough of Sutton,30/01/2023,20041801,"1,736.36",Choice Support,GRANTS & EX GRATIA PAYMENTS,Peoples Services,Provider Contract Payments,A44290
London Borough of Sutton,28/01/2023,20041918,"36,250.02",Choice Support,GRANTS & EX GRATIA PAYMENTS,Peoples Services,Imagine Sutton Mainstream,A56101
London Borough of Sutton,31/01/2023,50314360,"3,578.95",Choice Support,GRANTS & EX GRATIA PAYMENTS,Peoples Services,Supported Living,A56088
London Borough of Sutton,31/01/2023,50314360,"3,156.33",Choice Support,GRANTS & EX GRATIA PAYMENTS,Peoples Services,Supported Living,A56088
London Borough of Sutton,31/01/2023,50314360,244.50,Choice Support,GRANTS & EX GRATIA PAYMENTS,Peoples Services,Supported Living,A56088
London Borough of Sutton,31/01/2023,50314360,633.82,Choice Support,GRANTS & EX GRATIA PAYMENTS,Peoples Services,Supported Living,A56088
London Borough of Sutton,31/01/2023,50314361,887.35,Choice Support,GRANTS & EX GRATIA PAYMENTS,Peoples Services,Supported Living,A56088
London Borough of Sutton,31/01/2023,50314361,"5,015.36",Choice Support,GRANTS & EX GRATIA PAYMENTS,Peoples Services,Supported Living,A56088
London Borough of Sutton,31/01/2023,50314362,"2,335.23",Choice Support,GRANTS & EX GRATIA PAYMENTS,Peoples Services,Supported Living,A56088
London Borough of Sutton,31/01/2023,50314362,"1,529.45",Choice Support,GRANTS & EX GRATIA PAYMENTS,Peoples Services,Supported Living,A56088
London Borough of Sutton,31/01/2023,50314362,244.50,Choice Support,GRANTS & EX GRATIA PAYMENTS,Peoples Services,Supported Living,A56088
London Borough of Sutton,31/01/2023,50314362,633.82,Choice Support,GRANTS & EX GRATIA PAYMENTS,Peoples Services,Supported Living,A56088
London Borough of Sutton,31/01/2023,50314363,"6,920.93",Choice Support,GRANTS & EX GRATIA PAYMENTS,Peoples Services,Supported Living,A56088
London Borough of Sutton,31/01/2023,50314363,887.35,Choice Support,GRANTS & EX GRATIA PAYMENTS,Peoples Services,Supported Living,A56088
London Borough of Sutton,31/01/2023,50314367,"6,350.26",Choice Support,GRANTS & EX GRATIA PAYMENTS,Peoples Services,Supported Living,A56088
London Borough of Sutton,31/01/2023,50314367,244.50,Choice Support,GRANTS & EX GRATIA PAYMENTS,Peoples Services,Supported Living,A56088
London Borough of Sutton,31/01/2023,50314367,633.82,Choice Support,GRANTS & EX GRATIA PAYMENTS,Peoples Services,Supported Living,A56088
London Borough of Sutton,31/01/2023,50314368,"1,694.95",Choice Support,GRANTS & EX GRATIA PAYMENTS,Peoples Services,Supported Living,A56088
London Borough of Sutton,31/01/2023,50314368,"1,793.39",Choice Support,GRANTS & EX GRATIA PAYMENTS,Peoples Services,Supported Living,A56088
London Borough of Sutton,31/01/2023,50314368,244.50,Choice Support,GRANTS & EX GRATIA PAYMENTS,Peoples Services,Supported Living,A56088
London Borough of Sutton,31/01/2023,50314368,633.82,Choice Support,GRANTS & EX GRATIA PAYMENTS,Peoples Services,Supported Living,A56088
London Borough of Sutton,31/01/2023,50314369,"5,866.31",Choice Support,GRANTS & EX GRATIA PAYMENTS,Peoples Services,Supported Living,A56088
London Borough of Sutton,31/01/2023,50314369,887.35,Choice Support,GRANTS & EX GRATIA PAYMENTS,Peoples Services,Supported Living,A56088
London Borough of Sutton,31/01/2023,50314372,"5,843.99",Choice Support,GRANTS & EX GRATIA PAYMENTS,Peoples Services,Supported Living,A56088
London Borough of Sutton,31/01/2023,50314372,887.35,Choice Support,GRANTS & EX GRATIA PAYMENTS,Peoples Services,Supported Living,A56088
London Borough of Sutton,31/01/2023,50314373,"2,812.81",Choice Support,GRANTS & EX GRATIA PAYMENTS,Peoples Services,Supported Living,A56088
London Borough of Sutton,31/01/2023,50314373,"1,642.42",Choice Support,GRANTS & EX GRATIA PAYMENTS,Peoples Services,Supported Living,A56088
London Borough of Sutton,31/01/2023,50314373,244.50,Choice Support,GRANTS & EX GRATIA PAYMENTS,Peoples Services,Supported Living,A56088
London Borough of Sutton,31/01/2023,50314373,633.82,Choice Support,GRANTS & EX GRATIA PAYMENTS,Peoples Services,Supported Living,A56088
London Borough of Sutton,19/01/2023,50315511,"3,547.89",Choice Support,GRANTS & EX GRATIA PAYMENTS,Peoples Services,Home Care Services,A56019
London Borough of Sutton,19/01/2023,50315513,"3,547.89",Choice Support,GRANTS & EX GRATIA PAYMENTS,Peoples Services,Home Care Services,A56019
London Borough of Sutton,19/01/2023,50315519,"3,547.89",Choice Support,GRANTS & EX GRATIA PAYMENTS,Peoples Services,Home Care Services,A56019
London Borough of Sutton,17/02/2023,50320022,"5,716.12",Choice Support,GRANTS & EX GRATIA PAYMENTS,Peoples Services,Residential Care - Ext Provider,A56114
London Borough of Sutton,20/02/2023,50320835,"4,011.36",Choice Support,GRANTS & EX GRATIA PAYMENTS,Peoples Services,Supported Living,A56088
London Borough of Sutton,20/02/2023,50320839,446.36,Choice Support,GRANTS & EX GRATIA PAYMENTS,Peoples Services,Supported Living,A56088
London Borough of Sutton,20/02/2023,50320839,"1,644.00",Choice Support,GRANTS & EX GRATIA PAYMENTS,Peoples Services,Supported Living,A56088
London Borough of Sutton,20/02/2023,50320839,"2,235.84",Choice Support,GRANTS & EX GRATIA PAYMENTS,Peoples Services,Supported Living,A56088
London Borough of Sutton,20/02/2023,50320839,110.48,Choice Support,GRANTS & EX GRATIA PAYMENTS,Peoples Services,Supported Living,A56088
London Borough of Sutton,20/02/2023,50320840,446.36,Choice Support,GRANTS & EX GRATIA PAYMENTS,Peoples Services,Supported Living,A56088
London Borough of Sutton,20/02/2023,50320840,"2,202.96",Choice Support,GRANTS & EX GRATIA PAYMENTS,Peoples Services,Supported Living,A56088
London Borough of Sutton,20/02/2023,50320840,"1,548.64",Choice Support,GRANTS & EX GRATIA PAYMENTS,Peoples Services,Supported Living,A56088
London Borough of Sutton,20/02/2023,50320840,607.64,Choice Support,GRANTS & EX GRATIA PAYMENTS,Peoples Services,Supported Living,A56088
London Borough of Sutton,20/02/2023,50320842,"1,018.64",Choice Support,GRANTS & EX GRATIA PAYMENTS,Peoples Services,Supported Living,A56088
London Borough of Sutton,20/02/2023,50320842,"1,101.56",Choice Support,GRANTS & EX GRATIA PAYMENTS,Peoples Services,Supported Living,A56088
London Borough of Sutton,20/02/2023,50320842,"2,937.44",Choice Support,GRANTS & EX GRATIA PAYMENTS,Peoples Services,Supported Living,A56088
London Borough of Sutton,20/02/2023,50320843,814.92,Choice Support,GRANTS & EX GRATIA PAYMENTS,Peoples Services,Supported Living,A56088
London Borough of Sutton,20/02/2023,50320843,784.44,Choice Support,GRANTS & EX GRATIA PAYMENTS,Peoples Services,Supported Living,A56088
London Borough of Sutton,20/02/2023,50320843,"3,004.20",Choice Support,GRANTS & EX GRATIA PAYMENTS,Peoples Services,Supported Living,A56088
London Borough of Sutton,20/02/2023,50320849,446.36,Choice Support,GRANTS & EX GRATIA PAYMENTS,Peoples Services,Supported Living,A56088
London Borough of Sutton,20/02/2023,50320849,"1,939.92",Choice Support,GRANTS & EX GRATIA PAYMENTS,Peoples Services,Supported Living,A56088
London Borough of Sutton,20/02/2023,50320849,"1,499.32",Choice Support,GRANTS & EX GRATIA PAYMENTS,Peoples Services,Supported Living,A56088
London Borough of Sutton,20/02/2023,50320849,607.64,Choice Support,GRANTS & EX GRATIA PAYMENTS,Peoples Services,Supported Living,A56088
London Borough of Sutton,20/02/2023,50320854,"1,018.64",Choice Support,GRANTS & EX GRATIA PAYMENTS,Peoples Services,Supported Living,A56088
London Borough of Sutton,20/02/2023,50320854,"1,101.56",Choice Support,GRANTS & EX GRATIA PAYMENTS,Peoples Services,Supported Living,A56088
London Borough of Sutton,20/02/2023,50320854,"2,536.88",Choice Support,GRANTS & EX GRATIA PAYMENTS,Peoples Services,Supported Living,A56088
London Borough of Sutton,20/02/2023,50320859,454.24,Choice Support,GRANTS & EX GRATIA PAYMENTS,Peoples Services,Supported Living,A56088
London Borough of Sutton,20/02/2023,50320859,"2,170.08",Choice Support,GRANTS & EX GRATIA PAYMENTS,Peoples Services,Supported Living,A56088
London Borough of Sutton,20/02/2023,50320859,"1,524.32",Choice Support,GRANTS & EX GRATIA PAYMENTS,Peoples Services,Supported Living,A56088
London Borough of Sutton,20/02/2023,50320859,607.64,Choice Support,GRANTS & EX GRATIA PAYMENTS,Peoples Services,Supported Living,A56088
London Borough of Sutton,20/02/2023,50320860,446.36,Choice Support,GRANTS & EX GRATIA PAYMENTS,Peoples Services,Supported Living,A56088
London Borough of Sutton,20/02/2023,50320860,"2,038.56",Choice Support,GRANTS & EX GRATIA PAYMENTS,Peoples Services,Supported Living,A56088
London Borough of Sutton,20/02/2023,50320860,"1,315.20",Choice Support,GRANTS & EX GRATIA PAYMENTS,Peoples Services,Supported Living,A56088
London Borough of Sutton,20/02/2023,50320860,110.48,Choice Support,GRANTS & EX GRATIA PAYMENTS,Peoples Services,Supported Living,A56088
London Borough of Sutton,20/02/2023,50320864,814.92,Choice Support,GRANTS & EX GRATIA PAYMENTS,Peoples Services,Supported Living,A56088
London Borough of Sutton,20/02/2023,50320864,"5,007.00",Choice Support,GRANTS & EX GRATIA PAYMENTS,Peoples Services,Supported Living,A56088
London Borough of Sutton,20/02/2023,50320867,"1,018.64",Choice Support,GRANTS & EX GRATIA PAYMENTS,Peoples Services,Supported Living,A56088
London Borough of Sutton,20/02/2023,50320867,"1,101.56",Choice Support,GRANTS & EX GRATIA PAYMENTS,Peoples Services,Supported Living,A56088
London Borough of Sutton,20/02/2023,50320867,"2,904.08",Choice Support,GRANTS & EX GRATIA PAYMENTS,Peoples Services,Supported Living,A56088
London Borough of Sutton,20/02/2023,50320870,814.92,Choice Support,GRANTS & EX GRATIA PAYMENTS,Peoples Services,Supported Living,A56088
London Borough of Sutton,20/02/2023,50320870,784.44,Choice Support,GRANTS & EX GRATIA PAYMENTS,Peoples Services,Supported Living,A56088
London Borough of Sutton,20/02/2023,50320870,"3,471.52",Choice Support,GRANTS & EX GRATIA PAYMENTS,Peoples Services,Supported Living,A56088
London Borough of Sutton,20/02/2023,50320890,"1,018.64",Choice Support,GRANTS & EX GRATIA PAYMENTS,Peoples Services,Supported Living,A56088
London Borough of Sutton,20/02/2023,50320890,"1,101.56",Choice Support,GRANTS & EX GRATIA PAYMENTS,Peoples Services,Supported Living,A56088
London Borough of Sutton,20/02/2023,50320890,"4,973.64",Choice Support,GRANTS & EX GRATIA PAYMENTS,Peoples Services,Supported Living,A56088
London Borough of Sutton,20/02/2023,50320891,"1,018.64",Choice Support,GRANTS & EX GRATIA PAYMENTS,Peoples Services,Supported Living,A56088
London Borough of Sutton,20/02/2023,50320891,"1,101.56",Choice Support,GRANTS & EX GRATIA PAYMENTS,Peoples Services,Supported Living,A56088
London Borough of Sutton,20/02/2023,50320891,"2,904.08",Choice Support,GRANTS & EX GRATIA PAYMENTS,Peoples Services,Supported Living,A56088
London Borough of Sutton,20/02/2023,50320893,814.92,Choice Support,GRANTS & EX GRATIA PAYMENTS,Peoples Services,Supported Living,A56088
London Borough of Sutton,20/02/2023,50320893,"3,872.08",Choice Support,GRANTS & EX GRATIA PAYMENTS,Peoples Services,Supported Living,A56088
London Borough of Sutton,20/02/2023,50320896,"1,018.64",Choice Support,GRANTS & EX GRATIA PAYMENTS,Peoples Services,Supported Living,A56088
London Borough of Sutton,20/02/2023,50320896,"1,101.56",Choice Support,GRANTS & EX GRATIA PAYMENTS,Peoples Services,Supported Living,A56088
London Borough of Sutton,20/02/2023,50320896,"3,004.20",Choice Support,GRANTS & EX GRATIA PAYMENTS,Peoples Services,Supported Living,A56088
London Borough of Sutton,20/02/2023,50320904,814.92,Choice Support,GRANTS & EX GRATIA PAYMENTS,Peoples Services,Supported Living,A56088
London Borough of Sutton,20/02/2023,50320904,784.44,Choice Support,GRANTS & EX GRATIA PAYMENTS,Peoples Services,Supported Living,A56088
London Borough of Sutton,20/02/2023,50320904,"3,872.08",Choice Support,GRANTS & EX GRATIA PAYMENTS,Peoples Services,Supported Living,A56088
London Borough of Sutton,20/02/2023,50320906,814.92,Choice Support,GRANTS & EX GRATIA PAYMENTS,Peoples Services,Supported Living,A56088
London Borough of Sutton,20/02/2023,50320906,784.44,Choice Support,GRANTS & EX GRATIA PAYMENTS,Peoples Services,Supported Living,A56088
London Borough of Sutton,20/02/2023,50320906,"2,303.24",Choice Support,GRANTS & EX GRATIA PAYMENTS,Peoples Services,Supported Living,A56088
London Borough of Sutton,20/02/2023,50320908,446.36,Choice Support,GRANTS & EX GRATIA PAYMENTS,Peoples Services,Supported Living,A56088
London Borough of Sutton,20/02/2023,50320908,"2,142.48",Choice Support,GRANTS & EX GRATIA PAYMENTS,Peoples Services,Supported Living,A56088
London Borough of Sutton,20/02/2023,50320908,"1,515.76",Choice Support,GRANTS & EX GRATIA PAYMENTS,Peoples Services,Supported Living,A56088
London Borough of Sutton,20/02/2023,50320908,607.64,Choice Support,GRANTS & EX GRATIA PAYMENTS,Peoples Services,Supported Living,A56088
London Borough of Sutton,20/02/2023,50320910,446.36,Choice Support,GRANTS & EX GRATIA PAYMENTS,Peoples Services,Supported Living,A56088
London Borough of Sutton,20/02/2023,50320910,"3,460.96",Choice Support,GRANTS & EX GRATIA PAYMENTS,Peoples Services,Supported Living,A56088
London Borough of Sutton,20/02/2023,50320910,"1,308.64",Choice Support,GRANTS & EX GRATIA PAYMENTS,Peoples Services,Supported Living,A56088
London Borough of Sutton,20/02/2023,50320910,607.64,Choice Support,GRANTS & EX GRATIA PAYMENTS,Peoples Services,Supported Living,A56088
London Borough of Sutton,20/02/2023,50320917,"3,222.24",Choice Support,GRANTS & EX GRATIA PAYMENTS,Peoples Services,Supported Living,A56088
London Borough of Sutton,20/02/2023,50320919,814.92,Choice Support,GRANTS & EX GRATIA PAYMENTS,Peoples Services,Supported Living,A56088
London Borough of Sutton,20/02/2023,50320919,784.44,Choice Support,GRANTS & EX GRATIA PAYMENTS,Peoples Services,Supported Living,A56088
London Borough of Sutton,20/02/2023,50320919,"3,237.88",Choice Support,GRANTS & EX GRATIA PAYMENTS,Peoples Services,Supported Living,A56088
London Borough of Sutton,20/02/2023,50320920,"1,018.64",Choice Support,GRANTS & EX GRATIA PAYMENTS,Peoples Services,Supported Living,A56088
London Borough of Sutton,20/02/2023,50320920,"1,101.56",Choice Support,GRANTS & EX GRATIA PAYMENTS,Peoples Services,Supported Living,A56088
London Borough of Sutton,20/02/2023,50320920,"3,070.96",Choice Support,GRANTS & EX GRATIA PAYMENTS,Peoples Services,Supported Living,A56088
London Borough of Sutton,20/02/2023,50320922,446.36,Choice Support,GRANTS & EX GRATIA PAYMENTS,Peoples Services,Supported Living,A56088
London Borough of Sutton,20/02/2023,50320922,"3,616.80",Choice Support,GRANTS & EX GRATIA PAYMENTS,Peoples Services,Supported Living,A56088
London Borough of Sutton,20/02/2023,50320922,110.48,Choice Support,GRANTS & EX GRATIA PAYMENTS,Peoples Services,Supported Living,A56088
London Borough of Sutton,20/02/2023,50320930,"1,018.64",Choice Support,GRANTS & EX GRATIA PAYMENTS,Peoples Services,Supported Living,A56088
London Borough of Sutton,20/02/2023,50320930,"1,101.56",Choice Support,GRANTS & EX GRATIA PAYMENTS,Peoples Services,Supported Living,A56088
London Borough of Sutton,20/02/2023,50320930,"4,873.48",Choice Support,GRANTS & EX GRATIA PAYMENTS,Peoples Services,Supported Living,A56088
London Borough of Sutton,20/02/2023,50321474,"6,295.80",Choice Support,GRANTS & EX GRATIA PAYMENTS,Peoples Services,Home Care Services,A56019
London Borough of Sutton,02/02/2023,50314533,"1,092.36",Christchurch Fledgelings Pre-School,GRANTS & EX GRATIA PAYMENTS,Peoples Services,Payment - Nursery Funding,A51056
London Borough of Sutton,02/02/2023,50314594,"14,035.03",Christchurch Fledgelings Pre-School,GRANTS & EX GRATIA PAYMENTS,Peoples Services,Payment - Nursery Funding,A51056
London Borough of Sutton,08/02/2023,20043031,"1,096.98",REDACTED - PERSONAL DATA,GRANTS & EX GRATIA PAYMENTS,Environment Housing and Neighbourhoods,Temporary Protection - Homeless Persons,A62028
London Borough of Sutton,27/01/2023,20041823,"33,787.55",Chroma Vision Limited,AGRICULTURAL & ESTATE SERVICES,Environment Housing and Neighbourhoods,Other Capital Expenditure,C20002
London Borough of Sutton,30/01/2023,20041837,"5,485.32",Chroma Vision Limited,AGRICULTURAL & ESTATE SERVICES,Resources,Payments to Contractors,C14000
London Borough of Sutton,07/02/2023,50314446,"18,247.68",Barrow Hedges Primary School Academy,GRANTS & EX GRATIA PAYMENTS,Peoples Services,Place Funding,A56110
London Borough of Sutton,02/08/2022,50316040,"1,200.00",Barrow Hedges Primary School Academy,GRANTS & EX GRATIA PAYMENTS,Peoples Services,Top-up individual funding,A60033
London Borough of Sutton,19/01/2023,20042010,"2,591.80",City & Guilds,SUBSCRIPTIONS & PUBLICATIONS,Health and Wellbeing,Examination Fees,A44200
London Borough of Sutton,05/01/2023,20042011,"2,214.00",City & Guilds,SUBSCRIPTIONS & PUBLICATIONS,Health and Wellbeing,Examination Fees,A44200
London Borough of Sutton,12/01/2023,20042012,795.80,City & Guilds,SUBSCRIPTIONS & PUBLICATIONS,Health and Wellbeing,Examination Fees,A44200
London Borough of Sutton,16/01/2023,20042026,"-2,214.00",City & Guilds,SUBSCRIPTIONS & PUBLICATIONS,Health and Wellbeing,Examination Fees,A44200
London Borough of Sutton,09/02/2023,20043134,"1,050.00",City & Guilds,SUBSCRIPTIONS & PUBLICATIONS,Health and Wellbeing,Examination Fees,A44200
London Borough of Sutton,27/01/2023,20041644,"12,933.44",City of London Corporation,CENTRAL & LOCAL GOVERNMENT,Health and Wellbeing,Provider Contract Payments,A44290
London Borough of Sutton,27/01/2023,20041645,"13,707.26",City of London Corporation,CENTRAL & LOCAL GOVERNMENT,Health and Wellbeing,Provider Contract Payments,A44290
London Borough of Sutton,27/01/2023,20041646,"9,659.55",City of London Corporation,CENTRAL & LOCAL GOVERNMENT,Health and Wellbeing,Provider Contract Payments,A44290
London Borough of Sutton,30/11/2022,20041186,"3,879.99",City Sprint UK (Excel) Ltd,DELIVERY AND COURIER SERVICES,Health and Wellbeing,Hire of Transport - Non Staff,A32000
London Borough of Sutton,18/01/2023,20041889,-806.31,City Sprint UK (Excel) Ltd,DELIVERY AND COURIER SERVICES,Health and Wellbeing,Hire of Transport - Non Staff,A32000
London Borough of Sutton,17/02/2023,50320067,-735.68,Claremont Care Svs Ltd,SOCIAL SERVICES RESIDENTIAL,Peoples Services,Nursing Care - 3rd party top up payment,A56023
London Borough of Sutton,17/02/2023,50320067,"5,367.84",Claremont Care Svs Ltd,SOCIAL SERVICES RESIDENTIAL,Peoples Services,Nursing Care - Ext Provider,A56025
London Borough of Sutton,17/02/2023,50320209,"6,236.76",Claremont Care Svs Ltd,SOCIAL SERVICES RESIDENTIAL,Peoples Services,Nursing Care - Ext Provider,A56025
London Borough of Sutton,17/02/2023,50320209,-836.76,Claremont Care Svs Ltd,SOCIAL SERVICES RESIDENTIAL,Peoples Services,Nursing Care - 3rd party top up payment,A56023
London Borough of Sutton,17/02/2023,50320240,"6,236.76",Claremont Care Svs Ltd,SOCIAL SERVICES RESIDENTIAL,Peoples Services,Nursing Care Short Term,A56026
London Borough of Sutton,17/02/2023,50320240,-836.76,Claremont Care Svs Ltd,SOCIAL SERVICES RESIDENTIAL,Peoples Services,Nursing Care - 3rd party top up payment,A56023
London Borough of Sutton,17/02/2023,50320252,"4,525.36",Claremont Care Svs Ltd,SOCIAL SERVICES RESIDENTIAL,Peoples Services,Nursing Care - Ext Provider,A56025
London Borough of Sutton,17/02/2023,50320252,-750.40,Claremont Care Svs Ltd,SOCIAL SERVICES RESIDENTIAL,Peoples Services,Nursing Care - 3rd party top up payment,A56023
London Borough of Sutton,17/02/2023,50320337,"3,848.24",Claremont Care Svs Ltd,SOCIAL SERVICES RESIDENTIAL,Peoples Services,Nursing Care - Ext Provider,A56025
London Borough of Sutton,17/02/2023,50320337,-750.40,Claremont Care Svs Ltd,SOCIAL SERVICES RESIDENTIAL,Peoples Services,Nursing Care - 3rd party top up payment,A56023
London Borough of Sutton,17/02/2023,50320384,"6,487.64",Claremont Care Svs Ltd,SOCIAL SERVICES RESIDENTIAL,Peoples Services,Nursing Care - Ext Provider,A56025
London Borough of Sutton,17/02/2023,50320384,-750.40,Claremont Care Svs Ltd,SOCIAL SERVICES RESIDENTIAL,Peoples Services,Nursing Care - 3rd party top up payment,A56023
London Borough of Sutton,17/02/2023,50320385,"14,613.88",Claremont Care Svs Ltd,SOCIAL SERVICES RESIDENTIAL,Peoples Services,Nursing Care - Ext Provider,A56025
London Borough of Sutton,17/02/2023,50320385,"-11,424.00",Claremont Care Svs Ltd,SOCIAL SERVICES RESIDENTIAL,Peoples Services,Nursing Care - 3rd party top up payment,A56023
London Borough of Sutton,17/02/2023,50320399,"6,513.96",Claremont Care Svs Ltd,SOCIAL SERVICES RESIDENTIAL,Peoples Services,Nursing Care - Ext Provider,A56025
London Borough of Sutton,17/02/2023,50320399,-836.76,Claremont Care Svs Ltd,SOCIAL SERVICES RESIDENTIAL,Peoples Services,Nursing Care - 3rd party top up payment,A56023
London Borough of Sutton,17/02/2023,50319943,-735.68,Bondcare (London) Ltd,SOCIAL SERVICES RESIDENTIAL,Peoples Services,Nursing Care - 3rd party top up payment,A56023
London Borough of Sutton,17/02/2023,50319943,"3,720.16",Bondcare (London) Ltd,SOCIAL SERVICES RESIDENTIAL,Peoples Services,Nursing Care - Ext Provider,A56025
London Borough of Sutton,19/01/2023,50313473,759.45,Classroom Teachers Ltd,ACADEMIC INSTNS - OTHER,Peoples Services,Independent School Fees,A56002
London Borough of Sutton,25/01/2023,50313474,759.45,Classroom Teachers Ltd,ACADEMIC INSTNS - OTHER,Peoples Services,Independent School Fees,A56002
London Borough of Sutton,01/02/2023,50316030,759.45,Classroom Teachers Ltd,ACADEMIC INSTNS - OTHER,Peoples Services,Independent School Fees,A56002
London Borough of Sutton,08/02/2023,50317992,759.45,Classroom Teachers Ltd,ACADEMIC INSTNS - OTHER,Peoples Services,Independent School Fees,A56002
London Borough of Sutton,15/02/2023,50321694,759.45,Classroom Teachers Ltd,ACADEMIC INSTNS - OTHER,Peoples Services,Independent School Fees,A56002
London Borough of Sutton,31/01/2023,50313273,"2,439.02",Clear Thinking Care Limited,SOCIAL SERVICES RESIDENTIAL,Peoples Services,Supported Living,A56088
London Borough of Sutton,02/02/2023,50315899,"2,439.02",Clear Thinking Care Limited,SOCIAL SERVICES RESIDENTIAL,Peoples Services,Supported Living,A56088
London Borough of Sutton,09/02/2023,50317585,"2,439.02",Clear Thinking Care Limited,SOCIAL SERVICES RESIDENTIAL,Peoples Services,Supported Living,A56088
London Borough of Sutton,17/02/2023,50321641,"2,439.02",Clear Thinking Care Limited,SOCIAL SERVICES RESIDENTIAL,Peoples Services,Supported Living,A56088
London Borough of Sutton,20/02/2023,50320926,"-3,872.52",CLIA CARE LTD,SOCIAL SERVICES RESIDENTIAL,Peoples Services,Nursing Care - 3rd party top up payment,A56023
London Borough of Sutton,20/02/2023,50320926,"3,510.36",CLIA CARE LTD,SOCIAL SERVICES RESIDENTIAL,Peoples Services,Supported Living,A56088
London Borough of Sutton,20/02/2023,50320926,660.80,CLIA CARE LTD,SOCIAL SERVICES RESIDENTIAL,Peoples Services,Supported Living,A56088
London Borough of Sutton,20/02/2023,50320926,990.84,CLIA CARE LTD,SOCIAL SERVICES RESIDENTIAL,Peoples Services,Supported Living,A56088
London Borough of Sutton,20/02/2023,50320926,"2,583.00",CLIA CARE LTD,SOCIAL SERVICES RESIDENTIAL,Peoples Services,One to One Care,A56108
London Borough of Sutton,29/01/2023,50314242,597.00,Clovecare Ltd,SOCIAL SERVICES RESIDENTIAL,Peoples Services,Home Care Services,A56019
London Borough of Sutton,29/01/2023,50315558,852.23,Clovecare Ltd,SOCIAL SERVICES RESIDENTIAL,Peoples Services,Home Care Services,A56019
London Borough of Sutton,29/01/2023,50315558,47.88,Clovecare Ltd,SOCIAL SERVICES RESIDENTIAL,Peoples Services,Home Care Services,A56019
London Borough of Sutton,29/01/2023,50315582,597.00,Clovecare Ltd,SOCIAL SERVICES RESIDENTIAL,Peoples Services,Home Care Services,A56019
London Borough of Sutton,12/02/2023,50319327,796.00,Clovecare Ltd,SOCIAL SERVICES RESIDENTIAL,Peoples Services,Home Care Services,A56019
London Borough of Sutton,12/02/2023,50319398,597.00,Clovecare Ltd,SOCIAL SERVICES RESIDENTIAL,Peoples Services,Home Care Services,A56019
London Borough of Sutton,12/02/2023,50319426,852.23,Clovecare Ltd,SOCIAL SERVICES RESIDENTIAL,Peoples Services,Home Care Services,A56019
London Borough of Sutton,12/02/2023,50319426,47.88,Clovecare Ltd,SOCIAL SERVICES RESIDENTIAL,Peoples Services,Home Care Services,A56019
London Borough of Sutton,19/02/2023,50322039,597.00,Clovecare Ltd,SOCIAL SERVICES RESIDENTIAL,Peoples Services,Home Care Services,A56019
London Borough of Sutton,19/02/2023,50322042,887.39,Clovecare Ltd,SOCIAL SERVICES RESIDENTIAL,Peoples Services,Home Care Services,A56019
London Borough of Sutton,19/02/2023,50322042,49.85,Clovecare Ltd,SOCIAL SERVICES RESIDENTIAL,Peoples Services,Home Care Services,A56019
London Borough of Sutton,19/02/2023,50322051,597.00,Clovecare Ltd,SOCIAL SERVICES RESIDENTIAL,Peoples Services,Home Care Services,A56019
London Borough of Sutton,17/02/2023,50319974,"4,234.16",Coast Care Homes Ltd,SOCIAL SERVICES RESIDENTIAL,Peoples Services,Residential Care - Ext Provider,A56114
London Borough of Sutton,17/02/2023,50319970,"12,960.16",Cognithan Ltd,SOCIAL SERVICES RESIDENTIAL,Peoples Services,Residential Care - Ext Provider,A56114
London Borough of Sutton,30/09/2022,20038195,"28,073.19",Cognus Ltd,LEGAL & PROFESSIONAL SERVICES,Peoples Services,Consultancy Services,A56007
London Borough of Sutton,11/08/2022,20038197,"60,664.00",Cognus Ltd,LEGAL & PROFESSIONAL SERVICES,Peoples Services,Special Educational Needs,A51015
London Borough of Sutton,04/01/2023,20039755,"218,108.33",Cognus Ltd,LEGAL & PROFESSIONAL SERVICES,Peoples Services,Consultancy Services,A56007
London Borough of Sutton,04/02/2023,20042220,"14,404.17",Cognus Ltd,LEGAL & PROFESSIONAL SERVICES,Peoples Services,Consultancy Services,A56007
London Borough of Sutton,04/02/2023,20042221,"133,895.33",Cognus Ltd,LEGAL & PROFESSIONAL SERVICES,Peoples Services,Special Educational Needs,A51015
London Borough of Sutton,04/02/2023,20042222,"150,275.00",Cognus Ltd,LEGAL & PROFESSIONAL SERVICES,Peoples Services,Consultancy Services,A56007
London Borough of Sutton,04/02/2023,20042223,"42,533.33",Cognus Ltd,LEGAL & PROFESSIONAL SERVICES,Peoples Services,Consultancy Services,A56007
London Borough of Sutton,04/02/2023,20042224,"133,895.33",Cognus Ltd,LEGAL & PROFESSIONAL SERVICES,Peoples Services,Special Educational Needs,A51015
London Borough of Sutton,04/02/2023,20042225,"14,404.17",Cognus Ltd,LEGAL & PROFESSIONAL SERVICES,Peoples Services,Consultancy Services,A56007
London Borough of Sutton,17/02/2023,50319929,"11,981.04",Coleg Elidyr Camphill Communities,CHILDREN'S SERVICES - RESIDENTIAL,Peoples Services,Interim Placements - Ext Provider,A56102
London Borough of Sutton,02/02/2023,50314596,"11,860.99",Collingwood School Ltd,GRANTS & EX GRATIA PAYMENTS,Peoples Services,Payment - Nursery Funding,A51056
London Borough of Sutton,31/01/2023,50314359,"-2,266.23",Comfort Care Services UK Ltd,SOCIAL SERVICES - DIRECT PAYMENTS,Peoples Services,Nursing Care - 3rd party top up payment,A56023
London Borough of Sutton,31/01/2023,50314359,"3,441.38",Comfort Care Services UK Ltd,SOCIAL SERVICES - DIRECT PAYMENTS,Peoples Services,Supported Living,A56088
London Borough of Sutton,09/02/2023,50319572,"1,930.46",Comfort Care Services UK Ltd,SOCIAL SERVICES - DIRECT PAYMENTS,Peoples Services,Supported Living,A56088
London Borough of Sutton,09/02/2023,50319572,-603.68,Comfort Care Services UK Ltd,SOCIAL SERVICES - DIRECT PAYMENTS,Peoples Services,Nursing Care - 3rd party top up payment,A56023
London Borough of Sutton,09/02/2023,50319573,"5,604.06",Comfort Care Services UK Ltd,SOCIAL SERVICES - DIRECT PAYMENTS,Peoples Services,Supported Living,A56088
London Borough of Sutton,09/02/2023,50319573,"-2,034.39",Comfort Care Services UK Ltd,SOCIAL SERVICES - DIRECT PAYMENTS,Peoples Services,Nursing Care - 3rd party top up payment,A56023
London Borough of Sutton,10/02/2023,20042844,"1,000.00",Community Action Sutton,GRANTS & EX GRATIA PAYMENTS,Environment Housing and Neighbourhoods,Community Initiatives,A44288
London Borough of Sutton,01/01/2023,50316925,"3,340.56",Compass Fostering London Ltd,CHILDREN'S SERVICES - FOSTERING & ADOPTION SERVICES,Peoples Services,Foster Parents Support,A44110
London Borough of Sutton,01/01/2023,50317012,"3,487.81",Compass Fostering London Ltd,CHILDREN'S SERVICES - FOSTERING & ADOPTION SERVICES,Peoples Services,Foster Parents Support,A44110
London Borough of Sutton,01/01/2023,50317031,"3,720.00",Compass Fostering London Ltd,CHILDREN'S SERVICES - FOSTERING & ADOPTION SERVICES,Peoples Services,Foster Parents Support,A44110
London Borough of Sutton,01/01/2023,50317002,"4,230.88",Compass Fostering South Ltd,CHILDREN'S SERVICES - FOSTERING & ADOPTION SERVICES,Peoples Services,Foster Parents Support,A44110
London Borough of Sutton,08/02/2023,50316972,"3,875.00",Connect Fostering Services Ltd,CHILDREN'S SERVICES - FOSTERING & ADOPTION SERVICES,Peoples Services,Foster Parents Support,A44110
London Borough of Sutton,09/02/2023,50317994,"1,700.00",Connevans Limited,SOCIAL SERVICES - OTHER,Peoples Services,Equipment,A61013
London Borough of Sutton,02/02/2023,50314636,"16,267.88",Little Pioneers Sutton,GRANTS & EX GRATIA PAYMENTS,Peoples Services,Payment - Nursery Funding,A51056
London Borough of Sutton,07/10/2022,20034546,"35,428.80",Coral Support and Crisis Intervention Ltd,"SOCIAL SERVICES - DOLS, GUM & BIA ASSESSMENTS",Peoples Services,Client Related Assessments,A56017
London Borough of Sutton,17/02/2023,50319961,"4,400.00",Country Court Care Homes 2 Ltd,SOCIAL SERVICES RESIDENTIAL,Peoples Services,Nursing Care - Ext Provider,A56025
London Borough of Sutton,17/02/2023,50319961,"-1,226.92",Country Court Care Homes 2 Ltd,SOCIAL SERVICES RESIDENTIAL,Peoples Services,Nursing Care - 3rd party top up payment,A56023
London Borough of Sutton,28/02/2023,50322185,510.00,CRANBROOK SCHOOL,SCHOOLS ONLY,Peoples Services,Payments to Schools,A51013
London Borough of Sutton,01/12/2022,20041030,"93,504.50",Cranstoun,SOCIAL SERVICES - OTHER,Peoples Services,Provider Contract Payments,A44290
London Borough of Sutton,01/02/2023,20041711,"149,579.67",Cranstoun,SOCIAL SERVICES - OTHER,Health and Wellbeing,Provider Contract Payments,A44290
London Borough of Sutton,17/02/2023,50319960,"7,584.16",Cream 1 Ltd,SOCIAL SERVICES RESIDENTIAL,Peoples Services,Residential Care - Ext Provider,A56114
London Borough of Sutton,17/02/2023,50319960,"5,560.52",Cream 1 Ltd,SOCIAL SERVICES RESIDENTIAL,Peoples Services,One to One Care,A56108
London Borough of Sutton,05/01/2023,50316980,"6,957.29",Credo Care Limited,CHILDREN'S SERVICE - OTHER,Peoples Services,Foster Parents Support,A44110
London Borough of Sutton,17/02/2023,50320120,-836.76,CRNH Ltd,SOCIAL SERVICES RESIDENTIAL,Peoples Services,Nursing Care - 3rd party top up payment,A56023
London Borough of Sutton,17/02/2023,50320120,"21,280.00",CRNH Ltd,SOCIAL SERVICES RESIDENTIAL,Peoples Services,Nursing Care Short Term,A56026
London Borough of Sutton,17/02/2023,50320121,-735.68,CRNH Ltd,SOCIAL SERVICES RESIDENTIAL,Peoples Services,Nursing Care - 3rd party top up payment,A56023
London Borough of Sutton,17/02/2023,50320121,"3,720.16",CRNH Ltd,SOCIAL SERVICES RESIDENTIAL,Peoples Services,Nursing Care - Ext Provider,A56025
London Borough of Sutton,17/02/2023,50320183,771.43,CRNH Ltd,SOCIAL SERVICES RESIDENTIAL,Peoples Services,Nursing Care - Ext Provider,A56025
London Borough of Sutton,17/02/2023,50320183,-119.54,CRNH Ltd,SOCIAL SERVICES RESIDENTIAL,Peoples Services,Nursing Care - 3rd party top up payment,A56023
London Borough of Sutton,17/02/2023,50320184,"5,400.00",CRNH Ltd,SOCIAL SERVICES RESIDENTIAL,Peoples Services,Nursing Care Short Term,A56026
London Borough of Sutton,17/02/2023,50320184,-836.76,CRNH Ltd,SOCIAL SERVICES RESIDENTIAL,Peoples Services,Nursing Care - 3rd party top up payment,A56023
London Borough of Sutton,17/02/2023,50320185,"3,848.24",CRNH Ltd,SOCIAL SERVICES RESIDENTIAL,Peoples Services,Nursing Care - Ext Provider,A56025
London Borough of Sutton,17/02/2023,50320185,-750.40,CRNH Ltd,SOCIAL SERVICES RESIDENTIAL,Peoples Services,Nursing Care - 3rd party top up payment,A56023
London Borough of Sutton,17/02/2023,50320311,"3,609.96",CRNH Ltd,SOCIAL SERVICES RESIDENTIAL,Peoples Services,Nursing Care - Ext Provider,A56025
London Borough of Sutton,17/02/2023,50320311,-632.64,CRNH Ltd,SOCIAL SERVICES RESIDENTIAL,Peoples Services,Nursing Care - 3rd party top up payment,A56023
London Borough of Sutton,17/02/2023,50320312,"3,664.08",CRNH Ltd,SOCIAL SERVICES RESIDENTIAL,Peoples Services,Nursing Care - Ext Provider,A56025
London Borough of Sutton,17/02/2023,50320312,-662.24,CRNH Ltd,SOCIAL SERVICES RESIDENTIAL,Peoples Services,Nursing Care - 3rd party top up payment,A56023
London Borough of Sutton,17/02/2023,50320330,"4,021.24",CRNH Ltd,SOCIAL SERVICES RESIDENTIAL,Peoples Services,Nursing Care - Ext Provider,A56025
London Borough of Sutton,17/02/2023,50320330,-750.40,CRNH Ltd,SOCIAL SERVICES RESIDENTIAL,Peoples Services,Nursing Care - 3rd party top up payment,A56023
London Borough of Sutton,17/02/2023,50320378,"3,720.16",CRNH Ltd,SOCIAL SERVICES RESIDENTIAL,Peoples Services,Nursing Care - Ext Provider,A56025
London Borough of Sutton,17/02/2023,50320378,-735.68,CRNH Ltd,SOCIAL SERVICES RESIDENTIAL,Peoples Services,Nursing Care - 3rd party top up payment,A56023
London Borough of Sutton,24/02/2023,50322215,"6,020.13",CRNH Ltd,SOCIAL SERVICES RESIDENTIAL,Peoples Services,Nursing Care - Ext Provider,A56025
London Borough of Sutton,17/02/2023,50320084,"3,633.76",Cross Care Services Ltd,SOCIAL SERVICES RESIDENTIAL,Peoples Services,Nursing Care - Ext Provider,A56025
London Borough of Sutton,17/02/2023,50320151,"3,720.16",Cross Care Services Ltd,SOCIAL SERVICES RESIDENTIAL,Peoples Services,Nursing Care - Ext Provider,A56025
London Borough of Sutton,17/02/2023,50320151,-735.68,Cross Care Services Ltd,SOCIAL SERVICES RESIDENTIAL,Peoples Services,Nursing Care - 3rd party top up payment,A56023
London Borough of Sutton,17/02/2023,50320259,"-6,636.71",Cross Care Services Ltd,SOCIAL SERVICES RESIDENTIAL,Peoples Services,Nursing Care Short Term,A56026
London Borough of Sutton,17/02/2023,50320322,"3,821.24",Cross Care Services Ltd,SOCIAL SERVICES RESIDENTIAL,Peoples Services,Nursing Care - Ext Provider,A56025
London Borough of Sutton,17/02/2023,50320322,-836.76,Cross Care Services Ltd,SOCIAL SERVICES RESIDENTIAL,Peoples Services,Nursing Care - 3rd party top up payment,A56023
London Borough of Sutton,17/02/2023,50320355,"3,734.88",Cross Care Services Ltd,SOCIAL SERVICES RESIDENTIAL,Peoples Services,Nursing Care - Ext Provider,A56025
London Borough of Sutton,17/02/2023,50320355,-750.40,Cross Care Services Ltd,SOCIAL SERVICES RESIDENTIAL,Peoples Services,Nursing Care - 3rd party top up payment,A56023
London Borough of Sutton,17/02/2023,50320423,"3,720.16",Cross Care Services Ltd,SOCIAL SERVICES RESIDENTIAL,Peoples Services,Nursing Care - Ext Provider,A56025
London Borough of Sutton,17/02/2023,50320423,-735.68,Cross Care Services Ltd,SOCIAL SERVICES RESIDENTIAL,Peoples Services,Nursing Care - 3rd party top up payment,A56023
London Borough of Sutton,17/02/2023,50320440,"3,821.24",Cross Care Services Ltd,SOCIAL SERVICES RESIDENTIAL,Peoples Services,Nursing Care - Ext Provider,A56025
London Borough of Sutton,17/02/2023,50320440,-836.76,Cross Care Services Ltd,SOCIAL SERVICES RESIDENTIAL,Peoples Services,Nursing Care - 3rd party top up payment,A56023
London Borough of Sutton,24/02/2023,50322199,"6,020.13",Cross Care Services Ltd,SOCIAL SERVICES RESIDENTIAL,Peoples Services,Nursing Care - Ext Provider,A56025
London Borough of Sutton,16/02/2023,50321695,"2,445.56",Croydon College,ACADEMIC INSTNS - OTHER,Peoples Services,Top-up Funding,A51016
London Borough of Sutton,16/02/2023,50321696,"2,786.41",Croydon College,ACADEMIC INSTNS - OTHER,Peoples Services,Top-up Funding,A51016
London Borough of Sutton,16/02/2023,50321697,"1,827.97",Croydon College,ACADEMIC INSTNS - OTHER,Peoples Services,Top-up Funding,A51016
London Borough of Sutton,25/01/2023,20041507,"137,657.67",LONDON BOROUGH OF CROYDON,CENTRAL & LOCAL GOVERNMENT,Environment Housing and Neighbourhoods,Idverde - Contract Payment,A56100
London Borough of Sutton,17/02/2023,50319984,"8,118.44",CSS Ltd,SOCIAL SERVICES RESIDENTIAL,Peoples Services,Residential Care - Ext Provider,A56114
London Borough of Sutton,26/01/2023,50312971,626.78,CSS Ltd,SOCIAL SERVICES RESIDENTIAL,Peoples Services,Day Care Services,A56021
London Borough of Sutton,21/02/2023,50321257,683.76,CSS Ltd,SOCIAL SERVICES RESIDENTIAL,Peoples Services,Day Care Services,A56021
London Borough of Sutton,07/02/2023,50314410,"174,548.46",Culvers House Primary School,GRANTS & EX GRATIA PAYMENTS,Peoples Services,Payments to Schools,A51013
London Borough of Sutton,07/02/2023,50314453,"10,948.61",Culvers House Primary School,GRANTS & EX GRATIA PAYMENTS,Peoples Services,Place Funding,A56110
London Borough of Sutton,09/02/2023,20042822,950.00,Culvers Retreat Residents Association,SUNDRY SUPPLIER - ENV SERVICES,Resources,"Grants, Contributions & Donations",A47005
London Borough of Sutton,17/02/2023,50320036,"7,314.29",Curado Limited,GRANTS & EX GRATIA PAYMENTS,Peoples Services,Residential Care - Ext Provider,A56114
London Borough of Sutton,20/02/2023,50320900,"1,800.00",Curado Limited,GRANTS & EX GRATIA PAYMENTS,Peoples Services,Supported Living,A56088
London Borough of Sutton,17/02/2023,50320018,-758.00,Cygnet Learning Disabilities Midlands Ltd,SOCIAL SERVICES RESIDENTIAL,Peoples Services,Residential Care - Client Cont ( Net Paymt ),A56113
London Borough of Sutton,17/02/2023,50320018,"6,827.40",Cygnet Learning Disabilities Midlands Ltd,SOCIAL SERVICES RESIDENTIAL,Peoples Services,Residential Care - Ext Provider,A56114
London Borough of Sutton,31/01/2023,20042019,"6,252.24",Darwin Group Ltd,CONSTRUCTION INDUSTRY,Peoples Services,Payments to Contractors,C14000
London Borough of Sutton,01/02/2023,20041723,"1,571.46",Angel Lettings,ACCOMMODATION BED & BREAKFAST,Environment Housing and Neighbourhoods,Temporary Protection - Homeless Persons,A62028
London Borough of Sutton,01/02/2023,20041724,989.43,Dreamlettings,ACCOMMODATION BED & BREAKFAST,Environment Housing and Neighbourhoods,Temporary Protection - Homeless Persons,A62028
London Borough of Sutton,28/02/2023,50322188,"1,423.52",Worth Primary,SCHOOLS ONLY,Peoples Services,Payments to Schools,A51013
London Borough of Sutton,20/01/2023,20041356,"5,316.14",Dealmaker Ltd,SUNDRY SUPPLIER - FINANCE,Resources,Other Supplies & Services,A44291
London Borough of Sutton,31/01/2023,20041915,"1,658.50",Dellhome Limited,ACCOMMODATION BED & BREAKFAST,Environment Housing and Neighbourhoods,Bed & Breakfast,A56000
London Borough of Sutton,31/01/2023,20041916,"1,658.50",Dellhome Limited,ACCOMMODATION BED & BREAKFAST,Environment Housing and Neighbourhoods,Bed & Breakfast,A56000
London Borough of Sutton,31/01/2023,20041917,"2,077.00",Dellhome Limited,ACCOMMODATION BED & BREAKFAST,Environment Housing and Neighbourhoods,Bed & Breakfast,A56000
London Borough of Sutton,02/02/2023,20042182,"3,720.00",Delta Wise Limited,ACCOMMODATION BED & BREAKFAST,Environment Housing and Neighbourhoods,Bed & Breakfast,A56000
London Borough of Sutton,02/02/2023,20042183,"2,480.00",Delta Wise Limited,ACCOMMODATION BED & BREAKFAST,Environment Housing and Neighbourhoods,Bed & Breakfast,A56000
London Borough of Sutton,02/02/2023,20042184,"2,635.00",Delta Wise Limited,ACCOMMODATION BED & BREAKFAST,Environment Housing and Neighbourhoods,Bed & Breakfast,A56000
London Borough of Sutton,02/02/2023,20042186,"1,116.00",Delta Wise Limited,ACCOMMODATION BED & BREAKFAST,Environment Housing and Neighbourhoods,Bed & Breakfast,A56000
London Borough of Sutton,02/02/2023,20042187,"2,436.00",Delta Wise Limited,ACCOMMODATION BED & BREAKFAST,Environment Housing and Neighbourhoods,Bed & Breakfast,A56000
London Borough of Sutton,02/02/2023,20042188,"2,976.00",Delta Wise Limited,ACCOMMODATION BED & BREAKFAST,Environment Housing and Neighbourhoods,Bed & Breakfast,A56000
London Borough of Sutton,02/02/2023,20042189,546.00,Delta Wise Limited,ACCOMMODATION BED & BREAKFAST,Environment Housing and Neighbourhoods,Bed & Breakfast,A56000
London Borough of Sutton,02/02/2023,20042190,"3,255.00",Delta Wise Limited,ACCOMMODATION BED & BREAKFAST,Environment Housing and Neighbourhoods,Bed & Breakfast,A56000
London Borough of Sutton,02/02/2023,20042191,"2,268.00",Delta Wise Limited,ACCOMMODATION BED & BREAKFAST,Environment Housing and Neighbourhoods,Bed & Breakfast,A56000
London Borough of Sutton,02/02/2023,20042192,"1,488.00",Delta Wise Limited,ACCOMMODATION BED & BREAKFAST,Environment Housing and Neighbourhoods,Bed & Breakfast,A56000
London Borough of Sutton,02/02/2023,20042193,"1,140.00",Delta Wise Limited,ACCOMMODATION BED & BREAKFAST,Environment Housing and Neighbourhoods,Bed & Breakfast,A56000
London Borough of Sutton,02/02/2023,20042194,"1,116.00",Delta Wise Limited,ACCOMMODATION BED & BREAKFAST,Environment Housing and Neighbourhoods,Bed & Breakfast,A56000
London Borough of Sutton,02/02/2023,20042195,"2,170.00",Delta Wise Limited,ACCOMMODATION BED & BREAKFAST,Environment Housing and Neighbourhoods,Bed & Breakfast,A56000
London Borough of Sutton,02/02/2023,20042196,"2,480.00",Delta Wise Limited,ACCOMMODATION BED & BREAKFAST,Environment Housing and Neighbourhoods,Bed & Breakfast,A56000
London Borough of Sutton,08/02/2023,20042514,"1,929.75",Denhan Property Services,ACCOMMODATION BED & BREAKFAST,Environment Housing and Neighbourhoods,Bed & Breakfast,A56000
London Borough of Sutton,08/02/2023,20042515,928.00,Denhan Property Services,ACCOMMODATION BED & BREAKFAST,Environment Housing and Neighbourhoods,Bed & Breakfast,A56000
London Borough of Sutton,08/02/2023,20042516,"1,860.00",Denhan Property Services,ACCOMMODATION BED & BREAKFAST,Environment Housing and Neighbourhoods,Bed & Breakfast,A56000
London Borough of Sutton,08/02/2023,20042517,740.00,Denhan Property Services,ACCOMMODATION BED & BREAKFAST,Environment Housing and Neighbourhoods,Bed & Breakfast,A56000
London Borough of Sutton,08/02/2023,20042518,"1,612.00",Denhan Property Services,ACCOMMODATION BED & BREAKFAST,Environment Housing and Neighbourhoods,Bed & Breakfast,A56000
London Borough of Sutton,08/02/2023,20042519,814.00,Denhan Property Services,ACCOMMODATION BED & BREAKFAST,Environment Housing and Neighbourhoods,Bed & Breakfast,A56000
London Borough of Sutton,08/02/2023,20042520,"2,077.00",Denhan Property Services,ACCOMMODATION BED & BREAKFAST,Environment Housing and Neighbourhoods,Bed & Breakfast,A56000
London Borough of Sutton,08/02/2023,20042521,"1,147.00",Denhan Property Services,ACCOMMODATION BED & BREAKFAST,Environment Housing and Neighbourhoods,Bed & Breakfast,A56000
London Borough of Sutton,17/02/2023,50320013,"3,505.00",Denville Hall 2012,SOCIAL SERVICES RESIDENTIAL,Peoples Services,Residential Care - Ext Provider,A56114
London Borough of Sutton,18/01/2023,20040964,"13,155.45",DEPAULUK,CHILDREN'S SERVICE - OTHER,Peoples Services,Housing and Support - Generic Services,A62013
London Borough of Sutton,31/01/2023,20041854,"21,806.58",DEPAULUK,CHILDREN'S SERVICE - OTHER,Peoples Services,Housing and Support - Generic Services,A62013
London Borough of Sutton,31/01/2023,20041855,"8,579.64",DEPAULUK,CHILDREN'S SERVICE - OTHER,Peoples Services,Housing and Support - Generic Services,A62013
London Borough of Sutton,17/02/2023,50320016,"3,175.04",Devaglade Trading Limited,SOCIAL SERVICES RESIDENTIAL,Peoples Services,Residential Care - Ext Provider,A56114
London Borough of Sutton,07/02/2023,50314403,"254,143.43",Devonshire Primary School,GRANTS & EX GRATIA PAYMENTS,Peoples Services,Payments to Schools,A51013
London Borough of Sutton,07/02/2023,50314454,"11,483.21",Devonshire Primary School,GRANTS & EX GRATIA PAYMENTS,Peoples Services,Place Funding,A56110
London Borough of Sutton,07/02/2023,50314500,"4,816.70",Devonshire Primary School,GRANTS & EX GRATIA PAYMENTS,Peoples Services,Pupil Growth,A51014
London Borough of Sutton,31/01/2023,50314364,675.62,Direct Care And Support Services,ACCOMMODATION - OTHER,Peoples Services,Supported Living,A56088
London Borough of Sutton,31/01/2023,50314364,"1,307.32",Direct Care And Support Services,ACCOMMODATION - OTHER,Peoples Services,Supported Living,A56088
London Borough of Sutton,31/01/2023,50314364,"1,713.12",Direct Care And Support Services,ACCOMMODATION - OTHER,Peoples Services,Supported Living,A56088
London Borough of Sutton,31/01/2023,50314365,"3,535.81",Direct Care And Support Services,ACCOMMODATION - OTHER,Peoples Services,Supported Living,A56088
London Borough of Sutton,31/01/2023,50314365,"1,307.32",Direct Care And Support Services,ACCOMMODATION - OTHER,Peoples Services,Supported Living,A56088
London Borough of Sutton,31/01/2023,50314365,990.68,Direct Care And Support Services,ACCOMMODATION - OTHER,Peoples Services,Supported Living,A56088
London Borough of Sutton,31/01/2023,50314366,"3,133.44",Direct Care And Support Services,ACCOMMODATION - OTHER,Peoples Services,Supported Living,A56088
London Borough of Sutton,31/01/2023,50314366,"1,307.32",Direct Care And Support Services,ACCOMMODATION - OTHER,Peoples Services,Supported Living,A56088
London Borough of Sutton,31/01/2023,50314366,"1,124.80",Direct Care And Support Services,ACCOMMODATION - OTHER,Peoples Services,Supported Living,A56088
London Borough of Sutton,01/04/2022,50315900,"9,798.00",Direct Care And Support Services,ACCOMMODATION - OTHER,Peoples Services,One to One Care,A56108
London Borough of Sutton,04/10/2022,50321256,"-1,432.16",Direct Care And Support Services,ACCOMMODATION - OTHER,Peoples Services,Supported Living,A56088
London Borough of Sutton,04/10/2022,50321256,"1,307.32",Direct Care And Support Services,ACCOMMODATION - OTHER,Peoples Services,Supported Living,A56088
London Borough of Sutton,04/10/2022,50321256,705.84,Direct Care And Support Services,ACCOMMODATION - OTHER,Peoples Services,Supported Living,A56088
London Borough of Sutton,18/01/2023,50321275,"5,577.60",Direct Care And Support Services,ACCOMMODATION - OTHER,Peoples Services,Supported Living,A56088
London Borough of Sutton,18/01/2023,50321275,"1,400.00",Direct Care And Support Services,ACCOMMODATION - OTHER,Peoples Services,Supported Living,A56088
London Borough of Sutton,15/02/2023,50321278,447.80,Direct Care And Support Services,ACCOMMODATION - OTHER,Peoples Services,Supported Living,A56088
London Borough of Sutton,15/02/2023,50321278,"1,307.32",Direct Care And Support Services,ACCOMMODATION - OTHER,Peoples Services,Supported Living,A56088
London Borough of Sutton,15/02/2023,50321278,561.08,Direct Care And Support Services,ACCOMMODATION - OTHER,Peoples Services,Supported Living,A56088
London Borough of Sutton,15/02/2023,50321279,"2,324.00",Direct Care And Support Services,ACCOMMODATION - OTHER,Peoples Services,Supported Living,A56088
London Borough of Sutton,15/02/2023,50321279,"1,307.32",Direct Care And Support Services,ACCOMMODATION - OTHER,Peoples Services,Supported Living,A56088
London Borough of Sutton,15/02/2023,50321279,697.20,Direct Care And Support Services,ACCOMMODATION - OTHER,Peoples Services,Supported Living,A56088
London Borough of Sutton,19/12/2022,50321438,"5,577.60",Direct Care And Support Services,ACCOMMODATION - OTHER,Peoples Services,Supported Living,A56088
London Borough of Sutton,19/12/2022,50321438,"1,400.00",Direct Care And Support Services,ACCOMMODATION - OTHER,Peoples Services,Supported Living,A56088
London Borough of Sutton,04/10/2022,50321439,"-1,432.16",Direct Care And Support Services,ACCOMMODATION - OTHER,Peoples Services,Supported Living,A56088
London Borough of Sutton,04/10/2022,50321439,"1,307.32",Direct Care And Support Services,ACCOMMODATION - OTHER,Peoples Services,Supported Living,A56088
London Borough of Sutton,04/10/2022,50321439,705.84,Direct Care And Support Services,ACCOMMODATION - OTHER,Peoples Services,Supported Living,A56088
London Borough of Sutton,31/01/2023,50321442,"5,577.60",Direct Care And Support Services,ACCOMMODATION - OTHER,Peoples Services,Supported Living,A56088
London Borough of Sutton,31/01/2023,50321442,"1,400.00",Direct Care And Support Services,ACCOMMODATION - OTHER,Peoples Services,Supported Living,A56088
London Borough of Sutton,04/10/2022,50321443,539.50,Direct Care And Support Services,ACCOMMODATION - OTHER,Peoples Services,Supported Living,A56088
London Borough of Sutton,15/02/2023,50321444,"1,292.14",Direct Care And Support Services,ACCOMMODATION - OTHER,Peoples Services,Supported Living,A56088
London Borough of Sutton,15/02/2023,50321444,"1,307.32",Direct Care And Support Services,ACCOMMODATION - OTHER,Peoples Services,Supported Living,A56088
London Borough of Sutton,15/02/2023,50321444,531.20,Direct Care And Support Services,ACCOMMODATION - OTHER,Peoples Services,Supported Living,A56088
London Borough of Sutton,15/02/2023,50321470,"2,690.00",Direct Care And Support Services,ACCOMMODATION - OTHER,Peoples Services,Supported Living,A56088
London Borough of Sutton,15/02/2023,50321470,"1,307.32",Direct Care And Support Services,ACCOMMODATION - OTHER,Peoples Services,Supported Living,A56088
London Borough of Sutton,15/02/2023,50321470,670.64,Direct Care And Support Services,ACCOMMODATION - OTHER,Peoples Services,Supported Living,A56088
London Borough of Sutton,15/02/2023,50321638,830.00,Direct Care And Support Services,ACCOMMODATION - OTHER,Peoples Services,Supported Living,A56088
London Borough of Sutton,15/02/2023,50321638,"1,307.32",Direct Care And Support Services,ACCOMMODATION - OTHER,Peoples Services,Supported Living,A56088
London Borough of Sutton,15/02/2023,50321638,614.86,Direct Care And Support Services,ACCOMMODATION - OTHER,Peoples Services,Supported Living,A56088
London Borough of Sutton,21/02/2022,50321814,"3,154.00",Direct Care And Support Services,ACCOMMODATION - OTHER,Peoples Services,Supported Living,A56088
London Borough of Sutton,21/02/2022,50321814,"1,307.32",Direct Care And Support Services,ACCOMMODATION - OTHER,Peoples Services,Supported Living,A56088
London Borough of Sutton,21/02/2022,50321814,894.41,Direct Care And Support Services,ACCOMMODATION - OTHER,Peoples Services,Supported Living,A56088
London Borough of Sutton,17/01/2023,50321817,"3,154.01",Direct Care And Support Services,ACCOMMODATION - OTHER,Peoples Services,Supported Living,A56088
London Borough of Sutton,17/01/2023,50321817,"1,307.32",Direct Care And Support Services,ACCOMMODATION - OTHER,Peoples Services,Supported Living,A56088
London Borough of Sutton,17/01/2023,50321817,894.40,Direct Care And Support Services,ACCOMMODATION - OTHER,Peoples Services,Supported Living,A56088
London Borough of Sutton,21/02/2022,50321853,"2,357.20",Direct Care And Support Services,ACCOMMODATION - OTHER,Peoples Services,Supported Living,A56088
London Borough of Sutton,21/02/2022,50321853,"1,307.32",Direct Care And Support Services,ACCOMMODATION - OTHER,Peoples Services,Supported Living,A56088
London Borough of Sutton,21/02/2022,50321854,"2,357.20",Direct Care And Support Services,ACCOMMODATION - OTHER,Peoples Services,Supported Living,A56088
London Borough of Sutton,21/02/2022,50321854,"1,307.32",Direct Care And Support Services,ACCOMMODATION - OTHER,Peoples Services,Supported Living,A56088
London Borough of Sutton,05/02/2023,50322515,"1,416.29",Direct Care And Support Services,ACCOMMODATION - OTHER,Peoples Services,Supported Living,A56088
London Borough of Sutton,05/02/2023,50322515,"1,307.32",Direct Care And Support Services,ACCOMMODATION - OTHER,Peoples Services,Supported Living,A56088
London Borough of Sutton,05/02/2023,50322515,538.52,Direct Care And Support Services,ACCOMMODATION - OTHER,Peoples Services,Supported Living,A56088
London Borough of Sutton,02/02/2023,50314534,"1,092.36",REDACTED - PERSONAL DATA,GRANTS & EX GRATIA PAYMENTS,Peoples Services,Payment - Nursery Funding,A51056
London Borough of Sutton,07/02/2023,50314405,"197,787.27",Dorchester Primary School,GRANTS & EX GRATIA PAYMENTS,Peoples Services,Payments to Schools,A51013
London Borough of Sutton,07/02/2023,50314455,"17,224.81",Dorchester Primary School,GRANTS & EX GRATIA PAYMENTS,Peoples Services,Place Funding,A56110
London Borough of Sutton,07/02/2023,50316062,"20,482.88",Dorchester Primary School,GRANTS & EX GRATIA PAYMENTS,Peoples Services,Top-up Funding,A51016
London Borough of Sutton,29/01/2023,20041636,543.90,REDACTED - PERSONAL DATA,"SOCIAL SERVICES - DOLS, GUM & BIA ASSESSMENTS",Peoples Services,Client Related Assessments,A56017
London Borough of Sutton,01/02/2023,50317066,"3,321.38",Dreamfo Housing Ltd,CHILDREN'S SERVICE - OTHER,Peoples Services,Approved Lodgings,A61000
London Borough of Sutton,01/02/2023,50317066,276.79,Dreamfo Housing Ltd,CHILDREN'S SERVICE - OTHER,Peoples Services,Approved Lodgings,A61000
London Borough of Sutton,01/02/2023,50317067,"4,915.71",Dreamfo Housing Ltd,CHILDREN'S SERVICE - OTHER,Peoples Services,Approved Lodgings,A61000
London Borough of Sutton,01/02/2023,50317067,276.79,Dreamfo Housing Ltd,CHILDREN'S SERVICE - OTHER,Peoples Services,Approved Lodgings,A61000
London Borough of Sutton,31/01/2023,20041833,297.53,DSI Billing Services Ltd,OFFICE SERVICES,Resources,Postage & Couriers,A45015
London Borough of Sutton,31/01/2023,20041833,297.52,DSI Billing Services Ltd,OFFICE SERVICES,Resources,Postage & Couriers,A45015
London Borough of Sutton,31/12/2022,20042353,"12,385.96",Ductclean (UK) Ltd,CONSTRUCTION INDUSTRY,HRA,Payments to Contractors,C14000
London Borough of Sutton,01/01/2023,50316958,"4,317.84",Dunfield & Mead Ltd,CHILDREN'S SERVICES - RESIDENTIAL,Peoples Services,Accommodation - Supported Living,A62001
London Borough of Sutton,01/01/2023,50316958,276.79,Dunfield & Mead Ltd,CHILDREN'S SERVICES - RESIDENTIAL,Peoples Services,Accommodation - Supported Living,A62001
London Borough of Sutton,01/01/2023,50317011,"3,653.56",Dunfield & Mead Ltd,CHILDREN'S SERVICES - RESIDENTIAL,Peoples Services,Approved Lodgings,A61000
London Borough of Sutton,01/01/2023,50317011,276.79,Dunfield & Mead Ltd,CHILDREN'S SERVICES - RESIDENTIAL,Peoples Services,Approved Lodgings,A61000
London Borough of Sutton,01/01/2023,50317013,"4,594.63",Dunfield & Mead Ltd,CHILDREN'S SERVICES - RESIDENTIAL,Peoples Services,Accommodation - Supported Living,A62001
London Borough of Sutton,31/01/2023,20041946,"4,266.00",Dunheved Hotel Ltd,ACCOMMODATION BED & BREAKFAST,Environment Housing and Neighbourhoods,Bed & Breakfast,A56000
London Borough of Sutton,17/02/2023,50319968,"3,187.44",Dunheved Lodge,SOCIAL SERVICES RESIDENTIAL,Peoples Services,Residential Care - Ext Provider,A56114
London Borough of Sutton,17/02/2023,50319968,"3,016.00",Dunheved Lodge,SOCIAL SERVICES RESIDENTIAL,Peoples Services,One to One Care,A56108
London Borough of Sutton,31/01/2023,50316941,276.79,Dynamic Care Ltd,SOCIAL SERVICES RESIDENTIAL,Peoples Services,Approved Lodgings,A61000
London Borough of Sutton,31/01/2023,50316941,"5,203.56",Dynamic Care Ltd,SOCIAL SERVICES RESIDENTIAL,Peoples Services,Accommodation - Supported Living,A62001
London Borough of Sutton,31/01/2023,50317017,"4,926.78",Dynamic Care Ltd,SOCIAL SERVICES RESIDENTIAL,Peoples Services,Approved Lodgings,A61000
London Borough of Sutton,31/01/2023,50319894,883.92,Dynamic Care Ltd,SOCIAL SERVICES RESIDENTIAL,Peoples Services,Approved Lodgings,A61000
London Borough of Sutton,31/01/2023,50319905,"1,950.00",Dynamic Care Ltd,SOCIAL SERVICES RESIDENTIAL,Peoples Services,Approved Lodgings,A61000
London Borough of Sutton,31/01/2023,50319905,116.07,Dynamic Care Ltd,SOCIAL SERVICES RESIDENTIAL,Peoples Services,Approved Lodgings,A61000
London Borough of Sutton,31/01/2023,20043011,"21,069.00",E Homes And Shelters,ACCOMMODATION BED & BREAKFAST,Environment Housing and Neighbourhoods,Bed & Breakfast,A56000
London Borough of Sutton,27/01/2023,20042450,534.29,E Pollard & Sons Limited,SUNDRY SUPPLIER - ASC,Health and Wellbeing,Equipment And Materials Purchase,A40000
London Borough of Sutton,17/02/2023,50320057,"3,848.24",Eastcroft Nursing Home,SOCIAL SERVICES RESIDENTIAL,Peoples Services,Nursing Care - Ext Provider,A56025
London Borough of Sutton,17/02/2023,50320057,-750.40,Eastcroft Nursing Home,SOCIAL SERVICES RESIDENTIAL,Peoples Services,Nursing Care - 3rd party top up payment,A56023
London Borough of Sutton,17/02/2023,50320061,-836.76,Eastcroft Nursing Home,SOCIAL SERVICES RESIDENTIAL,Peoples Services,Nursing Care - 3rd party top up payment,A56023
London Borough of Sutton,17/02/2023,50320061,"4,052.76",Eastcroft Nursing Home,SOCIAL SERVICES RESIDENTIAL,Peoples Services,Nursing Care Short Term,A56026
London Borough of Sutton,17/02/2023,50320093,"3,734.88",Eastcroft Nursing Home,SOCIAL SERVICES RESIDENTIAL,Peoples Services,Nursing Care - Ext Provider,A56025
London Borough of Sutton,17/02/2023,50320093,-750.40,Eastcroft Nursing Home,SOCIAL SERVICES RESIDENTIAL,Peoples Services,Nursing Care - 3rd party top up payment,A56023
London Borough of Sutton,17/02/2023,50320135,-209.19,Eastcroft Nursing Home,SOCIAL SERVICES RESIDENTIAL,Peoples Services,Nursing Care - 3rd party top up payment,A56023
London Borough of Sutton,17/02/2023,50320135,"1,455.31",Eastcroft Nursing Home,SOCIAL SERVICES RESIDENTIAL,Peoples Services,Nursing Care Short Term,A56026
London Borough of Sutton,17/02/2023,50320198,"3,734.88",Eastcroft Nursing Home,SOCIAL SERVICES RESIDENTIAL,Peoples Services,Nursing Care - Ext Provider,A56025
London Borough of Sutton,17/02/2023,50320198,-750.40,Eastcroft Nursing Home,SOCIAL SERVICES RESIDENTIAL,Peoples Services,Nursing Care - 3rd party top up payment,A56023
London Borough of Sutton,17/02/2023,50320249,"3,411.82",Eastcroft Nursing Home,SOCIAL SERVICES RESIDENTIAL,Peoples Services,Nursing Care Short Term,A56026
London Borough of Sutton,17/02/2023,50320288,-508.03,Eastcroft Nursing Home,SOCIAL SERVICES RESIDENTIAL,Peoples Services,Nursing Care - 3rd party top up payment,A56023
London Borough of Sutton,17/02/2023,50320288,"2,320.04",Eastcroft Nursing Home,SOCIAL SERVICES RESIDENTIAL,Peoples Services,Nursing Care Short Term,A56026
London Borough of Sutton,17/02/2023,50320344,-750.40,Eastcroft Nursing Home,SOCIAL SERVICES RESIDENTIAL,Peoples Services,Nursing Care - 3rd party top up payment,A56023
London Borough of Sutton,17/02/2023,50320344,"3,736.00",Eastcroft Nursing Home,SOCIAL SERVICES RESIDENTIAL,Peoples Services,Nursing Care Short Term,A56026
London Borough of Sutton,01/02/2023,20042306,895.92,EDF Energy,UTILITIES,Environment Housing and Neighbourhoods,Electricity,A21000
London Borough of Sutton,13/02/2023,50317729,552.90,REDACTED - PERSONAL DATA,SUNDRY SUPPLIER - EDUCATION,Peoples Services,Miscellaneous Expenses,A49000
London Borough of Sutton,02/02/2023,50314591,"1,594.89",REDACTED - PERSONAL DATA,GRANTS & EX GRATIA PAYMENTS,Peoples Services,Payment - Nursery Funding,A51056
London Borough of Sutton,13/02/2023,50317692,737.10,REDACTED - PERSONAL DATA,SUNDRY SUPPLIER - EDUCATION,Peoples Services,Miscellaneous Expenses,A49000
London Borough of Sutton,01/01/2023,50320485,819.00,Elite CarePlus Ltd,SOCIAL SERVICES DAY CARE,Peoples Services,Home Care Services,A56019
London Borough of Sutton,08/01/2023,50320486,819.00,Elite CarePlus Ltd,SOCIAL SERVICES DAY CARE,Peoples Services,Home Care Services,A56019
London Borough of Sutton,15/01/2023,50320487,819.00,Elite CarePlus Ltd,SOCIAL SERVICES DAY CARE,Peoples Services,Home Care Services,A56019
London Borough of Sutton,22/01/2023,50320488,819.00,Elite CarePlus Ltd,SOCIAL SERVICES DAY CARE,Peoples Services,Home Care Services,A56019
London Borough of Sutton,05/02/2023,50320489,819.00,Elite CarePlus Ltd,SOCIAL SERVICES DAY CARE,Peoples Services,Home Care Services,A56019
London Borough of Sutton,12/02/2023,50320490,819.00,Elite CarePlus Ltd,SOCIAL SERVICES DAY CARE,Peoples Services,Home Care Services,A56019
London Borough of Sutton,01/01/2023,50320491,799.50,Elite CarePlus Ltd,SOCIAL SERVICES DAY CARE,Peoples Services,Home Care Services,A56019
London Borough of Sutton,08/01/2023,50320492,799.50,Elite CarePlus Ltd,SOCIAL SERVICES DAY CARE,Peoples Services,Home Care Services,A56019
London Borough of Sutton,15/01/2023,50320493,799.50,Elite CarePlus Ltd,SOCIAL SERVICES DAY CARE,Peoples Services,Home Care Services,A56019
London Borough of Sutton,22/01/2023,50320494,799.50,Elite CarePlus Ltd,SOCIAL SERVICES DAY CARE,Peoples Services,Home Care Services,A56019
London Borough of Sutton,05/02/2023,50320495,799.50,Elite CarePlus Ltd,SOCIAL SERVICES DAY CARE,Peoples Services,Home Care Services,A56019
London Borough of Sutton,12/02/2023,50320496,799.50,Elite CarePlus Ltd,SOCIAL SERVICES DAY CARE,Peoples Services,Home Care Services,A56019
London Borough of Sutton,05/02/2023,50320509,750.75,Elite CarePlus Ltd,SOCIAL SERVICES DAY CARE,Peoples Services,Home Care Services,A56019
London Borough of Sutton,01/01/2023,50320511,750.75,Elite CarePlus Ltd,SOCIAL SERVICES DAY CARE,Peoples Services,Home Care Services,A56019
London Borough of Sutton,08/01/2023,50320512,750.75,Elite CarePlus Ltd,SOCIAL SERVICES DAY CARE,Peoples Services,Home Care Services,A56019
London Borough of Sutton,15/01/2023,50320513,750.75,Elite CarePlus Ltd,SOCIAL SERVICES DAY CARE,Peoples Services,Home Care Services,A56019
London Borough of Sutton,22/01/2023,50320514,750.75,Elite CarePlus Ltd,SOCIAL SERVICES DAY CARE,Peoples Services,Home Care Services,A56019
London Borough of Sutton,12/02/2023,50320515,750.75,Elite CarePlus Ltd,SOCIAL SERVICES DAY CARE,Peoples Services,Home Care Services,A56019
London Borough of Sutton,22/01/2023,50320529,614.25,Elite CarePlus Ltd,SOCIAL SERVICES DAY CARE,Peoples Services,Home Care Services,A56019
London Borough of Sutton,01/01/2023,50320533,614.25,Elite CarePlus Ltd,SOCIAL SERVICES DAY CARE,Peoples Services,Home Care Services,A56019
London Borough of Sutton,08/01/2023,50320534,614.25,Elite CarePlus Ltd,SOCIAL SERVICES DAY CARE,Peoples Services,Home Care Services,A56019
London Borough of Sutton,15/01/2023,50320535,614.25,Elite CarePlus Ltd,SOCIAL SERVICES DAY CARE,Peoples Services,Home Care Services,A56019
London Borough of Sutton,05/02/2023,50320536,614.25,Elite CarePlus Ltd,SOCIAL SERVICES DAY CARE,Peoples Services,Home Care Services,A56019
London Borough of Sutton,01/01/2023,50320549,614.25,Elite CarePlus Ltd,SOCIAL SERVICES DAY CARE,Peoples Services,Home Care Services,A56019
London Borough of Sutton,08/01/2023,50320550,614.25,Elite CarePlus Ltd,SOCIAL SERVICES DAY CARE,Peoples Services,Home Care Services,A56019
London Borough of Sutton,15/01/2023,50320551,614.25,Elite CarePlus Ltd,SOCIAL SERVICES DAY CARE,Peoples Services,Home Care Services,A56019
London Borough of Sutton,22/01/2023,50320552,614.25,Elite CarePlus Ltd,SOCIAL SERVICES DAY CARE,Peoples Services,Home Care Services,A56019
London Borough of Sutton,05/02/2023,50320553,614.25,Elite CarePlus Ltd,SOCIAL SERVICES DAY CARE,Peoples Services,Home Care Services,A56019
London Borough of Sutton,12/02/2023,50320554,614.25,Elite CarePlus Ltd,SOCIAL SERVICES DAY CARE,Peoples Services,Home Care Services,A56019
London Borough of Sutton,01/01/2023,50320705,"1,160.25",Elite CarePlus Ltd,SOCIAL SERVICES DAY CARE,Peoples Services,Home Care Services,A56019
London Borough of Sutton,08/01/2023,50320706,"1,160.25",Elite CarePlus Ltd,SOCIAL SERVICES DAY CARE,Peoples Services,Home Care Services,A56019
London Borough of Sutton,15/01/2023,50320707,"1,160.25",Elite CarePlus Ltd,SOCIAL SERVICES DAY CARE,Peoples Services,Home Care Services,A56019
London Borough of Sutton,05/02/2023,50320708,"1,160.25",Elite CarePlus Ltd,SOCIAL SERVICES DAY CARE,Peoples Services,Home Care Services,A56019
London Borough of Sutton,12/02/2023,50320709,"1,160.25",Elite CarePlus Ltd,SOCIAL SERVICES DAY CARE,Peoples Services,Home Care Services,A56019
London Borough of Sutton,15/01/2023,50320711,975.00,Elite CarePlus Ltd,SOCIAL SERVICES DAY CARE,Peoples Services,Home Care Services,A56019
London Borough of Sutton,22/01/2023,50320712,975.00,Elite CarePlus Ltd,SOCIAL SERVICES DAY CARE,Peoples Services,Home Care Services,A56019
London Borough of Sutton,05/02/2023,50320713,975.00,Elite CarePlus Ltd,SOCIAL SERVICES DAY CARE,Peoples Services,Home Care Services,A56019
London Borough of Sutton,12/02/2023,50320714,975.00,Elite CarePlus Ltd,SOCIAL SERVICES DAY CARE,Peoples Services,Home Care Services,A56019
London Borough of Sutton,31/01/2023,20042177,640.00,Sassy Box Ltd,CHILDREN'S SERVICE - OTHER,Resources,Other Supplies & Services,A44291
London Borough of Sutton,08/02/2023,20042549,"2,640.00",Sassy Box Ltd,CHILDREN'S SERVICE - OTHER,Resources,Other Supplies & Services,A44291
London Borough of Sutton,17/02/2023,50320044,"9,101.84",Elysium Healthcare Ltd,CHILDREN'S SERVICES - FOSTERING & ADOPTION SERVICES,Peoples Services,Residential Care - Ext Provider,A56114
London Borough of Sutton,17/02/2023,50319996,"7,668.40",Elysium Supported Living Limited,SOCIAL SERVICES RESIDENTIAL,Peoples Services,Residential Care - Ext Provider,A56114
London Borough of Sutton,02/02/2023,50314646,637.95,REDACTED - PERSONAL DATA,SOCIAL SERVICES - DIRECT PAYMENTS,Peoples Services,Payment - Nursery Funding,A51056
London Borough of Sutton,31/01/2023,50313504,"26,552.00",EMPOWER KNOWLEDGE LIMITED,CHILDREN'S SERVICES - SEN SERVICES,Peoples Services,Independent School Fees,A56002
London Borough of Sutton,31/12/2022,20039961,"11,185.75",Encompass,TEMP STAFF & CONSULTANCY,Environment Housing and Neighbourhoods,Housing Contract Fee,A56099
London Borough of Sutton,31/12/2022,20039963,"4,500.00",Encompass,TEMP STAFF & CONSULTANCY,Environment Housing and Neighbourhoods,Housing Contract Fee,A56099
London Borough of Sutton,31/12/2022,20039964,"11,250.00",Encompass,TEMP STAFF & CONSULTANCY,Environment Housing and Neighbourhoods,Housing Contract Fee,A56099
London Borough of Sutton,31/12/2022,20039965,"773,498.90",Encompass,TEMP STAFF & CONSULTANCY,Environment Housing and Neighbourhoods,Housing Contract Fee,A56099
London Borough of Sutton,31/01/2023,20041980,"249,060.00",Encompass,TEMP STAFF & CONSULTANCY,Environment Housing and Neighbourhoods,"Grants, Contributions & Donations",A47005
London Borough of Sutton,08/02/2023,20042544,"33,000.00",Encompass,TEMP STAFF & CONSULTANCY,Peoples Services,Fees,A44040
London Borough of Sutton,20/02/2023,50320828,"3,400.00",Enriched Care Ltd,CHILDREN'S SERVICES - RESIDENTIAL,Peoples Services,Supported Living,A56088
London Borough of Sutton,17/01/2023,20041895,"3,846.96",Enviva Paediatric Care,DISABLED CHILDRENS TEAM,Peoples Services,One to One Care,A56108
London Borough of Sutton,17/01/2023,20041896,"1,716.46",Enviva Paediatric Care,DISABLED CHILDRENS TEAM,Peoples Services,One to One Care,A56108
London Borough of Sutton,30/01/2023,20041715,"3,208.48",E-on Energy,UTILITIES,Resources,Gas,A21003
London Borough of Sutton,31/01/2023,20041932,658.23,E-on Energy,UTILITIES,Resources,Gas,A21003
London Borough of Sutton,31/01/2023,20041932,45.83,E-on Energy,UTILITIES,Resources,Gas,A21003
London Borough of Sutton,31/01/2023,20041932,90.00,E-on Energy,UTILITIES,Resources,Gas,A21003
London Borough of Sutton,06/02/2023,20042277,"1,579.81",E-on Energy,UTILITIES,Resources,Electricity,A21000
London Borough of Sutton,17/02/2023,20043293,"2,236.97",E-on Energy,UTILITIES,Resources,Gas,A21003
London Borough of Sutton,02/02/2023,20042168,"7,841.63",Epsom & St Helier Nhs Trust,OFFICE SERVICES,Health and Wellbeing,Provider Contract Payments,A44290
London Borough of Sutton,03/11/2022,20043068,"866,872.00",Epsom & St Helier Nhs Trust,OFFICE SERVICES,Health and Wellbeing,Payments to Contractors,C14000
London Borough of Sutton,02/02/2023,50314685,"23,604.37",Epsom & St Helier Nhs Trust,OFFICE SERVICES,Peoples Services,Payment - Nursery Funding,A51056
London Borough of Sutton,29/01/2023,50317160,559.97,Escoben Care Services Ltd,SOCIAL SERVICES RESIDENTIAL,Peoples Services,Home Care Services,A56019
London Borough of Sutton,29/01/2023,50317172,559.97,Escoben Care Services Ltd,SOCIAL SERVICES RESIDENTIAL,Peoples Services,Home Care Services,A56019
London Borough of Sutton,29/01/2023,50317301,"1,134.00",Escoben Care Services Ltd,SOCIAL SERVICES RESIDENTIAL,Peoples Services,Home Care Services,A56019
London Borough of Sutton,29/01/2023,50317302,797.90,Escoben Care Services Ltd,SOCIAL SERVICES RESIDENTIAL,Peoples Services,Home Care Services,A56019
London Borough of Sutton,12/02/2023,50321260,"1,134.00",Escoben Care Services Ltd,SOCIAL SERVICES RESIDENTIAL,Peoples Services,Home Care Services,A56019
London Borough of Sutton,12/02/2023,50321302,797.90,Escoben Care Services Ltd,SOCIAL SERVICES RESIDENTIAL,Peoples Services,Home Care Services,A56019
London Borough of Sutton,12/02/2023,50321445,559.97,Escoben Care Services Ltd,SOCIAL SERVICES RESIDENTIAL,Peoples Services,Home Care Services,A56019
London Borough of Sutton,14/01/2023,50317003,"24,534.29",Esland North Ltd ,CHILDREN'S SERVICES - RESIDENTIAL,Peoples Services,Residential Care-Children,A56115
London Borough of Sutton,05/02/2023,50316952,"1,771.40",Ethelbert Specialist Homes Ltd,CHILDREN'S SERVICES - RESIDENTIAL,Peoples Services,Foster Parents Support,A44110
London Borough of Sutton,05/01/2023,50316955,"17,675.76",Ethelbert Specialist Homes Ltd,CHILDREN'S SERVICES - RESIDENTIAL,Peoples Services,Residential Care-Children,A56115
London Borough of Sutton,05/01/2023,50316956,"4,042.49",Ethelbert Specialist Homes Ltd,CHILDREN'S SERVICES - RESIDENTIAL,Peoples Services,Foster Parents Support,A44110
London Borough of Sutton,05/02/2023,50317018,"1,771.40",Ethelbert Specialist Homes Ltd,CHILDREN'S SERVICES - RESIDENTIAL,Peoples Services,Foster Parents Support,A44110
London Borough of Sutton,11/01/2023,20040357,"5,500.00",Exergame Solutions Ltd,BUSINESS & COMPUTER SYSTEMS,Health and Wellbeing,"Property Repairs, Maintenance & Alterations",A20010
London Borough of Sutton,22/01/2023,50312985,551.15,Exodus Health Care Services Ltd,SOCIAL SERVICES RESIDENTIAL,Peoples Services,Home Care Services,A56019
London Borough of Sutton,22/01/2023,50312985,91.98,Exodus Health Care Services Ltd,SOCIAL SERVICES RESIDENTIAL,Peoples Services,Home Care Services,A56019
London Borough of Sutton,22/01/2023,50313043,612.50,Exodus Health Care Services Ltd,SOCIAL SERVICES RESIDENTIAL,Peoples Services,Home Care Services,A56019
London Borough of Sutton,22/01/2023,50313043,52.50,Exodus Health Care Services Ltd,SOCIAL SERVICES RESIDENTIAL,Peoples Services,Home Care Services,A56019
London Borough of Sutton,22/01/2023,50313044,551.25,Exodus Health Care Services Ltd,SOCIAL SERVICES RESIDENTIAL,Peoples Services,Home Care Services,A56019
London Borough of Sutton,22/01/2023,50313044,52.50,Exodus Health Care Services Ltd,SOCIAL SERVICES RESIDENTIAL,Peoples Services,Home Care Services,A56019
London Borough of Sutton,22/01/2023,50313050,551.25,Exodus Health Care Services Ltd,SOCIAL SERVICES RESIDENTIAL,Peoples Services,Home Care Services,A56019
London Borough of Sutton,22/01/2023,50313057,612.50,Exodus Health Care Services Ltd,SOCIAL SERVICES RESIDENTIAL,Peoples Services,Home Care Services,A56019
London Borough of Sutton,22/01/2023,50313059,551.25,Exodus Health Care Services Ltd,SOCIAL SERVICES RESIDENTIAL,Peoples Services,Home Care Services,A56019
London Borough of Sutton,22/01/2023,50313086,551.25,Exodus Health Care Services Ltd,SOCIAL SERVICES RESIDENTIAL,Peoples Services,Home Care Services,A56019
London Borough of Sutton,22/01/2023,50314076,621.25,Exodus Health Care Services Ltd,SOCIAL SERVICES RESIDENTIAL,Peoples Services,Home Care Services,A56019
London Borough of Sutton,22/01/2023,50314087,735.00,Exodus Health Care Services Ltd,SOCIAL SERVICES RESIDENTIAL,Peoples Services,Home Care Services,A56019
London Borough of Sutton,22/01/2023,50314090,656.25,Exodus Health Care Services Ltd,SOCIAL SERVICES RESIDENTIAL,Peoples Services,Home Care Services,A56019
London Borough of Sutton,22/01/2023,50314090,105.00,Exodus Health Care Services Ltd,SOCIAL SERVICES RESIDENTIAL,Peoples Services,Home Care Services,A56019
London Borough of Sutton,22/01/2023,50314102,551.25,Exodus Health Care Services Ltd,SOCIAL SERVICES RESIDENTIAL,Peoples Services,Home Care Services,A56019
London Borough of Sutton,22/01/2023,50314119,551.25,Exodus Health Care Services Ltd,SOCIAL SERVICES RESIDENTIAL,Peoples Services,Home Care Services,A56019
London Borough of Sutton,22/01/2023,50314120,717.50,Exodus Health Care Services Ltd,SOCIAL SERVICES RESIDENTIAL,Peoples Services,Home Care Services,A56019
London Borough of Sutton,22/01/2023,50314126,551.25,Exodus Health Care Services Ltd,SOCIAL SERVICES RESIDENTIAL,Peoples Services,Home Care Services,A56019
London Borough of Sutton,22/01/2023,50314139,796.25,Exodus Health Care Services Ltd,SOCIAL SERVICES RESIDENTIAL,Peoples Services,Home Care Services,A56019
London Borough of Sutton,22/01/2023,50314141,568.75,Exodus Health Care Services Ltd,SOCIAL SERVICES RESIDENTIAL,Peoples Services,Home Care Services,A56019
London Borough of Sutton,29/01/2023,50317130,735.00,Exodus Health Care Services Ltd,SOCIAL SERVICES RESIDENTIAL,Peoples Services,Home Care Services,A56019
London Borough of Sutton,29/01/2023,50317135,656.25,Exodus Health Care Services Ltd,SOCIAL SERVICES RESIDENTIAL,Peoples Services,Home Care Services,A56019
London Borough of Sutton,29/01/2023,50317135,105.00,Exodus Health Care Services Ltd,SOCIAL SERVICES RESIDENTIAL,Peoples Services,Home Care Services,A56019
London Borough of Sutton,29/01/2023,50317170,551.25,Exodus Health Care Services Ltd,SOCIAL SERVICES RESIDENTIAL,Peoples Services,Home Care Services,A56019
London Borough of Sutton,29/01/2023,50317176,621.25,Exodus Health Care Services Ltd,SOCIAL SERVICES RESIDENTIAL,Peoples Services,Home Care Services,A56019
London Borough of Sutton,29/01/2023,50317199,551.15,Exodus Health Care Services Ltd,SOCIAL SERVICES RESIDENTIAL,Peoples Services,Home Care Services,A56019
London Borough of Sutton,29/01/2023,50317199,91.98,Exodus Health Care Services Ltd,SOCIAL SERVICES RESIDENTIAL,Peoples Services,Home Care Services,A56019
London Borough of Sutton,29/01/2023,50317201,612.50,Exodus Health Care Services Ltd,SOCIAL SERVICES RESIDENTIAL,Peoples Services,Home Care Services,A56019
London Borough of Sutton,29/01/2023,50317201,52.50,Exodus Health Care Services Ltd,SOCIAL SERVICES RESIDENTIAL,Peoples Services,Home Care Services,A56019
London Borough of Sutton,29/01/2023,50317203,551.25,Exodus Health Care Services Ltd,SOCIAL SERVICES RESIDENTIAL,Peoples Services,Home Care Services,A56019
London Borough of Sutton,29/01/2023,50317203,52.50,Exodus Health Care Services Ltd,SOCIAL SERVICES RESIDENTIAL,Peoples Services,Home Care Services,A56019
London Borough of Sutton,29/01/2023,50317205,551.25,Exodus Health Care Services Ltd,SOCIAL SERVICES RESIDENTIAL,Peoples Services,Home Care Services,A56019
London Borough of Sutton,29/01/2023,50317206,551.25,Exodus Health Care Services Ltd,SOCIAL SERVICES RESIDENTIAL,Peoples Services,Home Care Services,A56019
London Borough of Sutton,29/01/2023,50317212,612.50,Exodus Health Care Services Ltd,SOCIAL SERVICES RESIDENTIAL,Peoples Services,Home Care Services,A56019
London Borough of Sutton,29/01/2023,50317214,551.25,Exodus Health Care Services Ltd,SOCIAL SERVICES RESIDENTIAL,Peoples Services,Home Care Services,A56019
London Borough of Sutton,29/01/2023,50317238,796.25,Exodus Health Care Services Ltd,SOCIAL SERVICES RESIDENTIAL,Peoples Services,Home Care Services,A56019
London Borough of Sutton,29/01/2023,50317250,717.50,Exodus Health Care Services Ltd,SOCIAL SERVICES RESIDENTIAL,Peoples Services,Home Care Services,A56019
London Borough of Sutton,29/01/2023,50317270,568.75,Exodus Health Care Services Ltd,SOCIAL SERVICES RESIDENTIAL,Peoples Services,Home Care Services,A56019
London Borough of Sutton,29/01/2023,50317299,551.25,Exodus Health Care Services Ltd,SOCIAL SERVICES RESIDENTIAL,Peoples Services,Home Care Services,A56019
London Borough of Sutton,29/01/2023,50317305,183.75,Exodus Health Care Services Ltd,SOCIAL SERVICES RESIDENTIAL,Peoples Services,Home Care Services,A56019
London Borough of Sutton,29/01/2023,50317305,323.75,Exodus Health Care Services Ltd,SOCIAL SERVICES RESIDENTIAL,Peoples Services,Home Care Services,A56019
London Borough of Sutton,29/01/2023,50317314,551.25,Exodus Health Care Services Ltd,SOCIAL SERVICES RESIDENTIAL,Peoples Services,Home Care Services,A56019
London Borough of Sutton,29/01/2023,50317331,551.25,Exodus Health Care Services Ltd,SOCIAL SERVICES RESIDENTIAL,Peoples Services,Home Care Services,A56019
London Borough of Sutton,12/02/2023,50321266,717.50,Exodus Health Care Services Ltd,SOCIAL SERVICES RESIDENTIAL,Peoples Services,Home Care Services,A56019
London Borough of Sutton,12/02/2023,50321267,551.15,Exodus Health Care Services Ltd,SOCIAL SERVICES RESIDENTIAL,Peoples Services,Home Care Services,A56019
London Borough of Sutton,12/02/2023,50321267,91.98,Exodus Health Care Services Ltd,SOCIAL SERVICES RESIDENTIAL,Peoples Services,Home Care Services,A56019
London Borough of Sutton,12/02/2023,50321269,612.50,Exodus Health Care Services Ltd,SOCIAL SERVICES RESIDENTIAL,Peoples Services,Home Care Services,A56019
London Borough of Sutton,12/02/2023,50321269,52.50,Exodus Health Care Services Ltd,SOCIAL SERVICES RESIDENTIAL,Peoples Services,Home Care Services,A56019
London Borough of Sutton,12/02/2023,50321270,551.25,Exodus Health Care Services Ltd,SOCIAL SERVICES RESIDENTIAL,Peoples Services,Home Care Services,A56019
London Borough of Sutton,12/02/2023,50321270,52.50,Exodus Health Care Services Ltd,SOCIAL SERVICES RESIDENTIAL,Peoples Services,Home Care Services,A56019
London Borough of Sutton,12/02/2023,50321272,551.25,Exodus Health Care Services Ltd,SOCIAL SERVICES RESIDENTIAL,Peoples Services,Home Care Services,A56019
London Borough of Sutton,12/02/2023,50321285,612.50,Exodus Health Care Services Ltd,SOCIAL SERVICES RESIDENTIAL,Peoples Services,Home Care Services,A56019
London Borough of Sutton,12/02/2023,50321287,551.25,Exodus Health Care Services Ltd,SOCIAL SERVICES RESIDENTIAL,Peoples Services,Home Care Services,A56019
London Borough of Sutton,12/02/2023,50321300,551.25,Exodus Health Care Services Ltd,SOCIAL SERVICES RESIDENTIAL,Peoples Services,Home Care Services,A56019
London Borough of Sutton,12/02/2023,50321335,796.25,Exodus Health Care Services Ltd,SOCIAL SERVICES RESIDENTIAL,Peoples Services,Home Care Services,A56019
London Borough of Sutton,12/02/2023,50321364,568.75,Exodus Health Care Services Ltd,SOCIAL SERVICES RESIDENTIAL,Peoples Services,Home Care Services,A56019
London Borough of Sutton,12/02/2023,50321382,551.25,Exodus Health Care Services Ltd,SOCIAL SERVICES RESIDENTIAL,Peoples Services,Home Care Services,A56019
London Borough of Sutton,12/02/2023,50321388,551.25,Exodus Health Care Services Ltd,SOCIAL SERVICES RESIDENTIAL,Peoples Services,Home Care Services,A56019
London Borough of Sutton,12/02/2023,50321391,656.25,Exodus Health Care Services Ltd,SOCIAL SERVICES RESIDENTIAL,Peoples Services,Home Care Services,A56019
London Borough of Sutton,12/02/2023,50321391,105.00,Exodus Health Care Services Ltd,SOCIAL SERVICES RESIDENTIAL,Peoples Services,Home Care Services,A56019
London Borough of Sutton,12/02/2023,50321425,551.25,Exodus Health Care Services Ltd,SOCIAL SERVICES RESIDENTIAL,Peoples Services,Home Care Services,A56019
London Borough of Sutton,12/02/2023,50321446,551.25,Exodus Health Care Services Ltd,SOCIAL SERVICES RESIDENTIAL,Peoples Services,Home Care Services,A56019
London Borough of Sutton,12/02/2023,50321449,621.25,Exodus Health Care Services Ltd,SOCIAL SERVICES RESIDENTIAL,Peoples Services,Home Care Services,A56019
London Borough of Sutton,16/01/2023,20041921,"3,182.40",Expert In Mind,"SOCIAL SERVICES - DOLS, GUM & BIA ASSESSMENTS",Peoples Services,Client Related Assessments,A56017
London Borough of Sutton,30/01/2023,20041753,"2,878.57",Explore Independence Ltd,CARE LEAVERS,Peoples Services,Approved Lodgings,A61000
London Borough of Sutton,09/02/2023,20042705,"3,321.00",F L Beadle & Sons Ltd,CONSTRUCTION INDUSTRY,Environment Housing and Neighbourhoods,Fencing and Gates,A20021
London Borough of Sutton,29/07/2022,20041544,950.00,F M Conway Limited,CONSTRUCTION INDUSTRY,Environment Housing and Neighbourhoods,Payments to Contractors,C14000
London Borough of Sutton,25/11/2022,20041987,"3,141.00",F M Conway Limited,CONSTRUCTION INDUSTRY,Environment Housing and Neighbourhoods,Traffic Management - Special Works,A20032
London Borough of Sutton,02/02/2023,50314535,"2,548.85",Fairlands Pre-School,GRANTS & EX GRATIA PAYMENTS,Peoples Services,Payment - Nursery Funding,A51056
London Borough of Sutton,02/02/2023,50314604,"6,379.56",Fairlands Pre-School,GRANTS & EX GRATIA PAYMENTS,Peoples Services,Payment - Nursery Funding,A51056
London Borough of Sutton,17/02/2023,50320070,746.40,Family Star Ltd,SOCIAL SERVICES RESIDENTIAL,Peoples Services,Nursing Care - Ext Provider,A56025
London Borough of Sutton,17/02/2023,50320072,-836.76,Family Star Ltd,SOCIAL SERVICES RESIDENTIAL,Peoples Services,Nursing Care - 3rd party top up payment,A56023
London Borough of Sutton,17/02/2023,50320072,"3,821.24",Family Star Ltd,SOCIAL SERVICES RESIDENTIAL,Peoples Services,Nursing Care Short Term,A56026
London Borough of Sutton,17/02/2023,50320102,-358.61,Family Star Ltd,SOCIAL SERVICES RESIDENTIAL,Peoples Services,Nursing Care - 3rd party top up payment,A56023
London Borough of Sutton,17/02/2023,50320102,"2,321.28",Family Star Ltd,SOCIAL SERVICES RESIDENTIAL,Peoples Services,Nursing Care Short Term,A56026
London Borough of Sutton,17/02/2023,50320102,-150.67,Family Star Ltd,SOCIAL SERVICES RESIDENTIAL,Peoples Services,Nursing Care - 3rd party top up payment,A56023
London Borough of Sutton,17/02/2023,50320210,"3,646.72",Family Star Ltd,SOCIAL SERVICES RESIDENTIAL,Peoples Services,Nursing Care - Ext Provider,A56025
London Borough of Sutton,17/02/2023,50320210,-662.24,Family Star Ltd,SOCIAL SERVICES RESIDENTIAL,Peoples Services,Nursing Care - 3rd party top up payment,A56023
London Borough of Sutton,17/02/2023,50320211,"4,640.08",Family Star Ltd,SOCIAL SERVICES RESIDENTIAL,Peoples Services,Nursing Care - Ext Provider,A56025
London Borough of Sutton,17/02/2023,50320211,"-1,016.07",Family Star Ltd,SOCIAL SERVICES RESIDENTIAL,Peoples Services,Nursing Care - 3rd party top up payment,A56023
London Borough of Sutton,17/02/2023,50320253,"1,613.75",Family Star Ltd,SOCIAL SERVICES RESIDENTIAL,Peoples Services,Nursing Care - 3rd party top up payment,A56023
London Borough of Sutton,17/02/2023,50320253,"-7,369.53",Family Star Ltd,SOCIAL SERVICES RESIDENTIAL,Peoples Services,Nursing Care Short Term,A56026
London Borough of Sutton,17/02/2023,50320289,"-2,450.51",Family Star Ltd,SOCIAL SERVICES RESIDENTIAL,Peoples Services,Nursing Care - 3rd party top up payment,A56023
London Borough of Sutton,17/02/2023,50320289,"11,190.77",Family Star Ltd,SOCIAL SERVICES RESIDENTIAL,Peoples Services,Nursing Care - Ext Provider,A56025
London Borough of Sutton,17/02/2023,50320298,"4,184.77",Family Star Ltd,SOCIAL SERVICES RESIDENTIAL,Peoples Services,Nursing Care Short Term,A56026
London Borough of Sutton,17/02/2023,50320298,-806.88,Family Star Ltd,SOCIAL SERVICES RESIDENTIAL,Peoples Services,Nursing Care - 3rd party top up payment,A56023
London Borough of Sutton,17/02/2023,50320338,"3,848.24",Family Star Ltd,SOCIAL SERVICES RESIDENTIAL,Peoples Services,Nursing Care - Ext Provider,A56025
London Borough of Sutton,17/02/2023,50320338,-750.40,Family Star Ltd,SOCIAL SERVICES RESIDENTIAL,Peoples Services,Nursing Care - 3rd party top up payment,A56023
London Borough of Sutton,17/02/2023,50320386,-750.40,Family Star Ltd,SOCIAL SERVICES RESIDENTIAL,Peoples Services,Nursing Care - 3rd party top up payment,A56023
London Borough of Sutton,17/02/2023,50320386,"3,734.88",Family Star Ltd,SOCIAL SERVICES RESIDENTIAL,Peoples Services,Nursing Care Short Term,A56026
London Borough of Sutton,17/02/2023,50320400,"3,821.24",Family Star Ltd,SOCIAL SERVICES RESIDENTIAL,Peoples Services,Nursing Care - Ext Provider,A56025
London Borough of Sutton,17/02/2023,50320400,-836.76,Family Star Ltd,SOCIAL SERVICES RESIDENTIAL,Peoples Services,Nursing Care - 3rd party top up payment,A56023
London Borough of Sutton,24/02/2023,50322213,"4,013.42",Family Star Ltd,SOCIAL SERVICES RESIDENTIAL,Peoples Services,Nursing Care - Ext Provider,A56025
London Borough of Sutton,08/02/2023,50316576,"2,626.01",Field Lane Foundation,CHARITIES & VOLUNTARY ORGNS,Peoples Services,Home Care Services,A56019
London Borough of Sutton,17/01/2023,20041782,"2,279.12",Fierce Neutral Ltd,ACCOMMODATION BED & BREAKFAST,Environment Housing and Neighbourhoods,Bed & Breakfast,A56000
London Borough of Sutton,02/02/2023,50314637,637.95,REDACTED - PERSONAL DATA,GRANTS & EX GRATIA PAYMENTS,Peoples Services,Payment - Nursery Funding,A51056
London Borough of Sutton,17/02/2023,50320006,"3,652.88",Fircroft Homes,SOCIAL SERVICES RESIDENTIAL,Peoples Services,Residential Care - Ext Provider,A56114
London Borough of Sutton,17/02/2023,50320006,-643.80,Fircroft Homes,SOCIAL SERVICES RESIDENTIAL,Peoples Services,Residential Care - Client Cont ( Net Paymt ),A56113
London Borough of Sutton,02/02/2023,50314536,"6,190.07",First Little Steps Day Nursery,GRANTS & EX GRATIA PAYMENTS,Peoples Services,Payment - Nursery Funding,A51056
London Borough of Sutton,02/02/2023,50314605,"6,698.54",First Little Steps Day Nursery,GRANTS & EX GRATIA PAYMENTS,Peoples Services,Payment - Nursery Funding,A51056
London Borough of Sutton,27/01/2023,20041618,"1,048.00",Fit for Sport Ltd,CHILDREN'S SERVICE - OTHER,Resources,Other Supplies & Services,A44291
London Borough of Sutton,17/02/2023,50320042,"5,647.16",Fitzroy,SOCIAL SERVICES RESIDENTIAL,Peoples Services,Residential Care - Ext Provider,A56114
London Borough of Sutton,17/02/2023,50320042,-438.80,Fitzroy,SOCIAL SERVICES RESIDENTIAL,Peoples Services,Residential Care - Client Cont ( Net Paymt ),A56113
London Borough of Sutton,08/02/2023,20042455,628.00,Fleet Tutors,TEMP STAFF & CONSULTANCY,Peoples Services,LAC - Education,A44280
London Borough of Sutton,08/02/2023,50316079,"3,640.00",Fleet Tutors,TEMP STAFF & CONSULTANCY,Peoples Services,Independent School Fees,A56002
London Borough of Sutton,08/02/2023,50316080,"1,920.00",Fleet Tutors,TEMP STAFF & CONSULTANCY,Peoples Services,Independent School Fees,A56002
London Borough of Sutton,08/02/2023,50316081,"2,206.00",Fleet Tutors,TEMP STAFF & CONSULTANCY,Peoples Services,Independent School Fees,A56002
London Borough of Sutton,08/02/2023,50316082,"3,512.00",Fleet Tutors,TEMP STAFF & CONSULTANCY,Peoples Services,Independent School Fees,A56002
London Borough of Sutton,08/02/2023,50316083,"4,266.00",Fleet Tutors,TEMP STAFF & CONSULTANCY,Peoples Services,Independent School Fees,A56002
London Borough of Sutton,08/02/2023,50316084,"1,920.00",Fleet Tutors,TEMP STAFF & CONSULTANCY,Peoples Services,Independent School Fees,A56002
London Borough of Sutton,02/02/2023,20042130,"1,932.66",Flexi Property Solutions Ltd,SUNDRY SUPPLIER - HOUSING,Environment Housing and Neighbourhoods,Rent Deposit Scheme,B32179
London Borough of Sutton,02/02/2023,20042130,"1,200.00",Flexi Property Solutions Ltd,SUNDRY SUPPLIER - HOUSING,Environment Housing and Neighbourhoods,PSL Payments To Landlords,A22031
London Borough of Sutton,17/02/2023,50319952,"7,470.72",Florence Avenue Care Home Ltd,SOCIAL SERVICES RESIDENTIAL,Peoples Services,Residential Care - Ext Provider,A56114
London Borough of Sutton,02/02/2023,50314643,"12,503.94",Mill House Day Nursery,GRANTS & EX GRATIA PAYMENTS,Peoples Services,Payment - Nursery Funding,A51056
London Borough of Sutton,09/02/2023,20042796,"1,300.00",Foresters Primary,GRANTS & EX GRATIA PAYMENTS,Peoples Services,Payments to Contractors,C14000
London Borough of Sutton,07/02/2023,50314409,"108,593.32",Foresters Primary,GRANTS & EX GRATIA PAYMENTS,Peoples Services,Payments to Schools,A51013
London Borough of Sutton,07/02/2023,50314426,"21,000.00",Foresters Primary,GRANTS & EX GRATIA PAYMENTS,Peoples Services,Place Funding,A56110
London Borough of Sutton,07/02/2023,50314456,"7,336.49",Foresters Primary,GRANTS & EX GRATIA PAYMENTS,Peoples Services,Place Funding,A56110
London Borough of Sutton,07/02/2023,50314511,"-14,276.25",Foresters Primary,GRANTS & EX GRATIA PAYMENTS,Peoples Services,Payment - school led tutoring grant,A51060
London Borough of Sutton,01/01/2023,50316967,"7,462.01",Foster Care UK Ltd,CHILDREN'S SERVICES - FOSTERING & ADOPTION SERVICES,Peoples Services,Foster Parents Support,A44110
London Borough of Sutton,26/01/2023,50322465,"3,122.94",Fostering For You,CHILDREN'S SERVICES - FOSTERING & ADOPTION SERVICES,Peoples Services,Foster Parents Support,A44110
London Borough of Sutton,26/01/2023,50322466,"3,210.58",Fostering For You,CHILDREN'S SERVICES - FOSTERING & ADOPTION SERVICES,Peoples Services,Foster Parents Support,A44110
London Borough of Sutton,26/01/2023,50322467,"3,210.58",Fostering For You,CHILDREN'S SERVICES - FOSTERING & ADOPTION SERVICES,Peoples Services,Foster Parents Support,A44110
London Borough of Sutton,26/01/2023,50322470,"4,024.46",Fostering For You,CHILDREN'S SERVICES - FOSTERING & ADOPTION SERVICES,Peoples Services,Foster Parents Support,A44110
London Borough of Sutton,26/01/2023,50322471,"3,189.01",Fostering For You,CHILDREN'S SERVICES - FOSTERING & ADOPTION SERVICES,Peoples Services,Foster Parents Support,A44110
London Borough of Sutton,26/01/2023,50322472,"5,369.51",Fostering For You,CHILDREN'S SERVICES - FOSTERING & ADOPTION SERVICES,Peoples Services,Foster Parents Support,A44110
London Borough of Sutton,20/01/2023,50316942,"3,542.86",Fostering Innovations Limited,CHILDREN'S SERVICES - FOSTERING & ADOPTION SERVICES,Peoples Services,Foster Parents Support,A44110
London Borough of Sutton,20/01/2023,50316943,"3,542.86",Fostering Innovations Limited,CHILDREN'S SERVICES - FOSTERING & ADOPTION SERVICES,Peoples Services,Foster Parents Support,A44110
London Borough of Sutton,31/01/2023,50316986,"5,699.35",Fostering Support Group,CHILDREN'S SERVICES - RESIDENTIAL,Peoples Services,Foster Parents Support,A44110
London Borough of Sutton,31/10/2022,50316987,"5,699.35",Fostering Support Group,CHILDREN'S SERVICES - RESIDENTIAL,Peoples Services,Foster Parents Support,A44110
London Borough of Sutton,31/01/2023,50317059,"4,354.26",Fostering Support Group,CHILDREN'S SERVICES - RESIDENTIAL,Peoples Services,Foster Parents Support,A44110
London Borough of Sutton,01/02/2023,50316926,"7,041.34",Fosteringuk Ltd,CHILDREN'S SERVICES - FOSTERING & ADOPTION SERVICES,Peoples Services,Foster Parents Support,A44110
London Borough of Sutton,10/02/2023,20042795,"1,615.38",Fountain Lane Limited,SUNDRY SUPPLIER - HOUSING,Environment Housing and Neighbourhoods,Rent Deposit Scheme,B32179
London Borough of Sutton,10/02/2023,20042795,"1,400.00",Fountain Lane Limited,SUNDRY SUPPLIER - HOUSING,Environment Housing and Neighbourhoods,Rent Deposit Scheme,B32179
London Borough of Sutton,30/01/2023,20041761,815.00,REDACTED - PERSONAL DATA,GRANTS & EX GRATIA PAYMENTS,Environment Housing and Neighbourhoods,Temporary Protection - Homeless Persons,A62028
London Borough of Sutton,30/01/2023,20041762,815.00,REDACTED - PERSONAL DATA,GRANTS & EX GRATIA PAYMENTS,Environment Housing and Neighbourhoods,Temporary Protection - Homeless Persons,A62028
London Borough of Sutton,01/02/2023,50316031,"3,835.60",Fresh Start In Education Ltd,ACADEMIC INSTNS - OTHER,Peoples Services,Independent School Fees,A56002
London Borough of Sutton,01/02/2023,50316032,"10,664.20",Fresh Start In Education Ltd,ACADEMIC INSTNS - OTHER,Peoples Services,Independent School Fees,A56002
London Borough of Sutton,01/02/2023,50316051,"4,281.60",Fresh Start In Education Ltd,ACADEMIC INSTNS - OTHER,Peoples Services,Independent School Fees,A56002
London Borough of Sutton,09/02/2023,50317071,273.00,Friends Of The Elderly,SOCIAL SERVICES RESIDENTIAL,Peoples Services,Hire of Transport - Non Staff,A32000
London Borough of Sutton,09/02/2023,50317071,594.60,Friends Of The Elderly,SOCIAL SERVICES RESIDENTIAL,Peoples Services,Day Care Services,A56021
London Borough of Sutton,09/02/2023,50317074,331.50,Friends Of The Elderly,SOCIAL SERVICES RESIDENTIAL,Peoples Services,Hire of Transport - Non Staff,A32000
London Borough of Sutton,09/02/2023,50317074,897.60,Friends Of The Elderly,SOCIAL SERVICES RESIDENTIAL,Peoples Services,Day Care Services,A56021
London Borough of Sutton,09/02/2023,50317076,175.50,Friends Of The Elderly,SOCIAL SERVICES RESIDENTIAL,Peoples Services,Hire of Transport - Non Staff,A32000
London Borough of Sutton,09/02/2023,50317076,402.90,Friends Of The Elderly,SOCIAL SERVICES RESIDENTIAL,Peoples Services,Day Care Services,A56021
London Borough of Sutton,09/02/2023,50317077,699.90,Friends Of The Elderly,SOCIAL SERVICES RESIDENTIAL,Peoples Services,Day Care Services,A56021
London Borough of Sutton,09/02/2023,50317078,679.90,Friends Of The Elderly,SOCIAL SERVICES RESIDENTIAL,Peoples Services,Day Care Services,A56021
London Borough of Sutton,09/02/2023,50317081,"1,098.30",Friends Of The Elderly,SOCIAL SERVICES RESIDENTIAL,Peoples Services,Day Care Services,A56021
London Borough of Sutton,09/02/2023,50317082,273.00,Friends Of The Elderly,SOCIAL SERVICES RESIDENTIAL,Peoples Services,Hire of Transport - Non Staff,A32000
London Borough of Sutton,09/02/2023,50317082,354.60,Friends Of The Elderly,SOCIAL SERVICES RESIDENTIAL,Peoples Services,Day Care Services,A56021
London Borough of Sutton,09/02/2023,50317085,253.50,Friends Of The Elderly,SOCIAL SERVICES RESIDENTIAL,Peoples Services,Hire of Transport - Non Staff,A32000
London Borough of Sutton,09/02/2023,50317085,686.40,Friends Of The Elderly,SOCIAL SERVICES RESIDENTIAL,Peoples Services,Day Care Services,A56021
London Borough of Sutton,09/02/2023,50317087,679.90,Friends Of The Elderly,SOCIAL SERVICES RESIDENTIAL,Peoples Services,Day Care Services,A56021
London Borough of Sutton,09/02/2023,50317092,878.10,Friends Of The Elderly,SOCIAL SERVICES RESIDENTIAL,Peoples Services,Day Care Services,A56021
